{"text_format":"1","workbook":"xlsx","n_sheets":11,"sheets":["MENU","REGRAS REGISTO","I-DADOS GERAIS","II-DEM RESULTADOS","III- FINANCIAMENTO","IV-INVESTIMENTO","V-MEMÓRIA JUSTIFICATIVA ","dados I","dados II","dados III","dados IV"],"not_rendered":{"charts":0,"images":13,"macros":1,"external_links":2,"defined_names":34,"comments":0,"pivot_tables":0},"unopened":[],"bounds":{"document_bytes":16777216,"sheet_cells":100000,"rows_first":2000,"rows_last":500,"rows_between":2000,"halvings":0,"cell_chars":16384,"cell_head_chars":4096},"cells_cut":0,"cells_raw":0,"read":"whole","date_system":"1900"}

{"sheet":"MENU","index":0,"n_rows":21,"n_cols":4,"rows_kept":21,"cut":false,"hidden":false,"merged":[[20,3,25,4]]}
[]
[]
[]
[null,null,"MENU"]
[]
[null,null," Ü ","REGRAS REGISTO DADOS"]
[]
[null,null," Ü ","DADOS GERAIS INSTITUIÇÃO"]
[]
[null,null," Ü ","DEMONSTRAÇÃO RESULTADOS"]
[]
[null,null," Ü ","TIPO FINANCIAMENTO"]
[]
[null,null," Ü ","TIPO INVESTIMENTO"]
[]
[null,null," Ü ","MEMÓRIA JUSTIFICATIVA"]
[]
[]
[null,null,null,"ATENÇÃO!"]
[]
[null,null,null,"Deve ler com cuidado as regras de registo antes de iniciar o seu preenchimento.\nApenas deve inserir dados nas células em branco.\nA indicação do responsável pela informação é de preenchimento obrigatório."]

{"sheet":"REGRAS REGISTO","index":1,"n_rows":63,"n_cols":40,"rows_kept":63,"cut":false,"hidden":false,"merged":[[59,3,59,15],[59,16,59,18],[15,6,15,18],[29,3,29,18],[17,3,17,5],[45,2,46,3],[45,4,46,8],[49,3,49,18],[55,2,56,3],[55,4,56,8],[39,3,39,18],[15,3,15,5],[19,3,20,5],[19,6,20,18],[35,2,36,3],[35,4,36,8],[7,2,8,3],[25,2,26,3],[7,4,8,8],[25,4,26,8],[11,3,11,5],[11,6,11,18],[17,6,17,18],[13,6,13,18],[13,3,13,5]]}
[]
[]
[]
[]
[]
[]
[null,null,null,null,null,null,null,null,null,null,null,null,null,null,null,null,null,null,null,null,null,null,null,null,null,null,null,null,null,null,null,null,null,null,"TIPO",null,null,null,null,"Respostas sociais (xxxx)"]
[null,null,"I",null,"DADOS GERAIS",null,null,null,null,null,null,null,null,null,null,null,null,null,null,null,null,null,null,null,null,null,null,null,null,null,null,null,null,null,"Associação",null,null,null,null,"1101-Ama"]
[null,null,null,null,null,null,null,null,null,null,null,null,null,null,null,null,null,null,null,null,null,null,null,null,null,null,null,null,null,null,null,null,null,null,"Associação Mutualista",null,null,null,null,"1102-Ama (Cresce Familiar)"]
[null,null,null,null,null,null,null,null,null,null,null,null,null,null,null,null,null,null,null,null,null,null,null,null,null,null,null,null,null,null,null,null,null,null,"Casa do Povo",null,null,null,null,"1103-Cresce"]
[null,null,null,null,null,null,null,null,null,null,null,null,null,null,null,null,null,null,null,null,null,null,null,null,null,null,null,null,null,null,null,null,null,null,"Cooperativa",null,null,null,null,"1104-Estabelecimento de Educação Pré-Escolar"]
[null,null,null,"IDENTIFICAÇÃO IPSS",null,null,"Registo dos dados que permitem identificar a Instituição.",null,null,null,null,null,null,null,null,null,null,null,null,null,null,null,null,null,null,null,null,null,null,null,null,null,null,null,"Fundação",null,null,null,null,"1105-Centro de Atividades de Tempos Livres"]
[null,null,null,null,null,null,null,null,null,null,null,null,null,null,null,null,null,null,null,null,null,null,null,null,null,null,null,null,null,null,null,null,null,null,"Santa Casa da Misericórdia",null,null,null,null,"1201-Intervenção Precoce"]
[null,null,null,"DADOS ORÇAMENTO",null,null,"Registo dos dados que permitem identificar o orçamento apresentado.\n\nA indicação dos elementos respeitantes à deliberação de aprovação do orçamento e ao respetivo parecer do órgão fiscalizador permite que estes documentos não sejam efetivamente apresentados, podendo no entanto ser solicitados posteriormente.\n",null,null,null,null,null,null,null,null,null,null,null,null,null,null,null,null,null,null,null,null,null,null,null,null,null,null,null,"Fundação",null,null,null,null,"1105-Centro de Atividades de Tempos Livres"]
[null,null,null,null,null,null,null,null,null,null,null,null,null,null,null,null,null,null,null,null,null,null,null,null,null,null,null,null,null,null,null,null,null,null,null,null,null,null,null,"1203-Transporte de Pessoas com Deficiência"]
[null,null,null,"DADOS ATIVIDADE",null,null,"Registo de dados relativos à atividade da IPSS, são definidas 3 tipologias distintas (resposta social/estabelecimento com comparticipação, resposta social/estabelecimento sem comparticipação e atividades/protocolos); \n\nPara cada uma delas devem ser indicadas as três valências que são expectáveis que venham a obter os maiores resultados líquidos þ  e as três com menor valor de resultados líquidos ý.\n\nCaso a Instituição tenha mais do que seis itens em cada quadro (resposta social/estabelecimento com comparticipação, resposta social/estabelecimento sem comparticipação e atividades/protocolos) a informação relativa a estes itens deve ser agregada e incluída totalmente no mapa II-DEM RESULTADOS na última coluna  \"Outras\".\n\nPara cada resposta deve ser indicado:\n- o n.º médio de utentes (Número médio de utentes mês - devem ser considerados a totalidade dos utentes, ou seja, os protocolados e não protocolados)\n- o valor médio da comparticipação (Valor estimado da comparticipação do ISS mês /Número médio de utentes mês)\n- o valor médio das comparticipações das famílias (Valor estimado da comparticipação do ISS mês /Número médio de utentes mês)\n- o n.º médio de recursos humanos remunerados\n- o n.º médio de voluntários\n\nPara cada atividade ou protocolo, deve ser identificada a sua designação, devendo ser adotada para o registo dos dados, a mesma metodologia das respostas sociais. \n",null,null,null,null,null,null,null,null,null,null,null,null,null,null,null,null,null,null,null,null,null,null,null,null,null,null,null,"Fundação",null,null,null,null,"1105-Centro de Atividades de Tempos Livres"]
[]
[null,null,null,"IDENTIFICAÇÃO TOC",null,null,"Devem ser registados os dados que permitem identificar a TOC da Instituição.",null,null,null,null,null,null,null,null,null,null,null,null,null,null,null,null,null,null,null,null,null,null,null,null,null,null,null,"VERSÃO",null,null,null,null,"1301-Centro de Apoio Familiar e Aconselhamento Parental"]
[null,null,null,null,null,null,null,null,null,null,null,null,null,null,null,null,null,null,null,null,null,null,null,null,null,null,null,null,null,null,null,null,null,null,"Inicial",null,null,null,null,"1302-Equipa de Rua de Apoio a Crianças e Jovens"]
[null,null,null,"RESPONSABILIDADE DADOS DECLARADOS",null,null,"A apresentação do orçamento previsional em formato digital tem como objetivo uma simplificação e otimização do processo de submissão, eliminando todos os documentos em suporte papel, sem prejuízo de igual atribuição de responsabilidade pelos dados declarados.",null,null,null,null,null,null,null,null,null,null,null,null,null,null,null,null,null,null,null,null,null,null,null,null,null,null,null,"1º Retificativo",null,null,null,null,"1303-Acolhimento Familiar para Crianças e Jovens"]
[]
[null,null,null,null,null,null,null,null,null,null,null,null,null,null,null,null,null,null,null,null,null,null,null,null,null,null,null,null,null,null,null,null,null,null,"2º Retificativo",null,null,null,null,"1304-Centro de Acolhimento Temporário"]
[null,null,null,null,null,null,null,null,null,null,null,null,null,null,null,null,null,null,null,null,null,null,null,null,null,null,null,null,null,null,null,null,null,null,"3º Retificativo",null,null,null,null,"1305-Lar de Infância e Juventude"]
[null,null,null,null,null,null,null,null,null,null,null,null,null,null,null,null,null,null,null,null,null,null,null,null,null,null,null,null,null,null,null,null,null,null,"4º Retificativo",null,null,null,null,"1306-Apartamento de Autonomização"]
[null,null,null,null,null,null,null,null,null,null,null,null,null,null,null,null,null,null,null,null,null,null,null,null,null,null,null,null,null,null,null,null,null,null,null,null,null,null,null,"2101-Serviço de Apoio Domiciliário"]
[null,null,"II",null,"DEMONSTRAÇÃO RESULTADOS",null,null,null,null,null,null,null,null,null,null,null,null,null,null,null,null,null,null,null,null,null,null,null,null,null,null,null,null,null,null,null,null,null,null,"2102-Centro de Convívio"]
[null,null,null,null,null,null,null,null,null,null,null,null,null,null,null,null,null,null,null,null,null,null,null,null,null,null,null,null,null,null,null,null,null,null,null,null,null,null,null,"2103-Centro de Dia"]
[null,null,null,null,null,null,null,null,null,null,null,null,null,null,null,null,null,null,null,null,null,null,null,null,null,null,null,null,null,null,null,null,null,null,null,null,null,null,null,"2104-Centro de Noite"]
[null,null,null,null,null,null,null,null,null,null,null,null,null,null,null,null,null,null,null,null,null,null,null,null,null,null,null,null,null,null,null,null,null,null,"Cooperativa",null,null,null,null,"1104-Estabelecimento de Educação Pré-Escolar"]
[null,null,null,"Introdução dos resultados globais da Instituição, através do registo:\n\n- individualizado dos gastos e ganhos das resposta social/estabelecimento com comparticipação, resposta social/estabelecimento sem comparticipação e atividades/protocolos, registados nos quadros dos dados gerais em que são indicadas as três valências que são expectáveis que venham a obter os maiores resultados líquidos þ  e as três com menor valor de resultados líquidos ý .\n\n- valor acumulado das restantes resposta social/estabelecimento com comparticipação, resposta social/estabelecimento sem comparticipação e atividades/protocolos,  incluído totalmente no mapa II-DEM RESULTADOS na última coluna  \"Outras\".",null,null,null,null,null,null,null,null,null,null,null,null,null,null,null,null,null,null,null,null,null,null,null,null,null,null,null,null,null,null,"Fundação",null,null,null,null,"1105-Centro de Atividades de Tempos Livres"]
[null,null,null,null,null,null,null,null,null,null,null,null,null,null,null,null,null,null,null,null,null,null,null,null,null,null,null,null,null,null,null,null,null,null,"Santa Casa da Misericórdia",null,null,null,null,"1201-Intervenção Precoce"]
[null,null,null,null,null,null,null,null,null,null,null,null,null,null,null,null,null,null,null,null,null,null,null,null,null,null,null,null,null,null,null,null,null,null,"2º Retificativo",null,null,null,null,"1304-Centro de Acolhimento Temporário"]
[null,null,null,null,null,null,null,null,null,null,null,null,null,null,null,null,null,null,null,null,null,null,null,null,null,null,null,null,null,null,null,null,null,null,"3º Retificativo",null,null,null,null,"1305-Lar de Infância e Juventude"]
[null,null,null,null,null,null,null,null,null,null,null,null,null,null,null,null,null,null,null,null,null,null,null,null,null,null,null,null,null,null,null,null,null,null,"4º Retificativo",null,null,null,null,"1306-Apartamento de Autonomização"]
[null,null,null,null,null,null,null,null,null,null,null,null,null,null,null,null,null,null,null,null,null,null,null,null,null,null,null,null,null,null,null,null,null,null,null,null,null,null,null,"2101-Serviço de Apoio Domiciliário"]
[null,null,"III",null,"FINANCIAMENTO",null,null,null,null,null,null,null,null,null,null,null,null,null,null,null,null,null,null,null,null,null,null,null,null,null,null,null,null,null,null,null,null,null,null,"2102-Centro de Convívio"]
[null,null,null,null,null,null,null,null,null,null,null,null,null,null,null,null,null,null,null,null,null,null,null,null,null,null,null,null,null,null,null,null,null,null,null,null,null,null,null,"2103-Centro de Dia"]
[null,null,null,null,null,null,null,null,null,null,null,null,null,null,null,null,null,null,null,null,null,null,null,null,null,null,null,null,null,null,null,null,null,null,null,null,null,null,null,"2104-Centro de Noite"]
[null,null,null,null,null,null,null,null,null,null,null,null,null,null,null,null,null,null,null,null,null,null,null,null,null,null,null,null,null,null,null,null,null,null,"Cooperativa",null,null,null,null,"1104-Estabelecimento de Educação Pré-Escolar"]
[null,null,null,"Registo dos tipos de financiamento obtidos, nomeadamente:\n- Financiamento público afeto à exploração\n- Financiamento público afeto ao investimento\n- Financiamento privado\n\nNo financiamento público afeto ao investimento e no financiamento privado, para além dos valores refletidos contabilisticamente, devem ser indicados os fluxos financeiros, isto é, os valores monetários que é expectável receber nesse exercício económico.\n",null,null,null,null,null,null,null,null,null,null,null,null,null,null,null,null,null,null,null,null,null,null,null,null,null,null,null,null,null,null,"Fundação",null,null,null,null,"1105-Centro de Atividades de Tempos Livres"]
[]
[]
[null,null,null,null,null,null,null,null,null,null,null,null,null,null,null,null,null,null,null,null,null,null,null,null,null,null,null,null,null,null,null,null,null,null,"3º Retificativo",null,null,null,null,"1305-Lar de Infância e Juventude"]
[null,null,null,null,null,null,null,null,null,null,null,null,null,null,null,null,null,null,null,null,null,null,null,null,null,null,null,null,null,null,null,null,null,null,"4º Retificativo",null,null,null,null,"1306-Apartamento de Autonomização"]
[null,null,null,null,null,null,null,null,null,null,null,null,null,null,null,null,null,null,null,null,null,null,null,null,null,null,null,null,null,null,null,null,null,null,null,null,null,null,null,"2101-Serviço de Apoio Domiciliário"]
[null,null,"IV",null,"INVESTIMENTO",null,null,null,null,null,null,null,null,null,null,null,null,null,null,null,null,null,null,null,null,null,null,null,null,null,null,null,null,null,null,null,null,null,null,"2102-Centro de Convívio"]
[null,null,null,null,null,null,null,null,null,null,null,null,null,null,null,null,null,null,null,null,null,null,null,null,null,null,null,null,null,null,null,null,null,null,null,null,null,null,null,"2103-Centro de Dia"]
[null,null,null,null,null,null,null,null,null,null,null,null,null,null,null,null,null,null,null,null,null,null,null,null,null,null,null,null,null,null,null,null,null,null,null,null,null,null,null,"2104-Centro de Noite"]
[null,null,null,null,null,null,null,null,null,null,null,null,null,null,null,null,null,null,null,null,null,null,null,null,null,null,null,null,null,null,null,null,null,null,"Cooperativa",null,null,null,null,"1104-Estabelecimento de Educação Pré-Escolar"]
[null,null,null,"Registo dos investimentos que vão ser realizados no exercício económico, nomeadamente:\n- Investimentos de médio e longo prazo\n- Investimento em curso\n- Investimento de curto prazo\n",null,null,null,null,null,null,null,null,null,null,null,null,null,null,null,null,null,null,null,null,null,null,null,null,null,null,null,null,null,null,"Fundação",null,null,null,null,"1105-Centro de Atividades de Tempos Livres"]
[]
[]
[null,null,null,null,null,null,null,null,null,null,null,null,null,null,null,null,null,null,null,null,null,null,null,null,null,null,null,null,null,null,null,null,null,null,"3º Retificativo",null,null,null,null,"1305-Lar de Infância e Juventude"]
[null,null,null,null,null,null,null,null,null,null,null,null,null,null,null,null,null,null,null,null,null,null,null,null,null,null,null,null,null,null,null,null,null,null,"4º Retificativo",null,null,null,null,"1306-Apartamento de Autonomização"]
[null,null,null,null,null,null,null,null,null,null,null,null,null,null,null,null,null,null,null,null,null,null,null,null,null,null,null,null,null,null,null,null,null,null,null,null,null,null,null,"2101-Serviço de Apoio Domiciliário"]
[null,null,"V",null,"MEMÓRIA JUSTIFICATIVA",null,null,null,null,null,null,null,null,null,null,null,null,null,null,null,null,null,null,null,null,null,null,null,null,null,null,null,null,null,null,null,null,null,null,"2102-Centro de Convívio"]
[null,null,null,null,null,null,null,null,null,null,null,null,null,null,null,null,null,null,null,null,null,null,null,null,null,null,null,null,null,null,null,null,null,null,null,null,null,null,null,"2103-Centro de Dia"]
[null,null,null,null,null,null,null,null,null,null,null,null,null,null,null,null,null,null,null,null,null,null,null,null,null,null,null,null,null,null,null,null,null,null,null,null,null,null,null,"2104-Centro de Noite"]
[null,null,null,null,null,null,null,null,null,null,null,null,null,null,null,null,null,null,null,null,null,null,null,null,null,null,null,null,null,null,null,null,null,null,"Cooperativa",null,null,null,null,"1104-Estabelecimento de Educação Pré-Escolar"]
[null,null,null,"Registo dos dados que fundamentam a projeção realizada e que se entendem relevantes para a avaliação do orçamento.",null,null,null,null,null,null,null,null,null,null,null,null,null,null,null,null,null,null,null,null,null,null,null,null,null,null,null,null,null,null,"Fundação",null,null,null,null,"1105-Centro de Atividades de Tempos Livres"]
[]
[]
[null,null,null,null,null,null,null,null,null,null,null,null,null,null,null,null,null,null,null,null,null,null,null,null,null,null,null,null,null,null,null,null,null,null,"3º Retificativo",null,null,null,null,"1305-Lar de Infância e Juventude"]

{"sheet":"I-DADOS GERAIS","index":2,"n_rows":289,"n_cols":40,"rows_kept":289,"cut":false,"hidden":false,"merged":[[118,76,118,77],[119,76,119,77],[108,76,108,77],[109,76,109,77],[114,76,114,77],[115,76,115,77],[110,76,110,77],[111,76,111,77],[112,76,112,77],[113,76,113,77],[106,76,106,77],[107,76,107,77],[98,76,98,77],[99,76,99,77],[100,76,100,77],[101,76,101,77],[116,76,116,77],[117,76,117,77],[88,76,88,77],[89,76,89,77],[92,76,92,77],[93,76,93,77],[94,76,94,77],[95,76,95,77],[104,76,104,77],[105,76,105,77],[76,76,76,77],[77,76,77,77],[80,76,80,77],[81,76,81,77],[86,76,86,77],[87,76,87,77],[82,76,82,77],[83,76,83,77],[64,76,64,77],[65,76,65,77],[68,76,68,77],[69,76,69,77],[70,76,70,77],[71,76,71,77],[74,76,74,77],[75,76,75,77],[59,76,59,77],[62,76,62,77],[56,76,56,77],[56,14,56,15],[55,12,55,13],[55,14,55,15],[60,16,60,17],[61,16,61,17],[63,76,63,77],[57,76,57,77],[38,76,38,77],[39,76,39,77],[40,76,40,77],[44,76,44,77],[41,76,41,77],[44,14,44,15],[43,14,43,15],[54,12,54,15],[58,76,58,77],[44,16,44,17],[52,76,52,77],[53,76,53,77],[50,76,50,77],[51,76,51,77],[46,76,46,77],[47,76,47,77],[45,76,45,77],[43,12,43,13],[44,12,44,13],[54,3,54,9],[63,12,63,13],[43,6,43,7],[32,16,32,17],[33,16,33,17],[32,14,32,15],[33,14,33,15],[39,3,39,18],[41,6,41,7],[41,10,41,11],[32,10,32,11],[33,10,33,11],[32,12,32,13],[33,12,33,13],[32,6,32,7],[33,6,33,7],[41,3,41,5],[43,3,44,5],[43,10,43,11],[44,6,44,7],[44,8,44,9],[62,14,62,15],[41,12,41,13],[43,16,43,17],[66,3,66,8],[63,10,63,11],[64,10,64,11],[60,12,60,13],[60,10,60,11],[59,3,59,18],[60,3,60,8],[60,14,60,15],[61,14,61,15],[72,16,72,17],[61,10,61,11],[62,10,62,11],[61,12,61,13],[62,12,62,13],[64,12,64,13],[71,14,71,15],[63,14,63,15],[65,16,65,17],[64,16,64,17],[76,3,76,8],[80,3,80,8],[81,10,81,11],[82,12,82,13],[80,12,80,13],[73,16,73,17],[65,10,65,11],[65,12,65,13],[7,2,8,3],[22,2,23,3],[7,4,8,8],[22,4,23,8],[11,6,11,18],[13,6,13,8],[13,15,13,18],[66,14,66,15],[62,16,62,17],[13,11,13,12],[11,3,11,5],[13,3,13,5],[71,16,71,17],[70,12,70,13],[44,10,44,11],[43,8,43,9],[75,12,75,13],[76,12,76,13],[82,10,82,11],[74,10,74,11],[73,10,73,11],[66,10,66,11],[72,12,72,13],[73,12,73,13],[70,10,70,11],[72,10,72,11],[76,10,76,11],[80,10,80,11],[74,14,74,15],[81,14,81,15],[70,14,70,15],[72,14,72,15],[73,14,73,15],[63,3,63,8],[74,16,74,17],[71,10,71,11],[66,16,66,17],[70,16,70,17],[69,3,69,18],[64,14,64,15],[65,14,65,15],[66,12,66,13],[63,16,63,17],[80,16,80,17],[79,3,79,18],[75,14,75,15],[76,14,76,15],[75,10,75,11],[80,14,80,15],[75,16,75,17],[76,16,76,17],[74,12,74,13],[26,11,26,12],[32,8,32,9],[99,3,99,5],[83,12,83,13],[15,6,15,18],[86,16,86,17],[84,12,84,13],[85,10,85,11],[86,10,86,11],[83,10,83,11],[72,3,72,8],[73,3,73,8],[65,3,65,8],[17,15,17,18],[17,11,17,12],[17,6,17,8],[15,3,15,5],[17,3,17,5],[56,3,56,9],[71,12,71,13],[56,12,56,13],[61,3,61,8],[97,11,97,12],[83,14,83,15],[50,2,51,3],[50,4,51,8],[104,2,105,3],[104,4,105,8],[95,3,95,5],[113,6,113,18],[26,6,26,8],[70,3,70,8],[71,3,71,8],[33,8,33,9],[30,3,30,5],[30,6,30,7],[62,3,62,8],[64,3,64,8],[74,3,74,8],[26,3,26,5],[32,3,33,5],[28,3,28,18],[97,3,97,5],[91,2,92,3],[91,4,92,8],[85,12,85,13],[55,3,55,9],[75,3,75,8],[117,6,117,8],[117,11,117,18],[99,11,99,18],[115,6,115,8],[115,11,115,12],[115,15,115,18],[109,3,111,18],[113,3,113,5],[117,3,117,5],[99,6,99,8],[115,3,115,5],[108,3,108,5],[95,6,95,18],[97,15,97,18],[83,16,83,17],[84,3,84,8],[83,3,83,8],[97,6,97,8],[85,3,85,8],[84,10,84,11],[84,14,84,15],[81,16,81,17],[82,16,82,17],[85,16,85,17],[84,16,84,17],[86,12,86,13],[86,3,86,8],[86,14,86,15],[85,14,85,15],[82,14,82,15],[81,12,81,13],[81,3,81,8],[82,3,82,8]]}
[]
[]
[]
[]
[]
[]
[null,null,null,null,null,null,null,null,null,null,null,null,null,null,null,null,null,null,null,null,null,null,null,null,null,null,null,null,null,null,null,null,null,null,"TIPO",null,null,null,null,"Respostas sociais (xxxx)"]
[null,null,1,null,"IDENTIFICAÇÃO IPSS",null,null,null,null,null,null,null,null,null,null,null,null,null,null,null,null,null,null,null,null,null,null,null,null,null,null,null,null,null,"Associação",null,null,null,null,"1101-Ama"]
[null,null,null,null,null,null,null,null,null,null,null,null,null,null,null,null,null,null,null,null,null,null,null,null,null,null,null,null,null,null,null,null,null,null,"Associação Mutualista",null,null,null,null,"1102-Ama (Creche Familiar)"]
[null,null,null,null,null,null,null,null,null,null,null,null,null,null,null,null,null,null,null,null,null,null,null,null,null,null,null,null,null,null,null,null,null,null,"Casa do Povo",null,null,null,null,"1103-Creche"]
[null,null,null,null,null,null,null,null,null,null,null,null,null,null,null,null,null,null,null,null,null,null,null,null,null,null,null,null,null,null,null,null,null,null,"Cooperativa",null,null,null,null,"1104-Estabelecimento de Educação Pré-Escolar"]
[null,null,null,"DESIGNAÇÃO",null,null,"Associação de Solidariedade Social \"Os Amigos da Landeira\"",null,null,null,null,null,null,null,null,null,null,null,null,null,null,null,null,null,null,null,null,null,null,null,null,null,null,null,"Fundação",null,null,null,null,"1105-Centro de Atividades de Tempos Livres"]
[null,null,null,null,null,null,null,null,null,null,null,null,null,null,null,null,null,null,null,null,null,null,null,null,null,null,null,null,null,null,null,null,null,null,"Santa Casa da Misericórdia",null,null,null,null,"1201-Intervenção Precoce"]
[null,null,null,"NIF/NIPC",null,null,502065591,null,null,null,"NISS",20008838749,null,null,"TIPO","Associação",null,null,null,null,null,null,null,null,null,null,null,null,null,null,null,null,null,null,"Outra",null,null,null,null,"1202-Lar de Apoio"]
[null,null,null,null,null,null,null,null,null,null,null,null,null,null,null,null,null,null,null,null,null,null,null,null,null,null,null,null,null,null,null,null,null,null,null,null,null,null,null,"1203-Transporte de Pessoas com Deficiência"]
[null,null,null,"MORADA DA SEDE",null,null,"Rua Joaquim Agostinho, nº 4 - Landeira",null,null,null,null,null,null,null,null,null,null,null,null,null,null,null,null,null,null,null,null,null,null,null,null,null,null,null,"VERSÃO",null,null,null,null,"1301-Centro de Apoio Familiar e Aconselhamento Parental"]
[null,null,null,null,null,null,null,null,null,null,null,null,null,null,null,null,null,null,null,null,null,null,null,null,null,null,null,null,null,null,null,null,null,null,"Inicial",null,null,null,null,"1302-Equipa de Rua de Apoio a Crianças e Jovens"]
[null,null,null,"TELEFONE",null,null,265913211,null,null,null,"FAX",null,null,null,"E-MAIL","asslandeira@gmail.com",null,null,null,null,null,null,null,null,null,null,null,null,null,null,null,null,null,null,"1º Retificativo",null,null,null,null,"1303-Acolhimento Familiar para Crianças e Jovens"]
[null,null,null,null,null,null,null,null,null,null,null,null,null,null,null,null,null,null,null,null,null,null,null,null,null,null,null,null,null,null,null,null,null,null,"2º Retificativo",null,null,null,null,"1304-Centro de Acolhimento Temporário"]
[null,null,null,null,null,null,null,null,null,null,null,null,null,null,null,null,null,null,null,null,null,null,null,null,null,null,null,null,null,null,null,null,null,null,"3º Retificativo",null,null,null,null,"1305-Lar de Infância e Juventude"]
[null,null,null,null,null,null,null,null,null,null,null,null,null,null,null,null,null,null,null,null,null,null,null,null,null,null,null,null,null,null,null,null,null,null,"4º Retificativo",null,null,null,null,"1306-Apartamento de Autonomização"]
[null,null,null,null,null,null,null,null,null,null,null,null,null,null,null,null,null,null,null,null,null,null,null,null,null,null,null,null,null,null,null,null,null,null,null,null,null,null,null,"2101-Serviço de Apoio Domiciliário"]
[null,null,2,null,"DADOS ORÇAMENTO",null,null,null,null,null,null,null,null,null,null,null,null,null,null,null,null,null,null,null,null,null,null,null,null,null,null,null,null,null,null,null,null,null,null,"2102-Centro de Convívio"]
[null,null,null,null,null,null,null,null,null,null,null,null,null,null,null,null,null,null,null,null,null,null,null,null,null,null,null,null,null,null,null,null,null,null,null,null,null,null,null,"2103-Centro de Dia"]
[null,null,null,null,null,null,null,null,null,null,null,null,null,null,null,null,null,null,null,null,null,null,null,null,null,null,null,null,null,null,null,null,null,null,null,null,null,null,null,"2104-Centro de Noite"]
[null,null,null,null,null,null,null,null,null,null,null,null,null,null,null,null,null,null,null,null,null,null,null,null,null,null,null,null,null,null,null,null,null,null,null,null,null,null,null,"2105-Acolhimento Familiar para Pessoas Idosas"]
[null,null,null,"ANO ECONÓMICO",null,null,2026,null,null,null,"VERSÃO","Inicial",null,null,null,null,null,null,null,null,null,null,null,null,null,null,null,null,null,null,null,null,null,null,"PARECER CONSELHO FISCAL",null,null,null,null,"2106-Residência"]
[null,null,null,null,null,null,null,null,null,null,null,null,null,null,null,null,null,null,null,null,null,null,null,null,null,null,null,null,null,null,null,null,null,null,"Favorável",null,null,null,null,"2107-Lar de Idosos"]
[null,null,null,"ATA ÓRGÃO DELIBERATIVO (ASSEMBLEIA GERAL/CONSELHO ADMINISTRAÇÃO)",null,null,null,null,null,null,null,null,null,null,null,null,null,null,null,null,null,null,null,null,null,null,null,null,null,null,null,null,null,null,"Desfavorável",null,null,null,null,"2201-Centro de Atendimento/Acompanhamento e Animação para Pessoas com Deficiência"]
[null,null,null,null,null,null,null,null,null,null,null,null,null,null,null,null,null,null,null,null,null,null,null,null,null,null,null,null,null,null,null,null,null,null,"Com reservas",null,null,null,null,"2202-Serviço de Apoio Domiciliário"]
[null,null,null,"DATA",null,null,"2025-11-07",null,null,null,null,null,null,null,null,null,null,null,null,null,null,null,null,null,null,null,null,null,null,null,null,null,null,null,null,null,null,null,null,"2203-Centro de Atividades Ocupacionais"]
[null,null,null,null,null,null,null,null,null,null,null,null,null,null,null,null,null,null,null,null,null,null,null,null,null,null,null,null,null,null,null,null,null,null,null,null,null,null,null,"2204-Acolhimento Familiar para Pessoas Adultas com Deficiência"]
[null,null,null,"MEMBROS PRESENTES NA REUNIÃO",null,null,"CARGO",null,"Presidente",null,"Secretário",null,"Secretário",null,"Presidente",null,"Secretário",null,"Tesoureiro",null,null,null,null,null,null,null,null,null,null,null,null,null,null,null,null,null,null,null,null,"2205-Lar Residencial"]
[null,null,null,null,null,null,"NIF",null,182581632,null,124271634,null,188587829,null,129790281,null,129443603,null,201640090,null,null,null,null,null,null,null,null,null,null,null,null,null,null,null,null,null,null,null,null,"2206-Transporte de Pessoas com Deficiência"]
[null,null,null,null,null,null,null,null,null,null,null,null,null,null,null,null,null,null,null,null,null,null,null,null,null,null,null,null,null,null,null,null,null,null,null,null,null,null,null,"2301-Serviço de Apoio Domiciliário"]
[null,null,null,null,null,null,null,null,null,null,null,null,null,null,null,null,null,null,null,null,null,null,null,null,null,null,null,null,null,null,null,null,null,null,null,null,null,null,null,"2302-Apoio Domiciliário Integrado"]
[null,null,null,null,null,null,null,null,null,null,null,null,null,null,null,null,null,null,null,null,null,null,null,null,null,null,null,null,null,null,null,null,null,null,null,null,null,null,null,"2303-Unidade de Apoio Integrado"]
[null,null,null,null,null,null,null,null,null,null,null,null,null,null,null,null,null,null,null,null,null,null,null,null,null,null,null,null,null,null,null,null,null,null,null,null,null,null,null,"2401-Foro Sócio ocupacional"]
[null,null,null,null,null,null,null,null,null,null,null,null,null,null,null,null,null,null,null,null,null,null,null,null,null,null,null,null,null,null,null,null,null,null,null,null,null,null,null,"2402-Unidade de Vida Protegida"]
[null,null,null,"PARECER ÓRGÃO FISCALIZADOR (CONSELHO FISCAL)",null,null,null,null,null,null,null,null,null,null,null,null,null,null,null,null,null,null,null,null,null,null,null,null,null,null,null,null,null,null,null,null,null,null,null,"2403-Unidade de Vida Autónoma"]
[null,null,null,null,null,null,null,null,null,null,null,null,null,null,null,null,null,null,null,null,null,null,null,null,null,null,null,null,null,null,null,null,null,null,"CARGO",null,null,null,null,"2404-Unidade de Vida Apoiada"]
[null,null,null,"DATA",null,null,"2025-11-10",null,null,null,"DECISÃO",null,"Favorável",null,null,null,null,null,null,null,null,null,null,null,null,null,null,null,null,null,null,null,null,null,"Presidente",null,null,null,null,"2501-Equipa de Rua para Pessoas Sem-Abrigo"]
[null,null,null,null,null,null,null,null,null,null,null,null,null,null,null,null,null,null,null,null,null,null,null,null,null,null,null,null,null,null,null,null,null,null,"Secretário",null,null,null,null,"2502-Atelier Ocupacional"]
[null,null,null,"MEMBROS PRESENTES NA REUNIÃO",null,null,"CARGO",null,"Presidente",null,"Vogal",null,"Vogal",null,null,null,null,null,null,null,null,null,null,null,null,null,null,null,null,null,null,null,null,null,"Tesoureiro",null,null,null,null,"3101-Atendimento/Acompanhamento Social"]
[null,null,null,null,null,null,"NIF",null,199263370,null,101591578,null,130040282,null,null,null,null,null,null,null,null,null,null,null,null,null,null,null,null,null,null,null,null,null,"Outro",null,null,null,null,"3102-Grupo de Autoajuda"]
[null,null,null,null,null,null,null,null,null,null,null,null,null,null,null,null,null,null,null,null,null,null,null,null,null,null,null,null,null,null,null,null,null,null,null,null,null,null,null,"3103-Centro Comunitário"]
[null,null,null,null,null,null,null,null,null,null,null,null,null,null,null,null,null,null,null,null,null,null,null,null,null,null,null,null,null,null,null,null,null,null,null,null,null,null,null,"3104-Centro de Férias e Lazer"]
[null,null,null,null,null,null,null,null,null,null,null,null,null,null,null,null,null,null,null,null,null,null,null,null,null,null,null,null,null,null,null,null,null,null,"CARGO",null,null,null,null,"3105-Refeitório/Cantina Social"]
[null,null,null,null,null,null,null,null,null,null,null,null,null,null,null,null,null,null,null,null,null,null,null,null,null,null,null,null,null,null,null,null,null,null,"Presidente",null,null,null,null,"3106-Centro de Apoio à Vida"]
[null,null,null,null,null,null,null,null,null,null,null,null,null,null,null,null,null,null,null,null,null,null,null,null,null,null,null,null,null,null,null,null,null,null,"Vogal",null,null,null,null,"3107-Comunidade de Inserção"]
[null,null,3,null,"DADOS ATIVIDADE",null,null,null,null,null,null,null,null,null,null,null,null,null,null,null,null,null,null,null,null,null,null,null,null,null,null,null,null,null,"Outro",null,null,null,null,"3108-Centro de Alojamento Temporário"]
[null,null,null,null,null,null,null,null,null,null,null,null,null,null,null,null,null,null,null,null,null,null,null,null,null,null,null,null,null,null,null,null,null,null,null,null,null,null,null,"3109-Ajuda Alimentar"]
[null,null,null,null,null,null,null,null,null,null,null,null,null,null,null,null,null,null,null,null,null,null,null,null,null,null,null,null,null,null,null,null,null,null,null,null,null,null,null,"3201-Centro de Atendimento/Acompanhamento Psicossocial"]
[null,null,null,null,null,null,null,null,null,null,null,null,null,null,null,null,null,null,null,null,null,null,null,null,null,null,null,null,null,null,null,null,null,null,null,null,null,null,null,"3202-Serviço de Apoio Domiciliário"]
[null,null,null,"N.º GLOBAL RESPOSTAS SOCIAIS /ESTABELECIMENTO COMPARTICIPADAS",null,null,null,null,null,null,4,null,"N.º ÓRGÃOS SOCIAIS",null,null,null,null,null,null,null,null,null,null,null,null,null,null,null,null,null,null,null,null,null,null,null,null,null,null,"3203-Residência para Pessoas com VIH/SIDA"]
[null,null,null,"N.º GLOBAL RESPOSTAS SOCIAIS /ESTABELECIMENTO NÃO COMPARTICIPADAS",null,null,null,null,null,null,null,null,"REMUNERADOS",null,null,null,null,null,null,null,null,null,null,null,null,null,null,null,null,null,null,null,null,null,null,null,null,null,null,"3301-Equipa de Intervenção Direta"]
[null,null,null,"N.º GLOBAL ATIVIDADES/PROTOCOLOS",null,null,null,null,null,null,null,null,"NÃO REMUNERADOS",null,9,null,null,null,null,null,null,null,null,null,null,null,null,null,null,null,null,null,null,null,null,null,null,null,null,"3302-Apartamento de Reinserção Social"]
[null,null,null,null,null,null,null,null,null,null,null,null,null,null,null,null,null,null,null,null,null,null,null,null,null,null,null,null,null,null,null,null,null,null,null,null,null,null,null,"3401-Centro de Atendimento"]
[null,null,null,null,null,null,null,null,null,null,null,null,null,null,null,null,null,null,null,null,null,null,null,null,null,null,null,null,null,null,null,null,null,null,null,null,null,null,null,"3402-Casa de Abrigo"]
[null,null,null,"PRINCIPAIS RESPOSTAS SOCIAIS /ESTABELECIMENTO COMPARTICIPADAS",null,null,null,null,null,null,null,null,null,null,null,null,null,null,null,null,null,null,null,null,null,null,null,null,null,null,null,null,null,null,null,null,null,null,null,"4101-Apoio Domiciliário para Guarda de Crianças"]
[null,null,null,"TIPO RESPOSTA SOCIAL",null,null,null,null,null,"N.º MÉDIO UTENTES (Ano)","VALOR MÉDIO COMPARTICIPAÇÃO (conta 75)",null,"VALOR MÉDIO  FAMÍLIAS \n(conta 72)",null,"RECEITA ANUAL",null,"N.º MÉDIO RECURSOS HUMANOS (FTE)",null,"N.º MÉDIO VOLUNTÁRIOS (FTE)",null,null,null,null,null,null,null,null,null,null,null,null,null,null,null,null,null,null,null,null,"4102-Apoio em Regime Ambulatório"]
[null,null,null,"1103-Creche",null,null,null,null,null,20,8791.48,null,0,null,{"$f":"J62*(K62+M62)","v":175829.59999999998},null,null,null,4,null,null,null,null,null,null,{"$f":"+D62","v":"1103-Creche"},null,null,null,null,{"$f":"+O62","v":175829.59999999998},null,null,null,null,null,null,null,null,"4103-Imprensa Braille"]
[null,null,null,"1104-Estabelecimento de Educação Pré-Escolar",null,null,null,null,null,25,3277.68,null,2263.8000000000002,null,138537,null,null,null,4,null,null,null,null,null,null,"1104-Estabelecimento de Educação Pré-Escolar",null,null,null,null,138537,null,null,null,null,null,null,null,null,"4104-Escola de Cães-guia"]
[null,null,null,"1105-Centro de Atividades de Tempos Livres",null,null,null,null,null,15,689.48,null,1184.33,null,28107.149999999998,null,null,null,2,null,null,null,null,null,null,"1105-Centro de Atividades de Tempos Livres",null,null,null,null,28107.149999999998,null,null,null,null,null,null,null,null,"Outros acordos"]
[null,null,null,"2202-Serviço de Apoio Domiciliário",null,null,null,null,null,3,4349.88,null,3708,null,24173.64,null,null,null,2,null,null,null,null,null,null,"2202-Serviço de Apoio Domiciliário",null,null,null,null,24173.64]
[null,null,null,null,null,null,null,null,null,null,null,null,null,null,0,null,null,null,null,null,null,null,null,null,null,0,null,null,null,null,0]
[null,null,null,null,null,null,null,null,null,null,null,null,null,null,0,null,null,null,null,null,null,null,null,null,null,0,null,null,null,null,0]
[]
[null,null,null,null,null,null,null,null,null,null,null,null,null,null,null,null,null,null,null,null,null,null,null,null,null,null,null,null,null,null,null,null,null,null,null,null,null,null,null,2013]
[null,null,null,"PRINCIPAIS RESPOSTAS SOCIAIS /ESTABELECIMENTO NÃO COMPARTICIPADAS",null,null,null,null,null,null,null,null,null,null,null,null,null,null,null,null,null,null,null,null,null,null,null,null,null,null,null,null,null,null,null,null,null,null,null,2014]
[null,null,null,"TIPO RESPOSTA SOCIAL",null,null,null,null,null,"N.º MÉDIO UTENTES (Ano)","VALOR MÉDIO COMPARTICIPAÇÃO (conta 75)",null,"VALOR MÉDIO  FAMÍLIAS \n(conta 72)",null,"RECEITA ANUAL",null,"N.º MÉDIO RECURSOS HUMANOS (FTE)",null,"N.º MÉDIO VOLUNTÁRIOS (FTE)",null,null,null,null,null,null,null,null,null,null,null,null,null,null,null,null,null,null,null,null,2015]
[null,null,null,null,null,null,null,null,null,null,null,null,null,null,{"$f":"J72*(K72+M72)","v":0},null,null,null,null,null,null,null,null,null,null,{"$f":"+D72","v":0},null,null,null,null,{"$f":"+O72","v":0},null,null,null,null,null,null,null,null,2016]
[null,null,null,null,null,null,null,null,null,null,null,null,null,null,0,null,null,null,null,null,null,null,null,null,null,0,null,null,null,null,0,null,null,null,null,null,null,null,null,2017]
[null,null,null,null,null,null,null,null,null,null,null,null,null,null,0,null,null,null,null,null,null,null,null,null,null,0,null,null,null,null,0,null,null,null,null,null,null,null,null,2018]
[null,null,null,null,null,null,null,null,null,null,null,null,null,null,0,null,null,null,null,null,null,null,null,null,null,0,null,null,null,null,0,null,null,null,null,null,null,null,null,2019]
[null,null,null,null,null,null,null,null,null,null,null,null,null,null,0,null,null,null,null,null,null,null,null,null,null,0,null,null,null,null,0,null,null,null,null,null,null,null,null,2020]
[null,null,null,null,null,null,null,null,null,null,null,null,null,null,0,null,null,null,null,null,null,null,null,null,null,0,null,null,null,null,0,null,null,null,null,null,null,null,null,2021]
[null,null,null,null,null,null,null,null,null,null,null,null,null,null,null,null,null,null,null,null,null,null,null,null,null,null,null,null,null,null,null,null,null,null,null,null,null,null,null,2022]
[null,null,null,null,null,null,null,null,null,null,null,null,null,null,null,null,null,null,null,null,null,null,null,null,null,null,null,null,null,null,null,null,null,null,null,null,null,null,null,2023]
[null,null,null,"ATIVIDADES / PROTOCOLOS",null,null,null,null,null,null,null,null,null,null,null,null,null,null,null,null,null,null,null,null,null,null,null,null,null,null,null,null,null,null,null,null,null,null,null,2024]
[null,null,null,"TIPO ATIVIDADE",null,null,null,null,null,"N.º MÉDIO UTENTES (Ano)","VALOR MÉDIO COMPARTICIPAÇÃO (conta 75)",null,"VALOR MÉDIO  FAMÍLIAS \n(conta 72)",null,"RECEITA ANUAL",null,"N.º MÉDIO RECURSOS HUMANOS (FTE)",null,"N.º MÉDIO VOLUNTÁRIOS (FTE)",null,null,null,null,null,null,null,null,null,null,null,null,null,null,null,null,null,null,null,null,2025]
[null,null,null,null,null,null,null,null,null,null,null,null,null,null,{"$f":"J82*(K82+M82)","v":0},null,null,null,null,null,null,null,null,null,null,{"$f":"+D82","v":0},null,null,null,null,{"$f":"+O82","v":0},null,null,null,null,null,null,null,null,2026]
[null,null,null,null,null,null,null,null,null,null,null,null,null,null,0,null,null,null,null,null,null,null,null,null,null,0,null,null,null,null,0,null,null,null,null,null,null,null,null,2027]
[null,null,null,null,null,null,null,null,null,null,null,null,null,null,0,null,null,null,null,null,null,null,null,null,null,0,null,null,null,null,0,null,null,null,null,null,null,null,null,2028]
[null,null,null,null,null,null,null,null,null,null,null,null,null,null,0,null,null,null,null,null,null,null,null,null,null,0,null,null,null,null,0,null,null,null,null,null,null,null,null,2029]
[null,null,null,null,null,null,null,null,null,null,null,null,null,null,0,null,null,null,null,null,null,null,null,null,null,0,null,null,null,null,0,null,null,null,null,null,null,null,null,2030]
[null,null,null,null,null,null,null,null,null,null,null,null,null,null,0,null,null,null,null,null,null,null,null,null,null,0,null,null,null,null,0,null,null,null,null,null,null,null,null,2031]
[null,null,null,null,null,null,null,null,null,null,null,null,null,null,null,null,null,null,null,null,null,null,null,null,null,null,null,null,null,null,null,null,null,null,null,null,null,null,null,2032]
[null,null,null,null,null,null,null,null,null,null,null,null,null,null,null,null,null,null,null,null,null,null,null,null,null,null,null,null,null,null,null,null,null,null,null,null,null,null,null,2033]
[null,null,null,null,null,null,null,null,null,null,null,null,null,null,null,null,null,null,null,null,null,null,null,null,null,null,null,null,null,null,null,null,null,null,null,null,null,null,null,2034]
[null,null,null,null,null,null,null,null,null,null,null,null,null,null,null,null,null,null,null,null,null,null,null,null,null,null,null,null,null,null,null,null,null,null,null,null,null,null,null,2035]
[null,null,4,null,"IDENTIFICAÇÃO TOC",null,null,null,null,null,null,null,null,null,null,null,null,null,null,null,null,null,null,null,null,null,null,null,null,null,null,null,null,null,null,null,null,null,null,2036]
[]
[]
[]
[null,null,null,"NOME",null,null,"Miguel de Faria Martins Rivera"]
[]
[null,null,null,"NIF",null,null,128883790,null,null,null,"TELEFONE",265913211,null,null,"TELEM"]
[]
[null,null,null,"N.º MEMBRO OTOC",null,null,8107,null,null,null,"E-MAIL","asslandeira@gmail.com"]
[]
[]
[]
[]
[null,null,5,null,"RESPONSABILIDADE DADOS DECLARADOS"]
[]
[]
[]
[null,null,null,"DECLARAÇÃO"]
[null,null,null,"Declaro que a informação correspondente ao orçamento previsional corresponde à verdade, não tendo sido omitidos dados relevantes para a sua apreciação, assumindo a responsabilidade pelos elementos declarados, erros e omissões."]
[]
[]
[]
[null,null,null,"NOME",null,null,"Custódio Manuel Agostinho Rodrigues"]
[]
[null,null,null,"NIF",null,null,129790281,null,null,null,"TELEFONE",265913211,null,null,"TELEM",965540486]
[]
[null,null,null,"DATA",null,null,"2025-11-12",null,null,null,"E-MAIL","asslandeira@gmail.com"]
[]
[]
[]
[]
[]
[]
[null,"NISS",{"$f":"+L14","v":20008838749}]
[null,"NIF",{"$f":"+G14","v":502065591}]
[null,"TIPO",{"$f":"+P14","v":"Associação"}]
[null,"ANO ECONÓMICO",{"$f":"+G27","v":2026}]
[null,"VERSÃO",{"$f":"+L27","v":"Inicial"}]
[null,"DATA ATA",{"$f":"+G31","v":"2025-11-07"}]
[null,"CARGOS_MEMBROS_ATA_1",{"$f":"+I33","v":"Presidente"}]
[null,"CARGOS_MEMBROS_ATA_2",{"$f":"+K33","v":"Secretário"}]
[null,"CARGOS_MEMBROS_ATA_3",{"$f":"+M33","v":"Secretário"}]
[null,"CARGOS_MEMBROS_ATA_4",{"$f":"+O33","v":"Presidente"}]
[null,"CARGOS_MEMBROS_ATA_5",{"$f":"+Q33","v":"Secretário"}]
[null,"CARGOS_MEMBROS_ATA_6",{"$f":"+S33","v":"Tesoureiro"}]
[null,"NIF_MEMBROS_ATA_1",{"$f":"+I34","v":182581632}]
[null,"NIF_MEMBROS_ATA_2",{"$f":"+K34","v":124271634}]
[null,"NIF_MEMBROS_ATA_3",{"$f":"+M45","v":130040282}]
[null,"NIF_MEMBROS_ATA_4",{"$f":"+O34","v":129790281}]
[null,"NIF_MEMBROS_ATA_5",{"$f":"+Q34","v":129443603}]
[null,"NIF_MEMBROS_ATA_6",{"$f":"+S34","v":201640090}]
[null,"DATA_PARECER_CONSELHO_FISCAL",{"$f":"+G42","v":"2025-11-10"}]
[null,"DECISÃO_PARECER_CONSELHO_FISCAL",{"$f":"+M42","v":"Favorável"}]
[null,"CARGOS_MEMBROS_CF_1",{"$f":"+I44","v":"Presidente"}]
[null,"CARGOS_MEMBROS_CF_2",{"$f":"+K44","v":"Vogal"}]
[null,"CARGOS_MEMBROS_CF_3",{"$f":"+M44","v":"Vogal"}]
[null,"CARGOS_MEMBROS_CF_4",{"$f":"+O44","v":0}]
[null,"CARGOS_MEMBROS_CF_5",{"$f":"+Q44","v":0}]
[null,"CARGOS_MEMBROS_CF_6",{"$f":"+S44","v":0}]
[null,"NIF_MEMBROS_CF_1",{"$f":"+I45","v":199263370}]
[null,"NIF_MEMBROS_CF_2",{"$f":"+K45","v":101591578}]
[null,"NIF_MEMBROS_CF_3",{"$f":"+M45","v":130040282}]
[null,"NIF_MEMBROS_CF_4",{"$f":"+O45","v":0}]
[null,"NIF_MEMBROS_CF_5",{"$f":"+Q45","v":0}]
[null,"NIF_MEMBROS_CF_6",{"$f":"+S45","v":0}]
[null,"RS_COMPARTICIPADAS",{"$f":"+K55","v":4}]
[null,"RS_NÃOCOMPARTICIPADAS",{"$f":"+K56","v":0}]
[null,"ATIVIDADES",{"$f":"+K57","v":0}]
[null,"OS_REMUNERADOS",{"$f":"+O56","v":0}]
[null,"OS_NÃO REMUNERADOS",{"$f":"+O57","v":9}]
[null,"TIPO_RS_1",{"$f":"+D62","v":"1103-Creche"}]
[null,"N.º MÉDIO UTENTES_1",{"$f":"+J62","v":20}]
[null,"VALOR UNITÁRIO COMPARTICIPAÇÃO_1",{"$f":"+K62","v":8791.48}]
[null,"VALOR MÉDIO UNITÁRIO FAMÍLIAS_1",{"$f":"+M62","v":0}]
[null,"RECEITA_1",{"$f":"+O62","v":175829.59999999998}]
[null,"N.º MÉDIO RECURSOS HUMANOS (FTE)_1",{"$f":"+Q62","v":0}]
[null,"N.º MÉDIO VOLUNTÁRIOS (FTE)_1",{"$f":"+S62","v":4}]
[null,"TIPO_RS_2",{"$f":"+D63","v":"1104-Estabelecimento de Educação Pré-Escolar"}]
[null,"N.º MÉDIO UTENTES_2",{"$f":"+J63","v":25}]
[null,"VALOR UNITÁRIO COMPARTICIPAÇÃO_2",{"$f":"+K63","v":3277.68}]
[null,"VALOR MÉDIO UNITÁRIO FAMÍLIAS_2",{"$f":"+M63","v":2263.8000000000002}]
[null,"RECEITA_2",{"$f":"+O63","v":138537}]
[null,"N.º MÉDIO RECURSOS HUMANOS (FTE)_2",{"$f":"+Q63","v":0}]
[null,"N.º MÉDIO VOLUNTÁRIOS (FTE)_2",{"$f":"+S63","v":4}]
[null,"TIPO_RS_3",{"$f":"+D64","v":"1105-Centro de Atividades de Tempos Livres"}]
[null,"N.º MÉDIO UTENTES_3",{"$f":"+J64","v":15}]
[null,"VALOR UNITÁRIO COMPARTICIPAÇÃO_3",{"$f":"+K64","v":689.48}]
[null,"VALOR MÉDIO UNITÁRIO FAMÍLIAS_3",{"$f":"+M64","v":1184.33}]
[null,"RECEITA_3",{"$f":"+O64","v":28107.149999999998}]
[null,"N.º MÉDIO RECURSOS HUMANOS (FTE)_3",{"$f":"+Q64","v":0}]
[null,"N.º MÉDIO VOLUNTÁRIOS (FTE)_3",{"$f":"+S64","v":2}]
[null,"TIPO_RS_4",{"$f":"+D65","v":"2202-Serviço de Apoio Domiciliário"}]
[null,"N.º MÉDIO UTENTES_4",{"$f":"+J65","v":3}]
[null,"VALOR UNITÁRIO COMPARTICIPAÇÃO_4",{"$f":"+K65","v":4349.88}]
[null,"VALOR MÉDIO UNITÁRIO FAMÍLIAS_4",{"$f":"+M65","v":3708}]
[null,"RECEITA_4",{"$f":"+O65","v":24173.64}]
[null,"N.º MÉDIO RECURSOS HUMANOS (FTE)_4",{"$f":"+Q65","v":0}]
[null,"N.º MÉDIO VOLUNTÁRIOS (FTE)_4",{"$f":"+S65","v":2}]
[null,"TIPO_RS_5",{"$f":"+D66","v":0}]
[null,"N.º MÉDIO UTENTES_5",{"$f":"+J66","v":0}]
[null,"VALOR UNITÁRIO COMPARTICIPAÇÃO_5",{"$f":"+K66","v":0}]
[null,"VALOR MÉDIO UNITÁRIO FAMÍLIAS_5",{"$f":"+M66","v":0}]
[null,"RECEITA_5",{"$f":"+O66","v":0}]
[null,"N.º MÉDIO RECURSOS HUMANOS (FTE)_5",{"$f":"+Q66","v":0}]
[null,"N.º MÉDIO VOLUNTÁRIOS (FTE)_5",{"$f":"+S66","v":0}]
[null,"TIPO_RS_6",{"$f":"+$D67","v":0}]
[null,"N.º MÉDIO UTENTES_6",{"$f":"+$J67","v":0}]
[null,"VALOR UNITÁRIO COMPARTICIPAÇÃO_6",{"$f":"+$K67","v":0}]
[null,"VALOR MÉDIO UNITÁRIO FAMÍLIAS_6",{"$f":"+$M67","v":0}]
[null,"RECEITA_6",{"$f":"+$O67","v":0}]
[null,"N.º MÉDIO RECURSOS HUMANOS (FTE)_6",{"$f":"+$Q67","v":0}]
[null,"N.º MÉDIO VOLUNTÁRIOS (FTE)_6",{"$f":"+$S67","v":0}]
[null,"TIPO_RS_7",{"$f":"+$D72","v":0}]
[null,"N.º MÉDIO UTENTES_7",{"$f":"+$J72","v":0}]
[null,"VALOR UNITÁRIO COMPARTICIPAÇÃO_7",{"$f":"+$K72","v":0}]
[null,"VALOR MÉDIO UNITÁRIO FAMÍLIAS_7",{"$f":"+$M72","v":0}]
[null,"RECEITA_7",{"$f":"+$O72","v":0}]
[null,"N.º MÉDIO RECURSOS HUMANOS (FTE)_7",{"$f":"+$Q72","v":0}]
[null,"N.º MÉDIO VOLUNTÁRIOS (FTE)_7",{"$f":"+$S72","v":0}]
[null,"TIPO_RS_8",{"$f":"+$D73","v":0}]
[null,"N.º MÉDIO UTENTES_8",{"$f":"+$J73","v":0}]
[null,"VALOR UNITÁRIO COMPARTICIPAÇÃO_8",{"$f":"+$K73","v":0}]
[null,"VALOR MÉDIO UNITÁRIO FAMÍLIAS_8",{"$f":"+$M73","v":0}]
[null,"RECEITA_8",{"$f":"+$O73","v":0}]
[null,"N.º MÉDIO RECURSOS HUMANOS (FTE)_8",{"$f":"+$Q73","v":0}]
[null,"N.º MÉDIO VOLUNTÁRIOS (FTE)_8",{"$f":"+$S73","v":0}]
[null,"TIPO_RS_9",{"$f":"+$D74","v":0}]
[null,"N.º MÉDIO UTENTES_9",{"$f":"+$J74","v":0}]
[null,"VALOR UNITÁRIO COMPARTICIPAÇÃO_9",{"$f":"+$K74","v":0}]
[null,"VALOR MÉDIO UNITÁRIO FAMÍLIAS_9",{"$f":"+$M74","v":0}]
[null,"RECEITA_9",{"$f":"+$O74","v":0}]
[null,"N.º MÉDIO RECURSOS HUMANOS (FTE)_9",{"$f":"+$Q74","v":0}]
[null,"N.º MÉDIO VOLUNTÁRIOS (FTE)_9",{"$f":"+$S74","v":0}]
[null,"TIPO_RS_10",{"$f":"+$D75","v":0}]
[null,"N.º MÉDIO UTENTES_10",{"$f":"+$J75","v":0}]
[null,"VALOR UNITÁRIO COMPARTICIPAÇÃO_10",{"$f":"+$K75","v":0}]
[null,"VALOR MÉDIO UNITÁRIO FAMÍLIAS_10",{"$f":"+$M75","v":0}]
[null,"RECEITA_10",{"$f":"+$O75","v":0}]
[null,"N.º MÉDIO RECURSOS HUMANOS (FTE)_10",{"$f":"+$Q75","v":0}]
[null,"N.º MÉDIO VOLUNTÁRIOS (FTE)_10",{"$f":"+$S75","v":0}]
[null,"TIPO_RS_11",{"$f":"+$D76","v":0}]
[null,"N.º MÉDIO UTENTES_11",{"$f":"+$J76","v":0}]
[null,"VALOR UNITÁRIO COMPARTICIPAÇÃO_11",{"$f":"+$K76","v":0}]
[null,"VALOR MÉDIO UNITÁRIO FAMÍLIAS_11",{"$f":"+$M76","v":0}]
[null,"RECEITA_11",{"$f":"+$O76","v":0}]
[null,"N.º MÉDIO RECURSOS HUMANOS (FTE)_11",{"$f":"+$Q76","v":0}]
[null,"N.º MÉDIO VOLUNTÁRIOS (FTE)_11",{"$f":"+$S76","v":0}]
[null,"TIPO_RS_12",{"$f":"+$D77","v":0}]
[null,"N.º MÉDIO UTENTES_12",{"$f":"+$J77","v":0}]
[null,"VALOR UNITÁRIO COMPARTICIPAÇÃO_12",{"$f":"+$K77","v":0}]
[null,"VALOR MÉDIO UNITÁRIO FAMÍLIAS_12",{"$f":"+$M77","v":0}]
[null,"RECEITA_12",{"$f":"+$O77","v":0}]
[null,"N.º MÉDIO RECURSOS HUMANOS (FTE)_12",{"$f":"+$Q77","v":0}]
[null,"N.º MÉDIO VOLUNTÁRIOS (FTE)_12",{"$f":"+$S77","v":0}]
[null,"TIPO_RS_13",{"$f":"+$D82","v":0}]
[null,"N.º MÉDIO UTENTES_13",{"$f":"+$J82","v":0}]
[null,"VALOR UNITÁRIO COMPARTICIPAÇÃO_13",{"$f":"+$K82","v":0}]
[null,"VALOR MÉDIO UNITÁRIO FAMÍLIAS_13",{"$f":"+$M82","v":0}]
[null,"RECEITA_13",{"$f":"+$O82","v":0}]
[null,"N.º MÉDIO RECURSOS HUMANOS (FTE)_13",{"$f":"+$Q82","v":0}]
[null,"N.º MÉDIO VOLUNTÁRIOS (FTE)_13",{"$f":"+$S82","v":0}]
[null,"TIPO_RS_14",{"$f":"+$D83","v":0}]
[null,"N.º MÉDIO UTENTES_14",{"$f":"+$J83","v":0}]
[null,"VALOR UNITÁRIO COMPARTICIPAÇÃO_14",{"$f":"+$K83","v":0}]
[null,"VALOR MÉDIO UNITÁRIO FAMÍLIAS_14",{"$f":"+$M83","v":0}]
[null,"RECEITA_14",{"$f":"+$O83","v":0}]
[null,"N.º MÉDIO RECURSOS HUMANOS (FTE)_14",{"$f":"+$Q83","v":0}]
[null,"N.º MÉDIO VOLUNTÁRIOS (FTE)_14",{"$f":"+$S83","v":0}]
[null,"TIPO_RS_15",{"$f":"+$D84","v":0}]
[null,"N.º MÉDIO UTENTES_15",{"$f":"+$J84","v":0}]
[null,"VALOR UNITÁRIO COMPARTICIPAÇÃO_15",{"$f":"+$K84","v":0}]
[null,"VALOR MÉDIO UNITÁRIO FAMÍLIAS_15",{"$f":"+$M84","v":0}]
[null,"RECEITA_15",{"$f":"+$O84","v":0}]
[null,"N.º MÉDIO RECURSOS HUMANOS (FTE)_15",{"$f":"+$Q84","v":0}]
[null,"N.º MÉDIO VOLUNTÁRIOS (FTE)_15",{"$f":"+$S84","v":0}]
[null,"TIPO_RS_16",{"$f":"+$D85","v":0}]
[null,"N.º MÉDIO UTENTES_16",{"$f":"+$J85","v":0}]
[null,"VALOR UNITÁRIO COMPARTICIPAÇÃO_16",{"$f":"+$K85","v":0}]
[null,"VALOR MÉDIO UNITÁRIO FAMÍLIAS_16",{"$f":"+$M85","v":0}]
[null,"RECEITA_16",{"$f":"+$O85","v":0}]
[null,"N.º MÉDIO RECURSOS HUMANOS (FTE)_16",{"$f":"+$Q85","v":0}]
[null,"N.º MÉDIO VOLUNTÁRIOS (FTE)_16",{"$f":"+$S85","v":0}]
[null,"TIPO_RS_17",{"$f":"+$D86","v":0}]
[null,"N.º MÉDIO UTENTES_17",{"$f":"+$J86","v":0}]
[null,"VALOR UNITÁRIO COMPARTICIPAÇÃO_17",{"$f":"+$K86","v":0}]
[null,"VALOR MÉDIO UNITÁRIO FAMÍLIAS_17",{"$f":"+$M86","v":0}]
[null,"RECEITA_17",{"$f":"+$O86","v":0}]
[null,"N.º MÉDIO RECURSOS HUMANOS (FTE)_17",{"$f":"+$Q86","v":0}]
[null,"N.º MÉDIO VOLUNTÁRIOS (FTE)_17",{"$f":"+$S86","v":0}]
[null,"TIPO_RS_18",{"$f":"+$D87","v":0}]
[null,"N.º MÉDIO UTENTES_18",{"$f":"+$J87","v":0}]
[null,"VALOR UNITÁRIO COMPARTICIPAÇÃO_18",{"$f":"+$K87","v":0}]
[null,"VALOR MÉDIO UNITÁRIO FAMÍLIAS_18",{"$f":"+$M87","v":0}]
[null,"RECEITA_18",{"$f":"+$O87","v":0}]
[null,"N.º MÉDIO RECURSOS HUMANOS (FTE)_18",{"$f":"+$Q87","v":0}]
[null,"N.º MÉDIO VOLUNTÁRIOS (FTE)_18",{"$f":"+$S87","v":0}]
[null,"NIF_TOC",{"$f":"+G98","v":128883790}]
[null,"NIF_RESPONSÁVEL",{"$f":"+G116","v":129790281}]

{"sheet":"II-DEM RESULTADOS","index":3,"n_rows":138,"n_cols":28,"rows_kept":138,"cut":false,"hidden":false,"merged":[[17,2,17,4],[18,2,18,4],[19,2,19,4],[26,2,26,4],[24,2,24,4],[21,2,21,4],[112,2,112,4],[78,2,78,4],[79,2,79,4],[107,2,107,4],[106,2,106,4],[30,2,30,4],[33,2,33,4],[32,2,32,4],[35,2,35,4],[31,2,31,4],[34,2,34,4],[39,2,39,4],[44,2,45,4],[47,2,47,4],[40,2,40,4],[48,2,48,4],[53,2,53,4],[50,2,50,4],[38,5,38,7],[39,5,39,7],[66,5,66,7],[123,2,123,4],[116,2,116,4],[120,2,120,4],[121,2,121,4],[105,2,105,4],[51,2,51,4],[54,2,54,4],[55,2,55,4],[114,2,114,4],[113,2,113,4],[111,2,111,4],[110,2,110,4],[88,2,88,4],[57,2,57,4],[58,2,58,4],[56,2,56,4],[68,2,68,4],[60,2,60,4],[65,2,65,4],[93,2,93,4],[102,2,102,4],[36,2,36,4],[52,2,52,4],[37,2,37,4],[69,2,69,4],[38,2,38,4],[95,2,95,4],[96,2,96,4],[80,2,80,4],[81,2,81,4],[91,2,91,4],[94,2,94,4],[87,2,87,4],[89,2,89,4],[90,2,90,4],[92,2,92,4],[84,2,84,4],[82,2,82,4],[83,2,83,4],[49,2,49,4],[96,5,96,7],[98,5,98,7],[98,2,98,4],[108,5,108,7],[100,2,100,4],[103,2,103,4],[101,2,101,4],[97,2,97,4],[91,5,91,7],[94,5,94,7],[104,2,104,4],[108,2,108,4],[99,2,99,4],[68,5,68,7],[58,5,58,7],[60,5,60,7],[62,5,62,7],[64,2,64,4],[66,2,66,4],[67,2,67,4],[59,2,59,4],[61,2,61,4],[62,2,62,4],[61,5,61,7],[85,5,85,7],[88,5,88,7],[71,2,71,4],[72,2,72,4],[73,2,73,4],[74,5,74,7],[76,5,76,7],[63,2,63,4],[86,2,86,4],[74,2,74,4],[85,2,85,4],[81,5,81,7],[69,5,69,7],[83,5,83,7],[77,5,77,7],[78,5,78,7],[79,5,79,7],[80,5,80,7],[76,2,76,4],[77,2,77,4],[70,2,70,4],[75,2,75,4],[63,5,63,7],[67,5,67,7],[20,2,20,4],[23,2,23,4],[28,2,28,4],[29,2,29,4],[22,2,22,4],[18,5,18,7],[19,5,19,7],[26,5,26,7],[20,5,20,7],[23,5,23,7],[24,5,24,7],[25,5,25,7],[22,5,22,7],[25,2,25,4],[27,2,27,4],[9,2,10,4],[9,5,10,8],[16,5,16,7],[12,5,12,7],[13,5,13,7],[14,5,14,7],[15,5,15,7],[13,2,13,4],[14,2,14,4],[12,2,12,4],[15,2,15,4],[16,2,16,4],[3,6,4,9],[51,5,51,7],[53,5,53,7],[54,5,54,7],[21,5,21,7],[50,5,50,7],[36,5,36,7],[37,5,37,7],[31,5,31,7],[32,5,32,7],[17,5,17,7],[49,5,49,7],[52,5,52,7],[27,5,27,7],[28,5,28,7],[29,5,29,7],[30,5,30,7],[40,5,40,7],[48,5,48,7],[33,5,33,7],[35,5,35,7],[44,5,45,8],[47,5,47,7],[34,5,34,7],[57,5,57,7],[55,5,55,7],[115,5,115,7],[70,5,70,7],[75,5,75,7],[82,5,82,7],[71,5,71,7],[113,5,113,7],[110,5,110,7],[112,5,112,7],[114,5,114,7],[107,5,107,7],[73,5,73,7],[90,5,90,7],[92,5,92,7],[86,5,86,7],[87,5,87,7],[89,5,89,7],[84,5,84,7],[59,5,59,7],[65,5,65,7],[64,5,64,7],[93,5,93,7],[95,5,95,7],[109,5,109,7],[111,5,111,7],[106,5,106,7],[105,5,105,7],[101,5,101,7],[102,5,102,7],[104,5,104,7],[103,5,103,7],[97,5,97,7],[99,5,99,7],[100,5,100,7],[123,5,123,7],[122,5,122,7],[125,5,125,7],[126,5,126,7],[124,5,124,7],[116,5,116,7],[117,5,117,7],[118,5,118,7],[119,5,119,7],[56,5,56,7],[72,5,72,7],[137,5,137,7],[132,5,133,8],[136,5,136,7],[135,5,135,7],[124,2,124,4],[109,2,109,4],[135,2,135,4],[122,2,122,4],[119,2,119,4],[118,2,118,4],[128,2,128,4],[115,2,115,4],[117,2,117,4],[127,2,127,4],[137,2,137,4],[132,2,133,4],[136,2,136,4],[125,2,125,4],[128,5,128,7],[120,5,120,7],[121,5,121,7],[127,5,127,7]]}
[]
[]
[]
[null,null,null,null,null,null,"DEMONSTRAÇÃO RESULTADOS PREVISIONAIS"]
[]
[]
[]
[]
[]
[null,null,"CLASSE 7",null,null,"RENDIMENTOS"]
[]
[]
[null,null,"CONTA",null,null,"RUBRICA",null,null,"TOTAL",{"$f":"+'I-DADOS GERAIS'!Z62","v":"1103-Creche"},{"$f":"+'I-DADOS GERAIS'!Z63","v":"1104-Estabelecimento de Educação Pré-Escolar"},{"$f":"+'I-DADOS GERAIS'!Z64","v":"1105-Centro de Atividades de Tempos Livres"},{"$f":"+'I-DADOS GERAIS'!Z65","v":"2202-Serviço de Apoio Domiciliário"},{"$f":"+'I-DADOS GERAIS'!Z66","v":0},{"$f":"+'I-DADOS GERAIS'!Z67","v":0},{"$f":"+'I-DADOS GERAIS'!Z72","v":0},{"$f":"+'I-DADOS GERAIS'!Z73","v":0},{"$f":"+'I-DADOS GERAIS'!Z74","v":0},{"$f":"+'I-DADOS GERAIS'!Z75","v":0},{"$f":"+'I-DADOS GERAIS'!Z76","v":0},{"$f":"+'I-DADOS GERAIS'!Z77","v":0},{"$f":"+'I-DADOS GERAIS'!Z82","v":0},{"$f":"+'I-DADOS GERAIS'!Z83","v":0},{"$f":"+'I-DADOS GERAIS'!Z84","v":0},{"$f":"+'I-DADOS GERAIS'!Z85","v":0},{"$f":"+'I-DADOS GERAIS'!Z86","v":0},{"$f":"+'I-DADOS GERAIS'!Z87","v":0},"OUTROS"]
[null,null,71,null,null,"VENDAS",null,null,{"$f":"SUM(J14:AB14)","v":0}]
[null,null,72,null,null,"PRESTAÇÕES SERVIÇOS",null,null,{"$f":"SUM(J15:AB15)","v":85484},{"$f":"+J16+J17","v":0},{"$f":"+K16+K17","v":56595},17765,11124,0,0,0,0,0,0,0,0,0,0,0,0,0,0,0]
[null,null,721,null,null,"QUOTAS UTILIZADORES (MATRÍCULAS/MENSALIDADES)",null,null,85484,null,56595,17765,11124]
[null,null,"722/728",null,null,"OUTROS SERVIÇOS",null,null,0]
[null,null,73,null,null,"VARIAÇÃO NOS INVENTÁRIOS DA PRODUÇÃO",null,null,0]
[null,null,74,null,null,"TRABALHOS PARA A PRÓPRIA ENTIDADE",null,null,0]
[null,null,75,null,null,"SUBSÍDIOS, DOAÇÕES E LEGADOS À EXPLORAÇÃO",null,null,286163.34000000003,{"$f":"+J21+J24+J25+J26","v":177079.52},{"$f":"+K21+K24+K25+K26","v":83191.98},11592.2,14299.64,0,0,0,0,0,0,0,0,0,0,0,0,0,0,0]
[null,null,751,null,null,"SUBSÍDIOS ESTADO E OUTROS ENTES PÚBLICOS",null,null,286163.34000000003,{"$f":"+J22+J23","v":177079.52},{"$f":"+K22+K23","v":83191.98},11592.2,14299.64,0,0,0,0,0,0,0,0,0,0,0,0,0,0,0]
[null,null,7511,null,null,"ISS, IP",null,null,281163.34000000003,175829.52,81941.98,10342.200000000001,13049.64]
[null,null,7512,null,null,"OUTRAS ENTIDADES PÚBLICAS",null,null,5000,1250,1250,1250,1250]
[null,null,752,null,null,"SUBSÍDIOS DE OUTRAS ENTIDADES",null,null,0]
[null,null,753,null,null,"DOAÇÕES E HERANÇAS",null,null,0]
[null,null,754,null,null,"LEGADOS",null,null,0]
[null,null,76,null,null,"REVERSÕES",null,null,0,{"$f":"+J28+J29+J30+J31","v":0},{"$f":"+K28+K29+K30+K31","v":0},0,0,0,0,0,0,0,0,0,0,0,0,0,{"$f":"+Y28+Y29+Y30+Y31","v":0},{"$f":"+Z28+Z29+Z30+Z31","v":0},{"$f":"+AA28+AA29+AA30+AA31","v":0},{"$f":"+AB28+AB29+AB30+AB31","v":0}]
[null,null,761,null,null,"DE DEPRECIAÇÕES E AMORTIZAÇÕES",null,null,0]
[null,null,762,null,null,"DE PERDAS POR IMPARIDADE",null,null,0]
[null,null,763,null,null,"DE PROVISÕES",null,null,0]
[null,null,764,null,null,"DE PROVISÕES ESPECÍFICAS",null,null,0]
[null,null,77,null,null,"GANHOS POR AUMENTOS DE JUSTO VALOR",null,null,0]
[null,null,78,null,null,"OUTROS RENDIMENTOS E GANHOS",null,null,2822.54,{"$f":"+J34+J35+J36","v":625},{"$f":"+K34+K35+K36","v":625},625,947.54,0,0,0,0,0,0,0,0,0,0,0,0,0,0,0]
[null,null,781,null,null,"RENDIMENTOS SUPLEMENTARES",null,null,0]
[null,null,"782 / 787",null,null,"OUTROS RENDIMENTOS EM ATIVOS"]
[null,null,788,null,null,"OUTROS RENDIMENTOS E GANHOS",null,null,2822.54,{"$f":"+J37+J38+J39+J40","v":625},{"$f":"+K37+K38+K39+K40","v":625},625,947.54,0,0,0,0,0,0,0,0,0,0,0,{"$f":"+Y37+Y38+Y39+Y40","v":0},{"$f":"+Z37+Z38+Z39+Z40","v":0},{"$f":"+AA37+AA38+AA39+AA40","v":0},{"$f":"+AB37+AB38+AB39+AB40","v":0}]
[null,null,7881,null,null,"CORREÇÕES DE PERÍODOS ANTERIORES",null,null,0]
[null,null,7883,null,null,"IMPUTAÇÃO DE SUBSÍDIOS DE INVESTIMENTO",null,null,1622.54,325,325,325,647.54]
[null,null,"7882-7884/7887",null,null,"RENDIMENTOS E GANHOS EM ATIVOS",null,null,1200,300,300,300,300]
[null,null,7888,null,null,"OUTROS NÃO ESPECIFICADOS",null,null,0]
[null,null,79,null,null,"JUROS, DIVIDENDOS E OUTROS RENDIMENTOS SIMILARES",null,null,0]
[null,null,7,null,null,"TOTAL RENDIMENTOS",null,null,{"$f":"+I14+I15+I18+I19+I20+I27+I32+I33+I41","v":374469.88},{"$f":"+J14+J15+J18+J19+J20+J27+J32+J33+J41","v":177704.52},140411.97999999998,29982.2,26371.18,0,0,0,0,0,0,0,0,0,0,0,0,0,0,0]
[]
[]
[null,null,"CLASSE 6",null,null,"GASTOS"]
[]
[]
[null,null,"CONTA",null,null,"RUBRICA",null,null,"TOTAL",{"$f":"+J13","v":"1103-Creche"},"1104-Estabelecimento de Educação Pré-Escolar","1105-Centro de Atividades de Tempos Livres","2202-Serviço de Apoio Domiciliário",0,0,0,0,0,0,0,0,0,0,0,0,0,0,"OUTROS"]
[null,null,61,null,null,"CUSTO MERCADORIAS E MATÉRIAS CONSUMIDAS",null,null,{"$f":"SUM(J49:AB49)","v":38500},13090,16170,6160,3080]
[null,null,62,null,null,"FORNECIMENTOS E SERVIÇOS EXTERNOS",null,null,{"$f":"SUM(J50:AB50)","v":42150},{"$f":"+J51+J52+J60+J66+J71+J76","v":11844.5},{"$f":"+K51+K52+K60+K66+K71+K76","v":13514.5},9636,7155,0,0,0,0,0,0,0,0,0,0,0,0,0,0,0]
[null,null,621,null,null,"SUBCONTRATOS",null,null,0]
[null,null,622,null,null,"SERVIÇOS ESPECIALIZADOS",null,null,6900,{"$f":"+J53+J54+J55+J56+J57+J58+J59","v":2075},{"$f":"+K53+K54+K55+K56+K57+K58+K59","v":2075},2075,675,0,0,0,0,0,0,0,0,0,0,0,0,0,0,0]
[null,null,6221,null,null,"TRABALHOS ESPECIALIZADOS",null,null,0]
[null,null,6222,null,null,"PUBLICIDADE E PROPAGANDA",null,null,0]
[null,null,6223,null,null,"VIGILÂNCIA E SEGURANÇA",null,null,700,175,175,175,175]
[null,null,6224,null,null,"HONORÁRIOS",null,null,0]
[null,null,6225,null,null,"COMISSÕES",null,null,0]
[null,null,6226,null,null,"CONSERVAÇÃO E REPARAÇÃO",null,null,4200,1400,1400,1400,0]
[null,null,6228,null,null,"OUTROS",null,null,2000,500,500,500,500]
[null,null,623,null,null,"MATERIAIS",null,null,11750,{"$f":"+J61+J62+J63+J64+J65","v":2742.5},{"$f":"+K61+K62+K63+K64+K65","v":4082.5},2712.5,2212.5,0,0,0,0,0,0,0,0,0,0,0,0,0,0,0]
[null,null,6231,null,null,"FERRAMENTAS E UTENSÍLIOS DE DESGATE RÁPIDO",null,null,6500,1625,1625,1625,1625]
[null,null,6232,null,null,"LIVROS E DOCUMENTAÇÃO TÉCNICA",null,null,0]
[null,null,6233,null,null,"MATERIAL DE ESCRITÓRIO",null,null,2000,500,880,500,120]
[null,null,6234,null,null,"ARTIGOS PARA OFERTA",null,null,1750,437.5,437.5,437.5,437.5]
[null,null,"6235/6238",null,null,"OUTROS",null,null,1500,180,1140,150,30]
[null,null,624,null,null,"ENERGIA E FLUIDOS",null,null,11950,{"$f":"+J67+J68+J69+J70","v":3584.5},{"$f":"+K67+K68+K69+K70","v":4164.5},1896,2305,0,0,0,0,0,0,0,0,0,0,0,0,0,0,0]
[null,null,6241,null,null,"ELETRICIDADE",null,null,7500,2532,2532,1291,1145]
[null,null,6242,null,null,"COMBUSTÍVEIS",null,null,1200,240,240,240,480]
[null,null,6243,null,null,"ÁGUA",null,null,1250,312.5,312.5,225,400]
[null,null,6248,null,null,"OUTROS",null,null,2000,500,1080,140,280]
[null,null,625,null,null,"DESLOCAÇÕES, ESTADAS E TRANSPORTES",null,null,1500,{"$f":"+J72+J73+J74+J75","v":375},{"$f":"+K72+K73+K74+K75","v":375},375,375,0,0,0,0,0,0,0,0,0,0,0,0,0,0,0]
[null,null,6251,null,null,"DESLOCAÇÕES E ESTADAS",null,null,1500,375,375,375,375]
[null,null,6252,null,null,"TRANSPORTES DE PESSOAL",null,null,0]
[null,null,6253,null,null,"TRANSPORTES DE MERCADORIAS",null,null,0]
[null,null,6258,null,null,"OUTROS",null,null,0]
[null,null,626,null,null,"SERVIÇOS DIVERSOS",null,null,10050,{"$f":"+J77+J78+J79+J80+J81+J82+J83+J84","v":3067.5},{"$f":"+K77+K78+K79+K80+K81+K82+K83+K84","v":2817.5},2577.5,1587.5,0,0,0,0,0,0,0,0,0,0,0,0,0,0,0]
[null,null,6261,null,null,"RENDAS E ALUGUERES",null,null,0]
[null,null,6262,null,null,"COMUNICAÇÃO",null,null,3000,840,840,840,480]
[null,null,6263,null,null,"SEGUROS",null,null,750,187.5,187.5,187.5,187.5]
[null,null,6264,null,null,"ROYALTIES",null,null,0]
[null,null,6265,null,null,"CONTENCIOSO E NOTARIADO",null,null,250,250]
[null,null,6266,null,null,"DESPESAS DE REPRESENTAÇÃO",null,null,500,125,125,125,125]
[null,null,6267,null,null,"LIMPEZA, HIGIENE E CONFORTO",null,null,4800,1440,1440,1200,720]
[null,null,6268,null,null,"OUTROS SERVIÇOS",null,null,750,225,225,225,75]
[null,null,63,null,null,"GASTOS COM PESSOAL",null,null,257380.83999999997,{"$f":"+J86+J89+J92+J95+J98+J101+J104+J107","v":97466.72},{"$f":"+K86+K89+K92+K95+K98+K101+K104+K107","v":117849.18},23580.27,18484.669999999998,0,0,0,0,0,0,0,0,0,0,0,0,0,0,0]
[null,null,631,null,null,"REMUNERAÇÕES DOS ÓRGÃOS SOCIAIS",null,null,0,{"$f":"+J87+J88","v":0},{"$f":"+K87+K88","v":0},0,0,0,0,0,0,0,0,0,0,0,0,0,0,0,0,0]
[null,null,6311,null,null,"REMUNERAÇÕES CERTAS",null,null,0]
[null,null,6312,null,null,"REMUNERAÇÕES ADICIONAIS",null,null,0]
[null,null,632,null,null,"REMUNERAÇÕES DO PESSOAL",null,null,208324.48000000001,{"$f":"+J90+J91","v":79163.3},{"$f":"+K90+K91","v":95829.26},18749.2,14582.72,0,0,0,0,0,0,0,0,0,0,0,0,0,0,0]
[null,null,6321,null,null,"REMUNERAÇÕES CERTAS",null,null,208324.48000000001,79163.3,95829.26,18749.2,14582.72]
[null,null,6322,null,null,"REMUNERAÇÕES ADICIONAIS",null,null,0]
[null,null,633,null,null,"BENEFÍCIOS PÓS-EMPREGO",null,null,0,{"$f":"+J93+J94","v":0},{"$f":"+K93+K94","v":0},0,0,0,0,0,0,0,0,0,0,0,0,0,0,0,0,0]
[null,null,6331,null,null,"ÓRGÃOS SOCIAIS",null,null,0]
[null,null,6332,null,null,"PESSOAL",null,null,0]
[null,null,634,null,null,"INDEMNIZAÇÕES",null,null,0,{"$f":"+J96+J97","v":0},{"$f":"+K96+K97","v":0},0,0,0,0,0,0,0,0,0,0,0,0,0,0,0,0,0]
[null,null,6341,null,null,"ÓRGÃOS SOCIAIS",null,null,0]
[null,null,6342,null,null,"PESSOAL",null,null,0]
[null,null,635,null,null,"ENCARGOS SOBRE REMUNERAÇÕES",null,null,46456.359999999993,{"$f":"+J99+J100","v":17653.419999999998},{"$f":"+K99+K100","v":21369.919999999998},4181.07,3251.95,0,0,0,0,0,0,0,0,0,0,0,0,0,0,0]
[null,null,6351,null,null,"ÓRGÃOS SOCIAIS",null,null,0]
[null,null,6352,null,null,"PESSOAL",null,null,46456.359999999993,17653.419999999998,21369.919999999998,4181.07,3251.95]
[null,null,636,null,null,"SEGUROS ACIDENTES TRABALHO E DOENÇAS PROFISSIONAIS",null,null,1850,{"$f":"+J102+J103","v":462.5},{"$f":"+K102+K103","v":462.5},462.5,462.5,0,0,0,0,0,0,0,0,0,0,0,0,0,0,0]
[null,null,6361,null,null,"ÓRGÃOS SOCIAIS",null,null,0]
[null,null,6362,null,null,"PESSOAL",null,null,1850,462.5,462.5,462.5,462.5]
[null,null,637,null,null,"GASTOS DE AÇÃO SOCIAL",null,null,0,{"$f":"+J105+J106","v":0},{"$f":"+K105+K106","v":0},0,0,0,0,0,0,0,0,0,0,0,0,0,0,0,0,0]
[null,null,6371,null,null,"ÓRGÃOS SOCIAIS",null,null,0]
[null,null,6372,null,null,"PESSOAL",null,null,0]
[null,null,638,null,null,"OUTROS GASTOS COM O PESSOAL",null,null,750,{"$f":"+J108+J109","v":187.5},{"$f":"+K108+K109","v":187.5},187.5,187.5,0,0,0,0,0,0,0,0,0,0,0,0,0,0,0]
[null,null,6381,null,null,"ÓRGÃOS SOCIAIS",null,null,0]
[null,null,6382,null,null,"PESSOAL",null,null,750,187.5,187.5,187.5,187.5]
[null,null,64,null,null,"GASTOS DE DEPRECIAÇÃO E AMORTIZAÇÃO",null,null,10100,{"$f":"+J111+J112+J113","v":2279},{"$f":"+K111+K112+K113","v":3345},1910,2566,0,0,0,0,0,0,0,0,0,0,0,0,0,0,0]
[null,null,641,null,null,"PROPRIEDADES DE INVESTIMENTO",null,null,0]
[null,null,642,null,null,"ATIVOS FIXOS TANGÍVEIS",null,null,10100,2279,3345,1910,2566]
[null,null,643,null,null,"ATIVOS INTANGÍVEIS",null,null,0]
[null,null,65,null,null,"PERDAS POR IMPARIDADE",null,null,{"$f":"SUM(J114:AB114)","v":0},{"$f":"+J115+J116+J117","v":0},{"$f":"+K115+K116+K117","v":0},0,0,0,0,0,0,0,0,0,0,0,0,0,0,0,0,0]
[null,null,651,null,null,"DE DÍVIDAS A RECEBER",null,null,0]
[null,null,652,null,null,"DE INVENTÁRIOS",null,null,0]
[null,null,"653/658",null,null,"PERDAS EM OUTROS ATIVOS",null,null,0]
[null,null,66,null,null,"PERDAS POR REDUÇÃO DE JUSTO VALOR",null,null,0]
[null,null,67,null,null,"PROVISÕES DO PERÍODO",null,null,0]
[null,null,68,null,null,"OUTROS GASTOS E PERDAS",null,null,180,{"$f":"+J121+J122+J123+J128","v":45},{"$f":"+K121+K122+K123+K128","v":45},45,45,0,0,0,0,0,0,0,0,0,0,0,0,0,0,0]
[null,null,681,null,null,"IMPOSTOS",null,null,0]
[null,null,"682/687",null,null,"OUTROS GASTOS E PERDAS EM ATIVOS",null,null,0]
[null,null,688,null,null,"OUTROS GASTOS E PERDAS",null,null,180,{"$f":"+J124+J125+J126+J127","v":45},{"$f":"+K124+K125+K126+K127","v":45},45,45,0,0,0,0,0,0,0,0,0,0,0,0,0,0,0]
[null,null,6881,null,null,"CORREÇÕES DE PERÍODOS ANTERIORES",null,null,0]
[null,null,6882,null,null,"DONATIVOS",null,null,0]
[null,null,6883,null,null,"QUOTIZAÇÕES",null,null,180,45,45,45,45]
[null,null,"6884/6888",null,null,"OUTROS GASTOS E PERDAS",null,null,0]
[null,null,689,null,null,"CUSTOS C/ APOIOS FIN. CONCEDIDOS A ASS. OU UTENTES",null,null,0]
[null,null,69,null,null,"GASTOS E PERDAS DE FINANCIAMENTO",null,null,96,24,24,24,24]
[null,null,6,null,null,"TOTAL GASTOS",null,null,{"$f":"+I49+I50+I85+I110+I114+I118+I119+I120+I129","v":348406.83999999997},{"$f":"+J49+J50+J85+J110+J114+J118+J119+J120+J129","v":124749.22},150947.68,41355.270000000004,31354.67,0,0,0,0,0,0,0,0,0,0,0,0,0,0,0]
[]
[]
[null,null,"CLASSE 8",null,null,"RESULTADOS"]
[]
[]
[null,null,85,null,null,"RESULTADOS ANTES IMPOSTOS",null,null,{"$f":"+I42-I130","v":26063.040000000037},{"$f":"+J42-J130","v":52955.299999999988},-10535.700000000012,-11373.070000000003,-4983.489999999998,0,0,0,0,0,0,0,0,0,0,0,0,0,0,0]
[null,null,86,null,null,"IMPOSTO RENDIMENTO EXERCÍCIO",null,null,{"$f":"SUM(J137:AB137)","v":0}]
[null,null,88,null,null,"RESULTADO LÍQUIDO",null,null,{"$f":"+I136-I137","v":26063.040000000037},52955.299999999988,-10535.700000000012,-11373.070000000003,-4983.489999999998,0,0,0,0,0,0,0,0,0,0,0,0,0,0,0]

{"sheet":"III- FINANCIAMENTO","index":4,"n_rows":174,"n_cols":10,"rows_kept":174,"cut":false,"hidden":false,"merged":[[8,2,9,3],[8,4,9,7],[169,4,170,9],[104,2,108,4],[163,2,165,4],[135,2,136,4],[135,8,136,8],[109,2,113,4],[114,2,118,4],[11,2,12,4],[13,2,92,4],[94,2,98,4],[99,2,103,4],[36,5,36,6],[37,5,37,6],[44,5,44,6],[45,5,45,6],[46,5,46,6],[47,5,47,6],[38,5,38,6],[39,5,39,6],[40,5,40,6],[41,5,41,6],[137,2,144,4],[179,2,179,4],[179,5,179,6],[166,2,166,6],[169,2,170,3],[172,2,173,4],[175,2,175,4],[176,2,176,4],[177,2,177,4],[175,5,175,6],[176,5,176,6],[174,2,174,4],[178,2,178,4],[174,5,174,6],[178,5,178,6],[177,5,177,6],[172,5,173,6],[145,2,147,4],[157,2,159,4],[160,2,162,4],[148,2,150,4],[151,2,153,4],[124,2,128,4],[119,2,123,4],[32,5,32,6],[33,5,33,6],[34,5,34,6],[35,5,35,6],[154,2,156,4],[81,5,81,6],[68,5,68,6],[69,5,69,6],[70,5,70,6],[73,5,73,6],[74,5,74,6],[66,5,66,6],[78,5,78,6],[79,5,79,6],[80,5,80,6],[76,5,76,6],[67,5,67,6],[17,5,17,6],[18,5,18,6],[19,5,19,6],[129,2,129,6],[132,2,133,3],[132,4,133,8],[90,5,90,6],[25,5,25,6],[26,5,26,6],[27,5,27,6],[52,5,52,6],[53,5,53,6],[54,5,54,6],[55,5,55,6],[59,5,59,6],[60,5,60,6],[61,5,61,6],[62,5,62,6],[50,5,50,6],[51,5,51,6],[63,5,63,6],[64,5,64,6],[65,5,65,6],[82,5,82,6],[172,9,173,9],[172,7,172,8],[3,6,4,6],[11,5,12,6],[56,5,56,6],[57,5,57,6],[58,5,58,6],[13,5,13,6],[14,5,14,6],[15,5,15,6],[16,5,16,6],[30,5,30,6],[31,5,31,6],[20,5,20,6],[21,5,21,6],[22,5,22,6],[23,5,23,6],[24,5,24,6],[28,5,28,6],[29,5,29,6],[42,5,42,6],[43,5,43,6],[48,5,48,6],[49,5,49,6],[72,5,72,6],[71,5,71,6],[97,5,97,6],[98,5,98,6],[99,5,99,6],[100,5,100,6],[101,5,101,6],[102,5,102,6],[103,5,103,6],[77,5,77,6],[84,5,84,6],[85,5,85,6],[86,5,86,6],[87,5,87,6],[83,5,83,6],[104,5,104,6],[89,5,89,6],[91,5,91,6],[92,5,92,6],[94,5,94,6],[95,5,95,6],[93,5,93,6],[96,5,96,6],[88,5,88,6],[105,5,105,6],[106,5,106,6],[119,5,119,6],[120,5,120,6],[109,5,109,6],[110,5,110,6],[111,5,111,6],[112,5,112,6],[113,5,113,6],[114,5,114,6],[107,5,107,6],[108,5,108,6],[115,5,115,6],[116,5,116,6],[117,5,117,6],[118,5,118,6],[165,5,165,6],[135,5,136,6],[160,5,160,6],[161,5,161,6],[162,5,162,6],[163,5,163,6],[156,5,156,6],[157,5,157,6],[159,5,159,6],[158,5,158,6],[148,5,148,6],[151,5,151,6],[154,5,154,6],[155,5,155,6],[152,5,152,6],[153,5,153,6],[143,5,143,6],[150,5,150,6],[137,5,137,6],[140,5,140,6],[144,5,144,6],[147,5,147,6],[142,5,142,6],[138,5,138,6],[139,5,139,6],[164,5,164,6],[141,5,141,6],[145,5,145,6],[146,5,146,6],[121,5,121,6],[122,5,122,6],[123,5,123,6],[124,5,124,6],[125,5,125,6],[126,5,126,6],[149,5,149,6],[127,5,127,6],[128,5,128,6]]}
[]
[]
[]
[null,null,null,null,null,null,"FONTES DE FINANCIAMENTO"]
[]
[]
[]
[]
[null,null,1,null,"FINANCIAMENTO PÚBLICO - COMPONENTE EXPLORAÇÃO"]
[]
[]
[null,null,"ENTIDADES FINANCIADORAS",null,null,"RUBRICA FINANCIAMENTO",null,"REGISTO CONTABILÍSTICO"]
[null,null,null,null,null,null,null,"75 - EXPLORAÇÃO"]
[null,null,"ISS, IP",null,null,"ACORDOS DE COOPERAÇÃO"]
[null,null,null,null,null,"1101-Ama"]
[null,null,null,null,null,"1102-Ama (Cresce Familiar)","1102-Ama (Cresce Familiar)"]
[null,null,null,null,null,"1103-Cresce","1103-Cresce",175829.52]
[null,null,null,null,null,"1104-Estabelecimento de Educação Pré-Escolar","1104-Estabelecimento de Educação Pré-Escolar",81941.98]
[null,null,null,null,null,"1105-Centro de Atividades de Tempos Livres","1105-Centro de Atividades de Tempos Livres",10342.200000000001]
[null,null,null,null,null,"1201-Intervenção Precoce","1201-Intervenção Precoce"]
[null,null,null,null,null,"1202-Lar de Apoio","1202-Lar de Apoio"]
[null,null,null,null,null,"1203-Transporte de Pessoas com Deficiência","1203-Transporte de Pessoas com Deficiência"]
[null,null,null,null,null,"1301-Centro de Apoio Familiar e Aconselhamento Parental","1301-Centro de Apoio Familiar e Aconselhamento Parental"]
[null,null,null,null,null,"1302-Equipa de Rua de Apoio a Crianças e Jovens","1302-Equipa de Rua de Apoio a Crianças e Jovens"]
[null,null,null,null,null,"1303-Acolhimento Familiar para Crianças e Jovens","1303-Acolhimento Familiar para Crianças e Jovens"]
[null,null,null,null,null,"1304-Centro de Acolhimento Temporário","1304-Centro de Acolhimento Temporário"]
[null,null,null,null,null,"1305-Lar de Infância e Juventude","1305-Lar de Infância e Juventude"]
[null,null,null,null,null,"1306-Apartamento de Autonomização","1306-Apartamento de Autonomização"]
[null,null,null,null,null,"2101-Serviço de Apoio Domiciliário","2101-Serviço de Apoio Domiciliário"]
[null,null,null,null,null,"2102-Centro de Convívio","2102-Centro de Convívio"]
[null,null,null,null,null,"2103-Centro de Dia","2103-Centro de Dia"]
[null,null,null,null,null,"2104-Centro de Noite","2104-Centro de Noite"]
[null,null,null,null,null,"2105-Acolhimento Familiar para Pessoas Idosas","2105-Acolhimento Familiar para Pessoas Idosas"]
[null,null,null,null,null,"2106-Residência","2106-Residência"]
[null,null,null,null,null,"2107-Lar de Idosos","2107-Lar de Idosos"]
[null,null,null,null,null,"2201-Centro At./Acomp.Animação Pessoas com Deficiência","2201-Centro At./Acomp.Animação Pessoas com Deficiência"]
[null,null,null,null,null,"2202-Serviço de Apoio Domiciliário","2202-Serviço de Apoio Domiciliário",13049.64]
[null,null,null,null,null,"2203-Centro de Atividades Ocupacionais","2203-Centro de Atividades Ocupacionais"]
[null,null,null,null,null,"2204-Acolhimento Familiar para Pessoas Adultas com Deficiência","2204-Acolhimento Familiar para Pessoas Adultas com Deficiência"]
[null,null,null,null,null,"2205-Lar Residencial","2205-Lar Residencial"]
[null,null,null,null,null,"2206-Transporte de Pessoas com Deficiência","2206-Transporte de Pessoas com Deficiência"]
[null,null,null,null,null,"2301-Serviço de Apoio Domiciliário","2301-Serviço de Apoio Domiciliário"]
[null,null,null,null,null,"2302-Apoio Domiciliário Integrado","2302-Apoio Domiciliário Integrado"]
[null,null,null,null,null,"2303-Unidade de Apoio Integrado","2303-Unidade de Apoio Integrado"]
[null,null,null,null,null,"2401-Foro Sócio ocupacional","2401-Foro Sócio ocupacional"]
[null,null,null,null,null,"2402-Unidade de Vida Protegida","2402-Unidade de Vida Protegida"]
[null,null,null,null,null,"2403-Unidade de Vida Autónoma","2403-Unidade de Vida Autónoma"]
[null,null,null,null,null,"2404-Unidade de Vida Apoiada","2404-Unidade de Vida Apoiada"]
[null,null,null,null,null,"2501-Equipa de Rua para Pessoas Sem-Abrigo","2501-Equipa de Rua para Pessoas Sem-Abrigo"]
[null,null,null,null,null,"2502-Atelier Ocupacional","2502-Atelier Ocupacional"]
[null,null,null,null,null,"3101-Atendimento/Acompanhamento Social","3101-Atendimento/Acompanhamento Social"]
[null,null,null,null,null,"3102-Grupo de Autoajuda","3102-Grupo de Autoajuda"]
[null,null,null,null,null,"3103-Centro Comunitário","3103-Centro Comunitário"]
[null,null,null,null,null,"3104-Centro de Férias e Lazer","3104-Centro de Férias e Lazer"]
[null,null,null,null,null,"3105-Refeitório/Cantina Social","3105-Refeitório/Cantina Social"]
[null,null,null,null,null,"3106-Centro de Apoio à Vida","3106-Centro de Apoio à Vida"]
[null,null,null,null,null,"3107-Comunidade de Inserção","3107-Comunidade de Inserção"]
[null,null,null,null,null,"3108-Centro de Alojamento Temporário","3108-Centro de Alojamento Temporário"]
[null,null,null,null,null,"3109-Ajuda Alimentar","3109-Ajuda Alimentar"]
[null,null,null,null,null,"3201-Centro de Atendimento/Acompanhamento Psicossocial","3201-Centro de Atendimento/Acompanhamento Psicossocial"]
[null,null,null,null,null,"3202-Serviço de Apoio Domiciliário","3202-Serviço de Apoio Domiciliário"]
[null,null,null,null,null,"3203-Residência para Pessoas com VIH/SIDA","3203-Residência para Pessoas com VIH/SIDA"]
[null,null,null,null,null,"3301-Equipa de Intervenção Direta","3301-Equipa de Intervenção Direta"]
[null,null,null,null,null,"3302-Apartamento de Reinserção Social","3302-Apartamento de Reinserção Social"]
[null,null,null,null,null,"3401-Centro de Atendimento","3401-Centro de Atendimento"]
[null,null,null,null,null,"3402-Casa de Abrigo","3402-Casa de Abrigo"]
[null,null,null,null,null,"4101-Apoio Domiciliário para Guarda de Crianças","4101-Apoio Domiciliário para Guarda de Crianças"]
[null,null,null,null,null,"4102-Apoio em Regime Ambulatório","4102-Apoio em Regime Ambulatório"]
[null,null,null,null,null,"4103-Imprensa Braille","4103-Imprensa Braille"]
[null,null,null,null,null,"4104-Escola de Cães-guia","4104-Escola de Cães-guia"]
[null,null,null,null,null,"Outros acordos","Outros acordos"]
[null,null,null,null,null,"PROTOCOLOS","PROTOCOLOS"]
[null,null,null,null,null,"Sensibilizar, Envolver, Renovar, Esperança, Mais (SERE +)"]
[null,null,null,null,null,"Rendimento Social de Inserção (RSI)","Rendimento Social de Inserção (RSI)"]
[null,null,null,null,null,"Rede Nacional de Cuidados Continuados Integrados (RNCCI)","Rede Nacional de Cuidados Continuados Integrados (RNCCI)"]
[null,null,null,null,null,"Linha Nacional Emergência Social (LNES)"]
[null,null,null,null,null,"Outros protocolos","Outros protocolos"]
[null,null,null,null,null,"PROGRAMAS","PROGRAMAS"]
[null,null,null,null,null,"Programa Integrado de Educação e Formação (PIEF)","Programa Integrado de Educação e Formação (PIEF)"]
[null,null,null,null,null,"Contratos Locais de Desenvolvimento Social (CLDS)","Contratos Locais de Desenvolvimento Social (CLDS)"]
[null,null,null,null,null,"Prog. de Apoio Integrado a Idosos (PAII)","Programa de Apoio Integrado a Idosos (PAII)"]
[null,null,null,null,null,"Programa de Idosos em Lar (PILAR)"]
[null,null,null,null,null,"Programa de Emergência Social/Cantinas Sociais (PES)"]
[null,null,null,null,null,"Programa de apoio à 1ª Infância (PAPI)"]
[null,null,null,null,null,"Prog. Comunitário de Ajuda Alimentar a Carenciados (PCAAC)","Programa Comunitário de Ajuda Alimentar a Carenciados (PCAAC)"]
[null,null,null,null,null,"Prog. de Alargamento da Rede de Equipamentos Sociais (PARES)","Programa de Alargamento da Rede de Equipamentos Sociais (PARES)"]
[null,null,null,null,null,"Prog. de Apoio ao Investimentos a Respostas Sociais (POPH)","Programa de Apoio ao Investimentos a Respostas Sociais (POPH)"]
[null,null,null,null,null,"Medida de Apoio à Segurança dos Equipamentos Sociais (MASES)","Medida de Apoio à Segurança dos Equipamentos Sociais (MASES)"]
[null,null,null,null,null,"Programa Conforto Habitacional Para Pessoas Idosas (PCHI)","Programa Conforto Habitacional Para Pessoas Idosas (PCHI)"]
[null,null,null,null,null,"Outros programas","Outros programas"]
[null,null,null,null,null,"FUNDOS","FUNDOS"]
[null,null,null,null,null,"Reequilíbrio Financeiro","Reequilíbrio Financeiro"]
[null,null,null,null,null,"Compensação Sócioeconómica","Compensação Sócio-económica"]
[null,null,null,null,null,"Outros fundos","Outros protocolos"]
[null,null,"IGFSS",null,null,"Acordos de Cooperação","Acordos de Cooperação"]
[null,null,null,null,null,"Protocolos","Protocolos"]
[null,null,null,null,null,"Programas","Programas"]
[null,null,null,null,null,"Fundos","Fundos"]
[null,null,null,null,null,"Outros","Outros"]
[null,null,"IEFP, IP",null,null,"Acordos de Cooperação","Acordos de Cooperação"]
[null,null,null,null,null,"Protocolos","Protocolos"]
[null,null,null,null,null,"Programas","Programas"]
[null,null,null,null,null,"Fundos","Fundos"]
[null,null,null,null,null,"Outros","Outros"]
[null,null,"Autarquias ",null,"Autarquias ","Acordos de Cooperação","Acordos de Cooperação"]
[null,null,null,null,null,"Protocolos","Protocolos"]
[null,null,null,null,null,"Programas","Programas"]
[null,null,null,null,null,"Fundos","Fundos"]
[null,null,null,null,null,"Outros","Outros",5000]
[null,null,"Ministério da Educação",null,"Ministério da Educação","Acordos de Cooperação","Acordos de Cooperação"]
[null,null,null,null,null,"Protocolos","Protocolos"]
[null,null,null,null,null,"Programas","Programas"]
[null,null,null,null,null,"Fundos","Fundos"]
[null,null,null,null,null,"Outros","Outros"]
[null,null,"Ministério da Saúde",null,"Ministério da Saúde","Acordos de Cooperação","Acordos de Cooperação"]
[null,null,null,null,null,"Protocolos","Protocolos"]
[null,null,null,null,null,"Programas","Programas"]
[null,null,null,null,null,"Fundos","Fundos"]
[null,null,null,null,null,"Outros","Outros"]
[null,null,"Ministéria da Economia",null,"Ministéria da Economia","Acordos de Cooperação","Acordos de Cooperação"]
[null,null,null,null,null,"Protocolos","Protocolos"]
[null,null,null,null,null,"Programas","Programas"]
[null,null,null,null,null,"Fundos","Fundos"]
[null,null,null,null,null,"Outros","Outros"]
[null,null,"Outras Entidades Públicas",null,"Outras Entidades Públicas","Acordos de Cooperação","Acordos de Cooperação"]
[null,null,null,null,null,"Protocolos","Protocolos"]
[null,null,null,null,null,"Programas","Programas"]
[null,null,null,null,null,"Fundos","Fundos"]
[null,null,null,null,null,"Outros","Outros"]
[null,null,"TOTAL",null,null,null,null,{"$f":"SUM(H15:H129)","v":286163.34000000003}]
[]
[]
[null,null,2,null,"FINANCIAMENTO PÚBLICO - COMPONENTE INVESTIMENTO"]
[]
[]
[null,null,"ENTIDADES FINANCIADORAS",null,null,"RUBRICA FINANCIAMENTO",null,"REGISTO CONTABILÍSTICO","FLUXO FINANCEIRO"]
[null,null,null,null,null,null,null,"59 - INVESTIMENTO"]
[null,null,"ISS",null,null,"PROGRAMAS","PROGRAMAS",{"$f":"SUM(H139:H140)","v":0},{"$f":"SUM(I139:I140)","v":0}]
[null,null,null,null,null,"PIDDAC","PIDDAC"]
[null,null,null,null,null,"Outros","Outros"]
[null,null,null,null,null,"FUNDOS","FUNDOS",{"$f":"SUM(H142:H143)","v":0},{"$f":"SUM(I142:I143)","v":0}]
[null,null,null,null,null,"FSS","FSS"]
[null,null,null,null,null,"Outros","Outros"]
[null,null,null,null,null,"OUTROS","OUTROS",{"$f":"SUM(H145)","v":0},{"$f":"SUM(I145)","v":0}]
[null,null,null,null,null,"Outros","Outros"]
[null,null,"IGFSS",null,null,"Programas","Programas"]
[null,null,null,null,null,"Fundos","Fundos"]
[null,null,null,null,null,"Outros","Outros"]
[null,null,"IEFP, IP",null,null,"Programas","Programas"]
[null,null,null,null,null,"Fundos","Fundos"]
[null,null,null,null,null,"Outros","Outros"]
[null,null,"Autarquias ",null,null,"Programas","Programas"]
[null,null,null,null,null,"Fundos","Fundos"]
[null,null,null,null,null,"Outros","Outros"]
[null,null,"Ministério da Educação",null,null,"Programas","Programas"]
[null,null,null,null,null,"Fundos","Fundos"]
[null,null,null,null,null,"Outros","Outros"]
[null,null,"Ministério da Saúde",null,null,"Programas","Programas"]
[null,null,null,null,null,"Fundos","Fundos"]
[null,null,null,null,null,"Outros","Outros"]
[null,null,"Ministéria da Economia",null,null,"Programas","Programas"]
[null,null,null,null,null,"Fundos","Fundos"]
[null,null,null,null,null,"Outros","Outros"]
[null,null,"Outras Entidades Públicas",null,null,"Programas","Programas"]
[null,null,null,null,null,"Fundos","Fundos"]
[null,null,null,null,null,"Outros","Outros"]
[null,null,"TOTAL",null,null,null,null,{"$f":"SUM(H138,H141,H144,H146:H166)","v":0},{"$f":"SUM(I138,I141,I144,I146:I166)","v":0}]
[]
[]
[null,null,3,null,"FINANCIAMENTO PRIVADO"]
[]
[]
[null,null,"ENTIDADES FINANCIADORAS",null,null,"RUBRICA FINANCIAMENTO",null,"REGISTO CONTABILÍSTICO",null,"FLUXO FINANCEIRO"]
[null,null,null,null,null,null,null,"75 - EXPLORAÇÃO","59 - INVESTIMENTO"]

{"sheet":"IV-INVESTIMENTO","index":5,"n_rows":28,"n_cols":9,"rows_kept":28,"cut":false,"hidden":false,"merged":[[2,5,3,7],[24,2,24,4],[22,2,22,4],[23,2,23,4],[6,2,6,4],[7,2,7,4],[14,2,14,4],[8,2,8,4],[9,2,9,4],[10,2,10,4],[16,2,16,4],[17,2,17,4],[11,2,11,4],[12,2,12,4],[13,2,13,4],[15,2,15,4],[27,2,27,4],[25,2,25,4],[26,2,26,4],[18,2,18,4],[19,2,19,4],[20,2,20,4],[21,2,21,4]]}
[]
[]
[null,null,null,null,null,"INVESTIMENTO"]
[]
[]
[]
[null,null,"INVESTIMENTO MÉDIO E LONGO PRAZO",null,null,"VALOR",null,"INVESTIMENTOS EM CURSO","VALOR"]
[null,null,"Ativos Intangíveis",null,null,{"$f":"+F9+F10+F11+F12+F13+F14","v":0},null,"Novas aquisições (compras e prestações serviços)"]
[null,null,"Bens domínio público",null,null,null,null,"Adiantamentos"]
[null,null,"Goodwill",null,null,null,null,"Trabalhos própria Entidade"]
[null,null,"Projetos de desenvolvimento",null,null,null,null,"Transferência para Imobilizado pela conclusão obra (-)"]
[null,null,"Programas de Computador",null,null,null,null,"TOTAL INVESTIMENTO EM CURSO",{"$f":"+I8+I9+I10+I11","v":0}]
[null,null,"Propriedade Industrial "]
[null,null,"Outros Ativos intangíveis"]
[null,null,"Ativos Fixos Tangíveis",null,null,{"$f":"+F16+F17+F18+F19+F20+F21+F22+F23+F24","v":35000}]
[null,null,"Bens domínio público",null,null,null,null,"INVESTIMENTOS - CP","VALOR"]
[null,null,"Bens do Património Histórico e Cultural",null,null,null,null,"Outros ativos Financeiros"]
[null,null,"Terrenos e Recursos Naturais",null,null,null,null,"Outros passivos Financeiros"]
[null,null,"Edifícios e Outras Construções",null,null,null,null,"TOTAL INVESTIMENTO - CP",{"$f":"+I17+I18","v":0}]
[null,null,"Equipamento Básico"]
[null,null,"Equipamento de Transporte",null,null,35000]
[null,null,"Equipamento Administrativo"]
[null,null,"Equipamentos Biológicos"]
[null,null,"Outros ativos fixos tangíveis"]
[null,null,"Propriedades de Investimento"]
[null,null,"Investimentos Financeiros"]
[null,null,"Outros ativos Financeiros (não correntes detidos para venda)"]
[null,null,"TOTAL INVESTIMENTO - MLP",null,null,{"$f":"+F8+F15+F25+F26+F27","v":35000},null,"TOTAL NOVO INVESTIMENTO:",{"$f":"+F28+I12+I19","v":35000}]

{"sheet":"V-MEMÓRIA JUSTIFICATIVA ","index":6,"n_rows":56,"n_cols":40,"rows_kept":56,"cut":false,"hidden":false,"merged":[[7,2,8,3],[7,4,8,8]]}
[]
[]
[]
[]
[]
[]
[null,null,null,null,null,null,null,null,null,null,null,null,null,null,null,null,null,null,null,null,null,null,null,null,null,null,null,null,null,null,null,null,null,null,"TIPO",null,null,null,null,"Respostas sociais (xxxx)"]
[null,null,"#",null,"MEMÓRIA JUSTIFICATIVA",null,null,null,null,null,null,null,null,null,null,null,null,null,null,null,null,null,null,null,null,null,null,null,null,null,null,null,null,null,"Associação",null,null,null,null,"1101-Ama"]
[null,null,null,null,null,null,null,null,null,null,null,null,null,null,null,null,null,null,null,null,null,null,null,null,null,null,null,null,null,null,null,null,null,null,"Associação Mutualista",null,null,null,null,"1102-Ama (Cresce Familiar)"]
[null,null,null,null,null,null,null,null,null,null,null,null,null,null,null,null,null,null,null,null,null,null,null,null,null,null,null,null,null,null,null,null,null,null,"Casa do Povo",null,null,null,null,"1103-Cresce"]
[null,null,null,null,null,null,null,null,null,null,null,null,null,null,null,null,null,null,null,null,null,null,null,null,null,null,null,null,null,null,null,null,null,null,"Cooperativa",null,null,null,null,"1104-Estabelecimento de Educação Pré-Escolar"]
[]
[null,null,null,null,null,null,"    "]
[]
[null,null,null,null,null,null,null,null,null,null,"ORÇAMENTO 2026"]
[]
[]
[null,null,null,null,"Foram considerados como base para a elaboração deste orçamento, os seguintes documentos:"]
[]
[null,null,null,null,"(&) - Balancetes de 2025 (já disponíveis)"]
[]
[]
[null,null,null,null,"A  exemplo dos últimos anos, têm vindo os Orgãos responsáveis desta Instituição com muito "]
[null,null,null,null,"esforço a ajustar a forma adequada para que a mesma continue a sua atividade."]
[null,null,null,null,"Verificou-se um aumento na liquidez da tesouraria, o que faz com que os Orgãos desta "]
[null,null,null,null,"Instituição continuem a acreditar que a mesma começa a reunir condições para continuar a "]
[null,null,null,null,"prestar serviço aos seus utentes, ainda com mais qualidade."]
[]
[]
[]
[]
[]
[]
[]
[]
[]
[]
[]
[]
[]
[]
[]
[]
[]
[]
[]
[]
[]
[]
[]
[]
[]
[]
[null,null,null,null,null,null,null,null,null,null,null,null,null,null,null,null,null,null,null,null,null,null,null,null,null,null,null,null,null,null,null,null,null,null,"Fundação",null,null,null,null,"1105-Centro de Atividades de Tempos Livres"]
[null,null,null,null,null,null,null,null,null,null,null,null,null,null,null,null,null,null,null,null,null,null,null,null,null,null,null,null,null,null,null,null,null,null,"2º Retificativo",null,null,null,null,"1304-Centro de Acolhimento Temporário"]
[null,null,null,null,null,null,null,null,null,null,null,null,null,null,null,null,null,null,null,null,null,null,null,null,null,null,null,null,null,null,null,null,null,null,"3º Retificativo",null,null,null,null,"1305-Lar de Infância e Juventude"]

{"sheet":"dados I","index":7,"n_rows":2,"n_cols":165,"rows_kept":2,"cut":false,"hidden":true,"merged":[]}
[{"$f":"+'I-DADOS GERAIS'!B125","v":"NISS"},{"$f":"+'I-DADOS GERAIS'!B126","v":"NIF"},{"$f":"+'I-DADOS GERAIS'!$B127","v":"TIPO"},{"$f":"+'I-DADOS GERAIS'!$B128","v":"ANO ECONÓMICO"},{"$f":"+'I-DADOS GERAIS'!$B129","v":"VERSÃO"},{"$f":"+'I-DADOS GERAIS'!$B130","v":"DATA ATA"},{"$f":"+'I-DADOS GERAIS'!$B131","v":"CARGOS_MEMBROS_ATA_1"},{"$f":"+'I-DADOS GERAIS'!$B132","v":"CARGOS_MEMBROS_ATA_2"},{"$f":"+'I-DADOS GERAIS'!$B133","v":"CARGOS_MEMBROS_ATA_3"},{"$f":"+'I-DADOS GERAIS'!$B134","v":"CARGOS_MEMBROS_ATA_4"},{"$f":"+'I-DADOS GERAIS'!$B135","v":"CARGOS_MEMBROS_ATA_5"},{"$f":"+'I-DADOS GERAIS'!$B136","v":"CARGOS_MEMBROS_ATA_6"},{"$f":"+'I-DADOS GERAIS'!$B137","v":"NIF_MEMBROS_ATA_1"},{"$f":"+'I-DADOS GERAIS'!$B138","v":"NIF_MEMBROS_ATA_2"},{"$f":"+'I-DADOS GERAIS'!$B139","v":"NIF_MEMBROS_ATA_3"},{"$f":"+'I-DADOS GERAIS'!$B140","v":"NIF_MEMBROS_ATA_4"},{"$f":"+'I-DADOS GERAIS'!$B141","v":"NIF_MEMBROS_ATA_5"},{"$f":"+'I-DADOS GERAIS'!$B142","v":"NIF_MEMBROS_ATA_6"},{"$f":"+'I-DADOS GERAIS'!$B143","v":"DATA_PARECER_CONSELHO_FISCAL"},{"$f":"+'I-DADOS GERAIS'!$B144","v":"DECISÃO_PARECER_CONSELHO_FISCAL"},{"$f":"+'I-DADOS GERAIS'!$B145","v":"CARGOS_MEMBROS_CF_1"},{"$f":"+'I-DADOS GERAIS'!$B146","v":"CARGOS_MEMBROS_CF_2"},{"$f":"+'I-DADOS GERAIS'!$B147","v":"CARGOS_MEMBROS_CF_3"},{"$f":"+'I-DADOS GERAIS'!$B148","v":"CARGOS_MEMBROS_CF_4"},{"$f":"+'I-DADOS GERAIS'!$B149","v":"CARGOS_MEMBROS_CF_5"},{"$f":"+'I-DADOS GERAIS'!$B150","v":"CARGOS_MEMBROS_CF_6"},{"$f":"+'I-DADOS GERAIS'!$B151","v":"NIF_MEMBROS_CF_1"},{"$f":"+'I-DADOS GERAIS'!$B152","v":"NIF_MEMBROS_CF_2"},{"$f":"+'I-DADOS GERAIS'!$B153","v":"NIF_MEMBROS_CF_3"},{"$f":"+'I-DADOS GERAIS'!$B154","v":"NIF_MEMBROS_CF_4"},{"$f":"+'I-DADOS GERAIS'!$B155","v":"NIF_MEMBROS_CF_5"},{"$f":"+'I-DADOS GERAIS'!$B156","v":"NIF_MEMBROS_CF_6"},{"$f":"+'I-DADOS GERAIS'!$B157","v":"RS_COMPARTICIPADAS"},{"$f":"+'I-DADOS GERAIS'!$B158","v":"RS_NÃOCOMPARTICIPADAS"},{"$f":"+'I-DADOS GERAIS'!$B159","v":"ATIVIDADES"},{"$f":"+'I-DADOS GERAIS'!$B160","v":"OS_REMUNERADOS"},{"$f":"+'I-DADOS GERAIS'!$B161","v":"OS_NÃO REMUNERADOS"},{"$f":"+'I-DADOS GERAIS'!$B162","v":"TIPO_RS_1"},{"$f":"+'I-DADOS GERAIS'!$B163","v":"N.º MÉDIO UTENTES_1"},{"$f":"+'I-DADOS GERAIS'!$B164","v":"VALOR UNITÁRIO COMPARTICIPAÇÃO_1"},{"$f":"+'I-DADOS GERAIS'!$B165","v":"VALOR MÉDIO UNITÁRIO FAMÍLIAS_1"},{"$f":"+'I-DADOS GERAIS'!$B166","v":"RECEITA_1"},{"$f":"+'I-DADOS GERAIS'!$B167","v":"N.º MÉDIO RECURSOS HUMANOS (FTE)_1"},{"$f":"+'I-DADOS GERAIS'!$B168","v":"N.º MÉDIO VOLUNTÁRIOS (FTE)_1"},{"$f":"+'I-DADOS GERAIS'!$B169","v":"TIPO_RS_2"},{"$f":"+'I-DADOS GERAIS'!$B170","v":"N.º MÉDIO UTENTES_2"},{"$f":"+'I-DADOS GERAIS'!$B171","v":"VALOR UNITÁRIO COMPARTICIPAÇÃO_2"},{"$f":"+'I-DADOS GERAIS'!$B172","v":"VALOR MÉDIO UNITÁRIO FAMÍLIAS_2"},{"$f":"+'I-DADOS GERAIS'!$B173","v":"RECEITA_2"},{"$f":"+'I-DADOS GERAIS'!$B174","v":"N.º MÉDIO RECURSOS HUMANOS (FTE)_2"},{"$f":"+'I-DADOS GERAIS'!$B175","v":"N.º MÉDIO VOLUNTÁRIOS (FTE)_2"},{"$f":"+'I-DADOS GERAIS'!$B176","v":"TIPO_RS_3"},{"$f":"+'I-DADOS GERAIS'!$B177","v":"N.º MÉDIO UTENTES_3"},{"$f":"+'I-DADOS GERAIS'!$B178","v":"VALOR UNITÁRIO COMPARTICIPAÇÃO_3"},{"$f":"+'I-DADOS GERAIS'!$B179","v":"VALOR MÉDIO UNITÁRIO FAMÍLIAS_3"},{"$f":"+'I-DADOS GERAIS'!$B180","v":"RECEITA_3"},{"$f":"+'I-DADOS GERAIS'!$B181","v":"N.º MÉDIO RECURSOS HUMANOS (FTE)_3"},{"$f":"+'I-DADOS GERAIS'!$B182","v":"N.º MÉDIO VOLUNTÁRIOS (FTE)_3"},{"$f":"+'I-DADOS GERAIS'!$B183","v":"TIPO_RS_4"},{"$f":"+'I-DADOS GERAIS'!$B184","v":"N.º MÉDIO UTENTES_4"},{"$f":"+'I-DADOS GERAIS'!$B185","v":"VALOR UNITÁRIO COMPARTICIPAÇÃO_4"},{"$f":"+'I-DADOS GERAIS'!$B186","v":"VALOR MÉDIO UNITÁRIO FAMÍLIAS_4"},{"$f":"+'I-DADOS GERAIS'!$B187","v":"RECEITA_4"},{"$f":"+'I-DADOS GERAIS'!$B188","v":"N.º MÉDIO RECURSOS HUMANOS (FTE)_4"},{"$f":"+'I-DADOS GERAIS'!$B189","v":"N.º MÉDIO VOLUNTÁRIOS (FTE)_4"},{"$f":"+'I-DADOS GERAIS'!$B190","v":"TIPO_RS_5"},{"$f":"+'I-DADOS GERAIS'!$B191","v":"N.º MÉDIO UTENTES_5"},{"$f":"+'I-DADOS GERAIS'!$B192","v":"VALOR UNITÁRIO COMPARTICIPAÇÃO_5"},{"$f":"+'I-DADOS GERAIS'!$B193","v":"VALOR MÉDIO UNITÁRIO FAMÍLIAS_5"},{"$f":"+'I-DADOS GERAIS'!$B194","v":"RECEITA_5"},{"$f":"+'I-DADOS GERAIS'!$B195","v":"N.º MÉDIO RECURSOS HUMANOS (FTE)_5"},{"$f":"+'I-DADOS GERAIS'!$B196","v":"N.º MÉDIO VOLUNTÁRIOS (FTE)_5"},{"$f":"+'I-DADOS GERAIS'!$B197","v":"TIPO_RS_6"},{"$f":"+'I-DADOS GERAIS'!$B198","v":"N.º MÉDIO UTENTES_6"},{"$f":"+'I-DADOS GERAIS'!$B199","v":"VALOR UNITÁRIO COMPARTICIPAÇÃO_6"},{"$f":"+'I-DADOS GERAIS'!$B200","v":"VALOR MÉDIO UNITÁRIO FAMÍLIAS_6"},{"$f":"+'I-DADOS GERAIS'!$B201","v":"RECEITA_6"},{"$f":"+'I-DADOS GERAIS'!$B202","v":"N.º MÉDIO RECURSOS HUMANOS (FTE)_6"},{"$f":"+'I-DADOS GERAIS'!$B203","v":"N.º MÉDIO VOLUNTÁRIOS (FTE)_6"},{"$f":"+'I-DADOS GERAIS'!$B204","v":"TIPO_RS_7"},{"$f":"+'I-DADOS GERAIS'!$B205","v":"N.º MÉDIO UTENTES_7"},{"$f":"+'I-DADOS GERAIS'!$B206","v":"VALOR UNITÁRIO COMPARTICIPAÇÃO_7"},{"$f":"+'I-DADOS GERAIS'!$B207","v":"VALOR MÉDIO UNITÁRIO FAMÍLIAS_7"},{"$f":"+'I-DADOS GERAIS'!$B208","v":"RECEITA_7"},{"$f":"+'I-DADOS GERAIS'!$B209","v":"N.º MÉDIO RECURSOS HUMANOS (FTE)_7"},{"$f":"+'I-DADOS GERAIS'!$B210","v":"N.º MÉDIO VOLUNTÁRIOS (FTE)_7"},{"$f":"+'I-DADOS GERAIS'!$B211","v":"TIPO_RS_8"},{"$f":"+'I-DADOS GERAIS'!$B212","v":"N.º MÉDIO UTENTES_8"},{"$f":"+'I-DADOS GERAIS'!$B213","v":"VALOR UNITÁRIO COMPARTICIPAÇÃO_8"},{"$f":"+'I-DADOS GERAIS'!$B214","v":"VALOR MÉDIO UNITÁRIO FAMÍLIAS_8"},{"$f":"+'I-DADOS GERAIS'!$B215","v":"RECEITA_8"},{"$f":"+'I-DADOS GERAIS'!$B216","v":"N.º MÉDIO RECURSOS HUMANOS (FTE)_8"},{"$f":"+'I-DADOS GERAIS'!$B217","v":"N.º MÉDIO VOLUNTÁRIOS (FTE)_8"},{"$f":"+'I-DADOS GERAIS'!$B218","v":"TIPO_RS_9"},{"$f":"+'I-DADOS GERAIS'!$B219","v":"N.º MÉDIO UTENTES_9"},{"$f":"+'I-DADOS GERAIS'!$B220","v":"VALOR UNITÁRIO COMPARTICIPAÇÃO_9"},{"$f":"+'I-DADOS GERAIS'!$B221","v":"VALOR MÉDIO UNITÁRIO FAMÍLIAS_9"},{"$f":"+'I-DADOS GERAIS'!$B222","v":"RECEITA_9"},{"$f":"+'I-DADOS GERAIS'!$B223","v":"N.º MÉDIO RECURSOS HUMANOS (FTE)_9"},{"$f":"+'I-DADOS GERAIS'!$B224","v":"N.º MÉDIO VOLUNTÁRIOS (FTE)_9"},{"$f":"+'I-DADOS GERAIS'!$B225","v":"TIPO_RS_10"},{"$f":"+'I-DADOS GERAIS'!$B226","v":"N.º MÉDIO UTENTES_10"},{"$f":"+'I-DADOS GERAIS'!$B227","v":"VALOR UNITÁRIO COMPARTICIPAÇÃO_10"},{"$f":"+'I-DADOS GERAIS'!$B228","v":"VALOR MÉDIO UNITÁRIO FAMÍLIAS_10"},{"$f":"+'I-DADOS GERAIS'!$B229","v":"RECEITA_10"},{"$f":"+'I-DADOS GERAIS'!$B230","v":"N.º MÉDIO RECURSOS HUMANOS (FTE)_10"},{"$f":"+'I-DADOS GERAIS'!$B231","v":"N.º MÉDIO VOLUNTÁRIOS (FTE)_10"},{"$f":"+'I-DADOS GERAIS'!$B232","v":"TIPO_RS_11"},{"$f":"+'I-DADOS GERAIS'!$B233","v":"N.º MÉDIO UTENTES_11"},{"$f":"+'I-DADOS GERAIS'!$B234","v":"VALOR UNITÁRIO COMPARTICIPAÇÃO_11"},{"$f":"+'I-DADOS GERAIS'!$B235","v":"VALOR MÉDIO UNITÁRIO FAMÍLIAS_11"},{"$f":"+'I-DADOS GERAIS'!$B236","v":"RECEITA_11"},{"$f":"+'I-DADOS GERAIS'!$B237","v":"N.º MÉDIO RECURSOS HUMANOS (FTE)_11"},{"$f":"+'I-DADOS GERAIS'!$B238","v":"N.º MÉDIO VOLUNTÁRIOS (FTE)_11"},{"$f":"+'I-DADOS GERAIS'!$B239","v":"TIPO_RS_12"},{"$f":"+'I-DADOS GERAIS'!$B240","v":"N.º MÉDIO UTENTES_12"},{"$f":"+'I-DADOS GERAIS'!$B241","v":"VALOR UNITÁRIO COMPARTICIPAÇÃO_12"},{"$f":"+'I-DADOS GERAIS'!$B242","v":"VALOR MÉDIO UNITÁRIO FAMÍLIAS_12"},{"$f":"+'I-DADOS GERAIS'!$B243","v":"RECEITA_12"},{"$f":"+'I-DADOS GERAIS'!$B244","v":"N.º MÉDIO RECURSOS HUMANOS (FTE)_12"},{"$f":"+'I-DADOS GERAIS'!$B245","v":"N.º MÉDIO VOLUNTÁRIOS (FTE)_12"},{"$f":"+'I-DADOS GERAIS'!$B246","v":"TIPO_RS_13"},{"$f":"+'I-DADOS GERAIS'!$B247","v":"N.º MÉDIO UTENTES_13"},{"$f":"+'I-DADOS GERAIS'!$B248","v":"VALOR UNITÁRIO COMPARTICIPAÇÃO_13"},{"$f":"+'I-DADOS GERAIS'!$B249","v":"VALOR MÉDIO UNITÁRIO FAMÍLIAS_13"},{"$f":"+'I-DADOS GERAIS'!$B250","v":"RECEITA_13"},{"$f":"+'I-DADOS GERAIS'!$B251","v":"N.º MÉDIO RECURSOS HUMANOS (FTE)_13"},{"$f":"+'I-DADOS GERAIS'!$B252","v":"N.º MÉDIO VOLUNTÁRIOS (FTE)_13"},{"$f":"+'I-DADOS GERAIS'!$B253","v":"TIPO_RS_14"},{"$f":"+'I-DADOS GERAIS'!$B254","v":"N.º MÉDIO UTENTES_14"},{"$f":"+'I-DADOS GERAIS'!$B255","v":"VALOR UNITÁRIO COMPARTICIPAÇÃO_14"},{"$f":"+'I-DADOS GERAIS'!$B256","v":"VALOR MÉDIO UNITÁRIO FAMÍLIAS_14"},{"$f":"+'I-DADOS GERAIS'!$B257","v":"RECEITA_14"},{"$f":"+'I-DADOS GERAIS'!$B258","v":"N.º MÉDIO RECURSOS HUMANOS (FTE)_14"},{"$f":"+'I-DADOS GERAIS'!$B259","v":"N.º MÉDIO VOLUNTÁRIOS (FTE)_14"},{"$f":"+'I-DADOS GERAIS'!$B260","v":"TIPO_RS_15"},{"$f":"+'I-DADOS GERAIS'!$B261","v":"N.º MÉDIO UTENTES_15"},{"$f":"+'I-DADOS GERAIS'!$B262","v":"VALOR UNITÁRIO COMPARTICIPAÇÃO_15"},{"$f":"+'I-DADOS GERAIS'!$B263","v":"VALOR MÉDIO UNITÁRIO FAMÍLIAS_15"},{"$f":"+'I-DADOS GERAIS'!$B264","v":"RECEITA_15"},{"$f":"+'I-DADOS GERAIS'!$B265","v":"N.º MÉDIO RECURSOS HUMANOS (FTE)_15"},{"$f":"+'I-DADOS GERAIS'!$B266","v":"N.º MÉDIO VOLUNTÁRIOS (FTE)_15"},{"$f":"+'I-DADOS GERAIS'!$B267","v":"TIPO_RS_16"},{"$f":"+'I-DADOS GERAIS'!$B268","v":"N.º MÉDIO UTENTES_16"},{"$f":"+'I-DADOS GERAIS'!$B269","v":"VALOR UNITÁRIO COMPARTICIPAÇÃO_16"},{"$f":"+'I-DADOS GERAIS'!$B270","v":"VALOR MÉDIO UNITÁRIO FAMÍLIAS_16"},{"$f":"+'I-DADOS GERAIS'!$B271","v":"RECEITA_16"},{"$f":"+'I-DADOS GERAIS'!$B272","v":"N.º MÉDIO RECURSOS HUMANOS (FTE)_16"},{"$f":"+'I-DADOS GERAIS'!$B273","v":"N.º MÉDIO VOLUNTÁRIOS (FTE)_16"},{"$f":"+'I-DADOS GERAIS'!$B274","v":"TIPO_RS_17"},{"$f":"+'I-DADOS GERAIS'!$B275","v":"N.º MÉDIO UTENTES_17"},{"$f":"+'I-DADOS GERAIS'!$B276","v":"VALOR UNITÁRIO COMPARTICIPAÇÃO_17"},{"$f":"+'I-DADOS GERAIS'!$B277","v":"VALOR MÉDIO UNITÁRIO FAMÍLIAS_17"},{"$f":"+'I-DADOS GERAIS'!$B278","v":"RECEITA_17"},{"$f":"+'I-DADOS GERAIS'!$B279","v":"N.º MÉDIO RECURSOS HUMANOS (FTE)_17"},{"$f":"+'I-DADOS GERAIS'!$B280","v":"N.º MÉDIO VOLUNTÁRIOS (FTE)_17"},{"$f":"+'I-DADOS GERAIS'!$B281","v":"TIPO_RS_18"},{"$f":"+'I-DADOS GERAIS'!$B282","v":"N.º MÉDIO UTENTES_18"},{"$f":"+'I-DADOS GERAIS'!$B283","v":"VALOR UNITÁRIO COMPARTICIPAÇÃO_18"},{"$f":"+'I-DADOS GERAIS'!$B284","v":"VALOR MÉDIO UNITÁRIO FAMÍLIAS_18"},{"$f":"+'I-DADOS GERAIS'!$B285","v":"RECEITA_18"},{"$f":"+'I-DADOS GERAIS'!$B286","v":"N.º MÉDIO RECURSOS HUMANOS (FTE)_18"},{"$f":"+'I-DADOS GERAIS'!$B287","v":"N.º MÉDIO VOLUNTÁRIOS (FTE)_18"},{"$f":"+'I-DADOS GERAIS'!$B288","v":"NIF_TOC"},{"$f":"+'I-DADOS GERAIS'!$B289","v":"NIF_RESPONSÁVEL"}]
[{"$f":"+'I-DADOS GERAIS'!$C125","v":20008838749},{"$f":"+'I-DADOS GERAIS'!$C126","v":502065591},{"$f":"+'I-DADOS GERAIS'!$C127","v":"Associação"},{"$f":"+'I-DADOS GERAIS'!$C128","v":2026},{"$f":"+'I-DADOS GERAIS'!$C129","v":"Inicial"},{"$f":"+'I-DADOS GERAIS'!$C130","v":45968},{"$f":"+'I-DADOS GERAIS'!$C131","v":"Presidente"},{"$f":"+'I-DADOS GERAIS'!$C132","v":"Secretário"},{"$f":"+'I-DADOS GERAIS'!$C133","v":"Secretário"},{"$f":"+'I-DADOS GERAIS'!$C134","v":"Presidente"},{"$f":"+'I-DADOS GERAIS'!$C135","v":"Secretário"},{"$f":"+'I-DADOS GERAIS'!$C136","v":"Tesoureiro"},{"$f":"+'I-DADOS GERAIS'!$C137","v":182581632},{"$f":"+'I-DADOS GERAIS'!$C138","v":124271634},{"$f":"+'I-DADOS GERAIS'!$C139","v":130040282},{"$f":"+'I-DADOS GERAIS'!$C140","v":129790281},{"$f":"+'I-DADOS GERAIS'!$C141","v":129443603},{"$f":"+'I-DADOS GERAIS'!$C142","v":201640090},{"$f":"+'I-DADOS GERAIS'!$C143","v":45971},{"$f":"+'I-DADOS GERAIS'!$C144","v":"Favorável"},{"$f":"+'I-DADOS GERAIS'!$C145","v":"Presidente"},{"$f":"+'I-DADOS GERAIS'!$C146","v":"Vogal"},{"$f":"+'I-DADOS GERAIS'!$C147","v":"Vogal"},{"$f":"+'I-DADOS GERAIS'!$C148","v":0},{"$f":"+'I-DADOS GERAIS'!$C149","v":0},{"$f":"+'I-DADOS GERAIS'!$C150","v":0},{"$f":"+'I-DADOS GERAIS'!$C151","v":199263370},{"$f":"+'I-DADOS GERAIS'!$C152","v":101591578},{"$f":"+'I-DADOS GERAIS'!$C153","v":130040282},{"$f":"+'I-DADOS GERAIS'!$C154","v":0},{"$f":"+'I-DADOS GERAIS'!$C155","v":0},{"$f":"+'I-DADOS GERAIS'!$C156","v":0},{"$f":"+'I-DADOS GERAIS'!$C157","v":4},{"$f":"+'I-DADOS GERAIS'!$C158","v":0},{"$f":"+'I-DADOS GERAIS'!$C159","v":0},{"$f":"+'I-DADOS GERAIS'!$C160","v":0},{"$f":"+'I-DADOS GERAIS'!$C161","v":9},{"$f":"+'I-DADOS GERAIS'!$C162","v":"1103-Creche"},{"$f":"+'I-DADOS GERAIS'!$C163","v":20},{"$f":"+'I-DADOS GERAIS'!$C164","v":8791.48},{"$f":"+'I-DADOS GERAIS'!$C165","v":0},{"$f":"+'I-DADOS GERAIS'!$C166","v":175829.59999999998},{"$f":"+'I-DADOS GERAIS'!$C167","v":0},{"$f":"+'I-DADOS GERAIS'!$C168","v":4},{"$f":"+'I-DADOS GERAIS'!$C169","v":"1104-Estabelecimento de Educação Pré-Escolar"},{"$f":"+'I-DADOS GERAIS'!$C170","v":25},{"$f":"+'I-DADOS GERAIS'!$C171","v":3277.68},{"$f":"+'I-DADOS GERAIS'!$C172","v":2263.8000000000002},{"$f":"+'I-DADOS GERAIS'!$C173","v":138537},{"$f":"+'I-DADOS GERAIS'!$C174","v":0},{"$f":"+'I-DADOS GERAIS'!$C175","v":4},{"$f":"+'I-DADOS GERAIS'!$C176","v":"1105-Centro de Atividades de Tempos Livres"},{"$f":"+'I-DADOS GERAIS'!$C177","v":15},{"$f":"+'I-DADOS GERAIS'!$C178","v":689.48},{"$f":"+'I-DADOS GERAIS'!$C179","v":1184.33},{"$f":"+'I-DADOS GERAIS'!$C180","v":28107.149999999998},{"$f":"+'I-DADOS GERAIS'!$C181","v":0},{"$f":"+'I-DADOS GERAIS'!$C182","v":2},{"$f":"+'I-DADOS GERAIS'!$C183","v":"2202-Serviço de Apoio Domiciliário"},{"$f":"+'I-DADOS GERAIS'!$C184","v":3},{"$f":"+'I-DADOS GERAIS'!$C185","v":4349.88},{"$f":"+'I-DADOS GERAIS'!$C186","v":3708},{"$f":"+'I-DADOS GERAIS'!$C187","v":24173.64},{"$f":"+'I-DADOS GERAIS'!$C188","v":0},{"$f":"+'I-DADOS GERAIS'!$C189","v":2},{"$f":"+'I-DADOS GERAIS'!$C190","v":0},{"$f":"+'I-DADOS GERAIS'!$C191","v":0},{"$f":"+'I-DADOS GERAIS'!$C192","v":0},{"$f":"+'I-DADOS GERAIS'!$C193","v":0},{"$f":"+'I-DADOS GERAIS'!$C194","v":0},{"$f":"+'I-DADOS GERAIS'!$C195","v":0},{"$f":"+'I-DADOS GERAIS'!$C196","v":0},{"$f":"+'I-DADOS GERAIS'!$C197","v":0},{"$f":"+'I-DADOS GERAIS'!$C198","v":0},{"$f":"+'I-DADOS GERAIS'!$C199","v":0},{"$f":"+'I-DADOS GERAIS'!$C200","v":0},{"$f":"+'I-DADOS GERAIS'!$C201","v":0},{"$f":"+'I-DADOS GERAIS'!$C202","v":0},{"$f":"+'I-DADOS GERAIS'!$C203","v":0},{"$f":"+'I-DADOS GERAIS'!$C204","v":0},{"$f":"+'I-DADOS GERAIS'!$C205","v":0},{"$f":"+'I-DADOS GERAIS'!$C206","v":0},{"$f":"+'I-DADOS GERAIS'!$C207","v":0},{"$f":"+'I-DADOS GERAIS'!$C208","v":0},{"$f":"+'I-DADOS GERAIS'!$C209","v":0},{"$f":"+'I-DADOS GERAIS'!$C210","v":0},{"$f":"+'I-DADOS GERAIS'!$C211","v":0},{"$f":"+'I-DADOS GERAIS'!$C212","v":0},{"$f":"+'I-DADOS GERAIS'!$C213","v":0},{"$f":"+'I-DADOS GERAIS'!$C214","v":0},{"$f":"+'I-DADOS GERAIS'!$C215","v":0},{"$f":"+'I-DADOS GERAIS'!$C216","v":0},{"$f":"+'I-DADOS GERAIS'!$C217","v":0},{"$f":"+'I-DADOS GERAIS'!$C218","v":0},{"$f":"+'I-DADOS GERAIS'!$C219","v":0},{"$f":"+'I-DADOS GERAIS'!$C220","v":0},{"$f":"+'I-DADOS GERAIS'!$C221","v":0},{"$f":"+'I-DADOS GERAIS'!$C222","v":0},{"$f":"+'I-DADOS GERAIS'!$C223","v":0},{"$f":"+'I-DADOS GERAIS'!$C224","v":0},{"$f":"+'I-DADOS GERAIS'!$C225","v":0},{"$f":"+'I-DADOS GERAIS'!$C226","v":0},{"$f":"+'I-DADOS GERAIS'!$C227","v":0},{"$f":"+'I-DADOS GERAIS'!$C228","v":0},{"$f":"+'I-DADOS GERAIS'!$C229","v":0},{"$f":"+'I-DADOS GERAIS'!$C230","v":0},{"$f":"+'I-DADOS GERAIS'!$C231","v":0},{"$f":"+'I-DADOS GERAIS'!$C232","v":0},{"$f":"+'I-DADOS GERAIS'!$C233","v":0},{"$f":"+'I-DADOS GERAIS'!$C234","v":0},{"$f":"+'I-DADOS GERAIS'!$C235","v":0},{"$f":"+'I-DADOS GERAIS'!$C236","v":0},{"$f":"+'I-DADOS GERAIS'!$C237","v":0},{"$f":"+'I-DADOS GERAIS'!$C238","v":0},{"$f":"+'I-DADOS GERAIS'!$C239","v":0},{"$f":"+'I-DADOS GERAIS'!$C240","v":0},{"$f":"+'I-DADOS GERAIS'!$C241","v":0},{"$f":"+'I-DADOS GERAIS'!$C242","v":0},{"$f":"+'I-DADOS GERAIS'!$C243","v":0},{"$f":"+'I-DADOS GERAIS'!$C244","v":0},{"$f":"+'I-DADOS GERAIS'!$C245","v":0},{"$f":"+'I-DADOS GERAIS'!$C246","v":0},{"$f":"+'I-DADOS GERAIS'!$C247","v":0},{"$f":"+'I-DADOS GERAIS'!$C248","v":0},{"$f":"+'I-DADOS GERAIS'!$C249","v":0},{"$f":"+'I-DADOS GERAIS'!$C250","v":0},{"$f":"+'I-DADOS GERAIS'!$C251","v":0},{"$f":"+'I-DADOS GERAIS'!$C252","v":0},{"$f":"+'I-DADOS GERAIS'!$C253","v":0},{"$f":"+'I-DADOS GERAIS'!$C254","v":0},{"$f":"+'I-DADOS GERAIS'!$C255","v":0},{"$f":"+'I-DADOS GERAIS'!$C256","v":0},{"$f":"+'I-DADOS GERAIS'!$C257","v":0},{"$f":"+'I-DADOS GERAIS'!$C258","v":0},{"$f":"+'I-DADOS GERAIS'!$C259","v":0},{"$f":"+'I-DADOS GERAIS'!$C260","v":0},{"$f":"+'I-DADOS GERAIS'!$C261","v":0},{"$f":"+'I-DADOS GERAIS'!$C262","v":0},{"$f":"+'I-DADOS GERAIS'!$C263","v":0},{"$f":"+'I-DADOS GERAIS'!$C264","v":0},{"$f":"+'I-DADOS GERAIS'!$C265","v":0},{"$f":"+'I-DADOS GERAIS'!$C266","v":0},{"$f":"+'I-DADOS GERAIS'!$C267","v":0},{"$f":"+'I-DADOS GERAIS'!$C268","v":0},{"$f":"+'I-DADOS GERAIS'!$C269","v":0},{"$f":"+'I-DADOS GERAIS'!$C270","v":0},{"$f":"+'I-DADOS GERAIS'!$C271","v":0},{"$f":"+'I-DADOS GERAIS'!$C272","v":0},{"$f":"+'I-DADOS GERAIS'!$C273","v":0},{"$f":"+'I-DADOS GERAIS'!$C274","v":0},{"$f":"+'I-DADOS GERAIS'!$C275","v":0},{"$f":"+'I-DADOS GERAIS'!$C276","v":0},{"$f":"+'I-DADOS GERAIS'!$C277","v":0},{"$f":"+'I-DADOS GERAIS'!$C278","v":0},{"$f":"+'I-DADOS GERAIS'!$C279","v":0},{"$f":"+'I-DADOS GERAIS'!$C280","v":0},{"$f":"+'I-DADOS GERAIS'!$C281","v":0},{"$f":"+'I-DADOS GERAIS'!$C282","v":0},{"$f":"+'I-DADOS GERAIS'!$C283","v":0},{"$f":"+'I-DADOS GERAIS'!$C284","v":0},{"$f":"+'I-DADOS GERAIS'!$C285","v":0},{"$f":"+'I-DADOS GERAIS'!$C286","v":0},{"$f":"+'I-DADOS GERAIS'!$C287","v":0},{"$f":"+'I-DADOS GERAIS'!$C288","v":128883790},{"$f":"+'I-DADOS GERAIS'!$C289","v":129790281}]

{"sheet":"dados II","index":8,"n_rows":114,"n_cols":24,"rows_kept":114,"cut":false,"hidden":true,"merged":[]}
["NISS","NIF","CONTA","DESCRIÇÃO","TOTAL","RS_COMP_1","RS_COMP_2","RS_COMP_3","RS_COMP_4","RS_COMP_5","RS_COMP_6","RS_NÃOCOMP_1","RS_NÃOCOMP_2","RS_NÃOCOMP_3","RS_NÃOCOMP_4","RS_NÃOCOMP_5","RS_NÃOCOMP_6","A_1","A_2","A_3","A_4","A_5","A_6","OUTRAS"]
[{"$f":"+'dados I'!$A$2","v":20008838749},{"$f":"+'dados I'!$B$2","v":502065591},{"$f":"'II-DEM RESULTADOS'!C14","v":71},{"$f":"'II-DEM RESULTADOS'!F14","v":"VENDAS"},{"$f":"'II-DEM RESULTADOS'!I14","v":0},{"$f":"'II-DEM RESULTADOS'!J14","v":0},{"$f":"'II-DEM RESULTADOS'!K14","v":0},{"$f":"'II-DEM RESULTADOS'!L14","v":0},{"$f":"'II-DEM RESULTADOS'!M14","v":0},{"$f":"'II-DEM RESULTADOS'!N14","v":0},{"$f":"'II-DEM RESULTADOS'!O14","v":0},{"$f":"'II-DEM RESULTADOS'!P14","v":0},{"$f":"'II-DEM RESULTADOS'!Q14","v":0},{"$f":"'II-DEM RESULTADOS'!R14","v":0},{"$f":"'II-DEM RESULTADOS'!S14","v":0},{"$f":"'II-DEM RESULTADOS'!T14","v":0},{"$f":"'II-DEM RESULTADOS'!U14","v":0},{"$f":"'II-DEM RESULTADOS'!V14","v":0},{"$f":"'II-DEM RESULTADOS'!W14","v":0},{"$f":"'II-DEM RESULTADOS'!X14","v":0},{"$f":"'II-DEM RESULTADOS'!Y14","v":0},{"$f":"'II-DEM RESULTADOS'!Z14","v":0},{"$f":"'II-DEM RESULTADOS'!AA14","v":0},{"$f":"'II-DEM RESULTADOS'!AB14","v":0}]
[{"$f":"+'dados I'!$A$2","v":20008838749},{"$f":"+'dados I'!$B$2","v":502065591},{"$f":"'II-DEM RESULTADOS'!C15","v":72},{"$f":"'II-DEM RESULTADOS'!F15","v":"PRESTAÇÕES SERVIÇOS"},{"$f":"'II-DEM RESULTADOS'!I15","v":85484},{"$f":"'II-DEM RESULTADOS'!J15","v":0},{"$f":"'II-DEM RESULTADOS'!K15","v":56595},{"$f":"'II-DEM RESULTADOS'!L15","v":17765},{"$f":"'II-DEM RESULTADOS'!M15","v":11124},{"$f":"'II-DEM RESULTADOS'!N15","v":0},{"$f":"'II-DEM RESULTADOS'!O15","v":0},{"$f":"'II-DEM RESULTADOS'!P15","v":0},{"$f":"'II-DEM RESULTADOS'!Q15","v":0},{"$f":"'II-DEM RESULTADOS'!R15","v":0},{"$f":"'II-DEM RESULTADOS'!S15","v":0},{"$f":"'II-DEM RESULTADOS'!T15","v":0},{"$f":"'II-DEM RESULTADOS'!U15","v":0},{"$f":"'II-DEM RESULTADOS'!V15","v":0},{"$f":"'II-DEM RESULTADOS'!W15","v":0},{"$f":"'II-DEM RESULTADOS'!X15","v":0},{"$f":"'II-DEM RESULTADOS'!Y15","v":0},{"$f":"'II-DEM RESULTADOS'!Z15","v":0},{"$f":"'II-DEM RESULTADOS'!AA15","v":0},{"$f":"'II-DEM RESULTADOS'!AB15","v":0}]
[{"$f":"+'dados I'!$A$2","v":20008838749},{"$f":"+'dados I'!$B$2","v":502065591},{"$f":"'II-DEM RESULTADOS'!C16","v":721},{"$f":"'II-DEM RESULTADOS'!F16","v":"QUOTAS UTILIZADORES (MATRÍCULAS/MENSALIDADES)"},{"$f":"'II-DEM RESULTADOS'!I16","v":85484},{"$f":"'II-DEM RESULTADOS'!J16","v":0},{"$f":"'II-DEM RESULTADOS'!K16","v":56595},{"$f":"'II-DEM RESULTADOS'!L16","v":17765},{"$f":"'II-DEM RESULTADOS'!M16","v":11124},{"$f":"'II-DEM RESULTADOS'!N16","v":0},{"$f":"'II-DEM RESULTADOS'!O16","v":0},{"$f":"'II-DEM RESULTADOS'!P16","v":0},{"$f":"'II-DEM RESULTADOS'!Q16","v":0},{"$f":"'II-DEM RESULTADOS'!R16","v":0},{"$f":"'II-DEM RESULTADOS'!S16","v":0},{"$f":"'II-DEM RESULTADOS'!T16","v":0},{"$f":"'II-DEM RESULTADOS'!U16","v":0},{"$f":"'II-DEM RESULTADOS'!V16","v":0},{"$f":"'II-DEM RESULTADOS'!W16","v":0},{"$f":"'II-DEM RESULTADOS'!X16","v":0},{"$f":"'II-DEM RESULTADOS'!Y16","v":0},{"$f":"'II-DEM RESULTADOS'!Z16","v":0},{"$f":"'II-DEM RESULTADOS'!AA16","v":0},{"$f":"'II-DEM RESULTADOS'!AB16","v":0}]
[{"$f":"+'dados I'!$A$2","v":20008838749},{"$f":"+'dados I'!$B$2","v":502065591},{"$f":"'II-DEM RESULTADOS'!C17","v":"722/728"},{"$f":"'II-DEM RESULTADOS'!F17","v":"OUTROS SERVIÇOS"},{"$f":"'II-DEM RESULTADOS'!I17","v":0},{"$f":"'II-DEM RESULTADOS'!J17","v":0},{"$f":"'II-DEM RESULTADOS'!K17","v":0},{"$f":"'II-DEM RESULTADOS'!L17","v":0},{"$f":"'II-DEM RESULTADOS'!M17","v":0},{"$f":"'II-DEM RESULTADOS'!N17","v":0},{"$f":"'II-DEM RESULTADOS'!O17","v":0},{"$f":"'II-DEM RESULTADOS'!P17","v":0},{"$f":"'II-DEM RESULTADOS'!Q17","v":0},{"$f":"'II-DEM RESULTADOS'!R17","v":0},{"$f":"'II-DEM RESULTADOS'!S17","v":0},{"$f":"'II-DEM RESULTADOS'!T17","v":0},{"$f":"'II-DEM RESULTADOS'!U17","v":0},{"$f":"'II-DEM RESULTADOS'!V17","v":0},{"$f":"'II-DEM RESULTADOS'!W17","v":0},{"$f":"'II-DEM RESULTADOS'!X17","v":0},{"$f":"'II-DEM RESULTADOS'!Y17","v":0},{"$f":"'II-DEM RESULTADOS'!Z17","v":0},{"$f":"'II-DEM RESULTADOS'!AA17","v":0},{"$f":"'II-DEM RESULTADOS'!AB17","v":0}]
[{"$f":"+'dados I'!$A$2","v":20008838749},{"$f":"+'dados I'!$B$2","v":502065591},{"$f":"'II-DEM RESULTADOS'!C18","v":73},{"$f":"'II-DEM RESULTADOS'!F18","v":"VARIAÇÃO NOS INVENTÁRIOS DA PRODUÇÃO"},{"$f":"'II-DEM RESULTADOS'!I18","v":0},{"$f":"'II-DEM RESULTADOS'!J18","v":0},{"$f":"'II-DEM RESULTADOS'!K18","v":0},{"$f":"'II-DEM RESULTADOS'!L18","v":0},{"$f":"'II-DEM RESULTADOS'!M18","v":0},{"$f":"'II-DEM RESULTADOS'!N18","v":0},{"$f":"'II-DEM RESULTADOS'!O18","v":0},{"$f":"'II-DEM RESULTADOS'!P18","v":0},{"$f":"'II-DEM RESULTADOS'!Q18","v":0},{"$f":"'II-DEM RESULTADOS'!R18","v":0},{"$f":"'II-DEM RESULTADOS'!S18","v":0},{"$f":"'II-DEM RESULTADOS'!T18","v":0},{"$f":"'II-DEM RESULTADOS'!U18","v":0},{"$f":"'II-DEM RESULTADOS'!V18","v":0},{"$f":"'II-DEM RESULTADOS'!W18","v":0},{"$f":"'II-DEM RESULTADOS'!X18","v":0},{"$f":"'II-DEM RESULTADOS'!Y18","v":0},{"$f":"'II-DEM RESULTADOS'!Z18","v":0},{"$f":"'II-DEM RESULTADOS'!AA18","v":0},{"$f":"'II-DEM RESULTADOS'!AB18","v":0}]
[{"$f":"+'dados I'!$A$2","v":20008838749},{"$f":"+'dados I'!$B$2","v":502065591},{"$f":"'II-DEM RESULTADOS'!C19","v":74},{"$f":"'II-DEM RESULTADOS'!F19","v":"TRABALHOS PARA A PRÓPRIA ENTIDADE"},{"$f":"'II-DEM RESULTADOS'!I19","v":0},{"$f":"'II-DEM RESULTADOS'!J19","v":0},{"$f":"'II-DEM RESULTADOS'!K19","v":0},{"$f":"'II-DEM RESULTADOS'!L19","v":0},{"$f":"'II-DEM RESULTADOS'!M19","v":0},{"$f":"'II-DEM RESULTADOS'!N19","v":0},{"$f":"'II-DEM RESULTADOS'!O19","v":0},{"$f":"'II-DEM RESULTADOS'!P19","v":0},{"$f":"'II-DEM RESULTADOS'!Q19","v":0},{"$f":"'II-DEM RESULTADOS'!R19","v":0},{"$f":"'II-DEM RESULTADOS'!S19","v":0},{"$f":"'II-DEM RESULTADOS'!T19","v":0},{"$f":"'II-DEM RESULTADOS'!U19","v":0},{"$f":"'II-DEM RESULTADOS'!V19","v":0},{"$f":"'II-DEM RESULTADOS'!W19","v":0},{"$f":"'II-DEM RESULTADOS'!X19","v":0},{"$f":"'II-DEM RESULTADOS'!Y19","v":0},{"$f":"'II-DEM RESULTADOS'!Z19","v":0},{"$f":"'II-DEM RESULTADOS'!AA19","v":0},{"$f":"'II-DEM RESULTADOS'!AB19","v":0}]
[{"$f":"+'dados I'!$A$2","v":20008838749},{"$f":"+'dados I'!$B$2","v":502065591},{"$f":"'II-DEM RESULTADOS'!C20","v":75},{"$f":"'II-DEM RESULTADOS'!F20","v":"SUBSÍDIOS, DOAÇÕES E LEGADOS À EXPLORAÇÃO"},{"$f":"'II-DEM RESULTADOS'!I20","v":286163.34000000003},{"$f":"'II-DEM RESULTADOS'!J20","v":177079.52},{"$f":"'II-DEM RESULTADOS'!K20","v":83191.98},{"$f":"'II-DEM RESULTADOS'!L20","v":11592.2},{"$f":"'II-DEM RESULTADOS'!M20","v":14299.64},{"$f":"'II-DEM RESULTADOS'!N20","v":0},{"$f":"'II-DEM RESULTADOS'!O20","v":0},{"$f":"'II-DEM RESULTADOS'!P20","v":0},{"$f":"'II-DEM RESULTADOS'!Q20","v":0},{"$f":"'II-DEM RESULTADOS'!R20","v":0},{"$f":"'II-DEM RESULTADOS'!S20","v":0},{"$f":"'II-DEM RESULTADOS'!T20","v":0},{"$f":"'II-DEM RESULTADOS'!U20","v":0},{"$f":"'II-DEM RESULTADOS'!V20","v":0},{"$f":"'II-DEM RESULTADOS'!W20","v":0},{"$f":"'II-DEM RESULTADOS'!X20","v":0},{"$f":"'II-DEM RESULTADOS'!Y20","v":0},{"$f":"'II-DEM RESULTADOS'!Z20","v":0},{"$f":"'II-DEM RESULTADOS'!AA20","v":0},{"$f":"'II-DEM RESULTADOS'!AB20","v":0}]
[{"$f":"+'dados I'!$A$2","v":20008838749},{"$f":"+'dados I'!$B$2","v":502065591},{"$f":"'II-DEM RESULTADOS'!C21","v":751},{"$f":"'II-DEM RESULTADOS'!F21","v":"SUBSÍDIOS ESTADO E OUTROS ENTES PÚBLICOS"},{"$f":"'II-DEM RESULTADOS'!I21","v":286163.34000000003},{"$f":"'II-DEM RESULTADOS'!J21","v":177079.52},{"$f":"'II-DEM RESULTADOS'!K21","v":83191.98},{"$f":"'II-DEM RESULTADOS'!L21","v":11592.2},{"$f":"'II-DEM RESULTADOS'!M21","v":14299.64},{"$f":"'II-DEM RESULTADOS'!N21","v":0},{"$f":"'II-DEM RESULTADOS'!O21","v":0},{"$f":"'II-DEM RESULTADOS'!P21","v":0},{"$f":"'II-DEM RESULTADOS'!Q21","v":0},{"$f":"'II-DEM RESULTADOS'!R21","v":0},{"$f":"'II-DEM RESULTADOS'!S21","v":0},{"$f":"'II-DEM RESULTADOS'!T21","v":0},{"$f":"'II-DEM RESULTADOS'!U21","v":0},{"$f":"'II-DEM RESULTADOS'!V21","v":0},{"$f":"'II-DEM RESULTADOS'!W21","v":0},{"$f":"'II-DEM RESULTADOS'!X21","v":0},{"$f":"'II-DEM RESULTADOS'!Y21","v":0},{"$f":"'II-DEM RESULTADOS'!Z21","v":0},{"$f":"'II-DEM RESULTADOS'!AA21","v":0},{"$f":"'II-DEM RESULTADOS'!AB21","v":0}]
[{"$f":"+'dados I'!$A$2","v":20008838749},{"$f":"+'dados I'!$B$2","v":502065591},{"$f":"'II-DEM RESULTADOS'!C22","v":7511},{"$f":"'II-DEM RESULTADOS'!F22","v":"ISS, IP"},{"$f":"'II-DEM RESULTADOS'!I22","v":281163.34000000003},{"$f":"'II-DEM RESULTADOS'!J22","v":175829.52},{"$f":"'II-DEM RESULTADOS'!K22","v":81941.98},{"$f":"'II-DEM RESULTADOS'!L22","v":10342.200000000001},{"$f":"'II-DEM RESULTADOS'!M22","v":13049.64},{"$f":"'II-DEM RESULTADOS'!N22","v":0},{"$f":"'II-DEM RESULTADOS'!O22","v":0},{"$f":"'II-DEM RESULTADOS'!P22","v":0},{"$f":"'II-DEM RESULTADOS'!Q22","v":0},{"$f":"'II-DEM RESULTADOS'!R22","v":0},{"$f":"'II-DEM RESULTADOS'!S22","v":0},{"$f":"'II-DEM RESULTADOS'!T22","v":0},{"$f":"'II-DEM RESULTADOS'!U22","v":0},{"$f":"'II-DEM RESULTADOS'!V22","v":0},{"$f":"'II-DEM RESULTADOS'!W22","v":0},{"$f":"'II-DEM RESULTADOS'!X22","v":0},{"$f":"'II-DEM RESULTADOS'!Y22","v":0},{"$f":"'II-DEM RESULTADOS'!Z22","v":0},{"$f":"'II-DEM RESULTADOS'!AA22","v":0},{"$f":"'II-DEM RESULTADOS'!AB22","v":0}]
[{"$f":"+'dados I'!$A$2","v":20008838749},{"$f":"+'dados I'!$B$2","v":502065591},{"$f":"'II-DEM RESULTADOS'!C23","v":7512},{"$f":"'II-DEM RESULTADOS'!F23","v":"OUTRAS ENTIDADES PÚBLICAS"},{"$f":"'II-DEM RESULTADOS'!I23","v":5000},{"$f":"'II-DEM RESULTADOS'!J23","v":1250},{"$f":"'II-DEM RESULTADOS'!K23","v":1250},{"$f":"'II-DEM RESULTADOS'!L23","v":1250},{"$f":"'II-DEM RESULTADOS'!M23","v":1250},{"$f":"'II-DEM RESULTADOS'!N23","v":0},{"$f":"'II-DEM RESULTADOS'!O23","v":0},{"$f":"'II-DEM RESULTADOS'!P23","v":0},{"$f":"'II-DEM RESULTADOS'!Q23","v":0},{"$f":"'II-DEM RESULTADOS'!R23","v":0},{"$f":"'II-DEM RESULTADOS'!S23","v":0},{"$f":"'II-DEM RESULTADOS'!T23","v":0},{"$f":"'II-DEM RESULTADOS'!U23","v":0},{"$f":"'II-DEM RESULTADOS'!V23","v":0},{"$f":"'II-DEM RESULTADOS'!W23","v":0},{"$f":"'II-DEM RESULTADOS'!X23","v":0},{"$f":"'II-DEM RESULTADOS'!Y23","v":0},{"$f":"'II-DEM RESULTADOS'!Z23","v":0},{"$f":"'II-DEM RESULTADOS'!AA23","v":0},{"$f":"'II-DEM RESULTADOS'!AB23","v":0}]
[{"$f":"+'dados I'!$A$2","v":20008838749},{"$f":"+'dados I'!$B$2","v":502065591},{"$f":"'II-DEM RESULTADOS'!C24","v":752},{"$f":"'II-DEM RESULTADOS'!F24","v":"SUBSÍDIOS DE OUTRAS ENTIDADES"},{"$f":"'II-DEM RESULTADOS'!I24","v":0},{"$f":"'II-DEM RESULTADOS'!J24","v":0},{"$f":"'II-DEM RESULTADOS'!K24","v":0},{"$f":"'II-DEM RESULTADOS'!L24","v":0},{"$f":"'II-DEM RESULTADOS'!M24","v":0},{"$f":"'II-DEM RESULTADOS'!N24","v":0},{"$f":"'II-DEM RESULTADOS'!O24","v":0},{"$f":"'II-DEM RESULTADOS'!P24","v":0},{"$f":"'II-DEM RESULTADOS'!Q24","v":0},{"$f":"'II-DEM RESULTADOS'!R24","v":0},{"$f":"'II-DEM RESULTADOS'!S24","v":0},{"$f":"'II-DEM RESULTADOS'!T24","v":0},{"$f":"'II-DEM RESULTADOS'!U24","v":0},{"$f":"'II-DEM RESULTADOS'!V24","v":0},{"$f":"'II-DEM RESULTADOS'!W24","v":0},{"$f":"'II-DEM RESULTADOS'!X24","v":0},{"$f":"'II-DEM RESULTADOS'!Y24","v":0},{"$f":"'II-DEM RESULTADOS'!Z24","v":0},{"$f":"'II-DEM RESULTADOS'!AA24","v":0},{"$f":"'II-DEM RESULTADOS'!AB24","v":0}]
[{"$f":"+'dados I'!$A$2","v":20008838749},{"$f":"+'dados I'!$B$2","v":502065591},{"$f":"'II-DEM RESULTADOS'!C25","v":753},{"$f":"'II-DEM RESULTADOS'!F25","v":"DOAÇÕES E HERANÇAS"},{"$f":"'II-DEM RESULTADOS'!I25","v":0},{"$f":"'II-DEM RESULTADOS'!J25","v":0},{"$f":"'II-DEM RESULTADOS'!K25","v":0},{"$f":"'II-DEM RESULTADOS'!L25","v":0},{"$f":"'II-DEM RESULTADOS'!M25","v":0},{"$f":"'II-DEM RESULTADOS'!N25","v":0},{"$f":"'II-DEM RESULTADOS'!O25","v":0},{"$f":"'II-DEM RESULTADOS'!P25","v":0},{"$f":"'II-DEM RESULTADOS'!Q25","v":0},{"$f":"'II-DEM RESULTADOS'!R25","v":0},{"$f":"'II-DEM RESULTADOS'!S25","v":0},{"$f":"'II-DEM RESULTADOS'!T25","v":0},{"$f":"'II-DEM RESULTADOS'!U25","v":0},{"$f":"'II-DEM RESULTADOS'!V25","v":0},{"$f":"'II-DEM RESULTADOS'!W25","v":0},{"$f":"'II-DEM RESULTADOS'!X25","v":0},{"$f":"'II-DEM RESULTADOS'!Y25","v":0},{"$f":"'II-DEM RESULTADOS'!Z25","v":0},{"$f":"'II-DEM RESULTADOS'!AA25","v":0},{"$f":"'II-DEM RESULTADOS'!AB25","v":0}]
[{"$f":"+'dados I'!$A$2","v":20008838749},{"$f":"+'dados I'!$B$2","v":502065591},{"$f":"'II-DEM RESULTADOS'!C26","v":754},{"$f":"'II-DEM RESULTADOS'!F26","v":"LEGADOS"},{"$f":"'II-DEM RESULTADOS'!I26","v":0},{"$f":"'II-DEM RESULTADOS'!J26","v":0},{"$f":"'II-DEM RESULTADOS'!K26","v":0},{"$f":"'II-DEM RESULTADOS'!L26","v":0},{"$f":"'II-DEM RESULTADOS'!M26","v":0},{"$f":"'II-DEM RESULTADOS'!N26","v":0},{"$f":"'II-DEM RESULTADOS'!O26","v":0},{"$f":"'II-DEM RESULTADOS'!P26","v":0},{"$f":"'II-DEM RESULTADOS'!Q26","v":0},{"$f":"'II-DEM RESULTADOS'!R26","v":0},{"$f":"'II-DEM RESULTADOS'!S26","v":0},{"$f":"'II-DEM RESULTADOS'!T26","v":0},{"$f":"'II-DEM RESULTADOS'!U26","v":0},{"$f":"'II-DEM RESULTADOS'!V26","v":0},{"$f":"'II-DEM RESULTADOS'!W26","v":0},{"$f":"'II-DEM RESULTADOS'!X26","v":0},{"$f":"'II-DEM RESULTADOS'!Y26","v":0},{"$f":"'II-DEM RESULTADOS'!Z26","v":0},{"$f":"'II-DEM RESULTADOS'!AA26","v":0},{"$f":"'II-DEM RESULTADOS'!AB26","v":0}]
[{"$f":"+'dados I'!$A$2","v":20008838749},{"$f":"+'dados I'!$B$2","v":502065591},{"$f":"'II-DEM RESULTADOS'!C27","v":76},{"$f":"'II-DEM RESULTADOS'!F27","v":"REVERSÕES"},{"$f":"'II-DEM RESULTADOS'!I27","v":0},{"$f":"'II-DEM RESULTADOS'!J27","v":0},{"$f":"'II-DEM RESULTADOS'!K27","v":0},{"$f":"'II-DEM RESULTADOS'!L27","v":0},{"$f":"'II-DEM RESULTADOS'!M27","v":0},{"$f":"'II-DEM RESULTADOS'!N27","v":0},{"$f":"'II-DEM RESULTADOS'!O27","v":0},{"$f":"'II-DEM RESULTADOS'!P27","v":0},{"$f":"'II-DEM RESULTADOS'!Q27","v":0},{"$f":"'II-DEM RESULTADOS'!R27","v":0},{"$f":"'II-DEM RESULTADOS'!S27","v":0},{"$f":"'II-DEM RESULTADOS'!T27","v":0},{"$f":"'II-DEM RESULTADOS'!U27","v":0},{"$f":"'II-DEM RESULTADOS'!V27","v":0},{"$f":"'II-DEM RESULTADOS'!W27","v":0},{"$f":"'II-DEM RESULTADOS'!X27","v":0},{"$f":"'II-DEM RESULTADOS'!Y27","v":0},{"$f":"'II-DEM RESULTADOS'!Z27","v":0},{"$f":"'II-DEM RESULTADOS'!AA27","v":0},{"$f":"'II-DEM RESULTADOS'!AB27","v":0}]
[{"$f":"+'dados I'!$A$2","v":20008838749},{"$f":"+'dados I'!$B$2","v":502065591},{"$f":"'II-DEM RESULTADOS'!C28","v":761},{"$f":"'II-DEM RESULTADOS'!F28","v":"DE DEPRECIAÇÕES E AMORTIZAÇÕES"},{"$f":"'II-DEM RESULTADOS'!I28","v":0},{"$f":"'II-DEM RESULTADOS'!J28","v":0},{"$f":"'II-DEM RESULTADOS'!K28","v":0},{"$f":"'II-DEM RESULTADOS'!L28","v":0},{"$f":"'II-DEM RESULTADOS'!M28","v":0},{"$f":"'II-DEM RESULTADOS'!N28","v":0},{"$f":"'II-DEM RESULTADOS'!O28","v":0},{"$f":"'II-DEM RESULTADOS'!P28","v":0},{"$f":"'II-DEM RESULTADOS'!Q28","v":0},{"$f":"'II-DEM RESULTADOS'!R28","v":0},{"$f":"'II-DEM RESULTADOS'!S28","v":0},{"$f":"'II-DEM RESULTADOS'!T28","v":0},{"$f":"'II-DEM RESULTADOS'!U28","v":0},{"$f":"'II-DEM RESULTADOS'!V28","v":0},{"$f":"'II-DEM RESULTADOS'!W28","v":0},{"$f":"'II-DEM RESULTADOS'!X28","v":0},{"$f":"'II-DEM RESULTADOS'!Y28","v":0},{"$f":"'II-DEM RESULTADOS'!Z28","v":0},{"$f":"'II-DEM RESULTADOS'!AA28","v":0},{"$f":"'II-DEM RESULTADOS'!AB28","v":0}]
[{"$f":"+'dados I'!$A$2","v":20008838749},{"$f":"+'dados I'!$B$2","v":502065591},{"$f":"'II-DEM RESULTADOS'!C29","v":762},{"$f":"'II-DEM RESULTADOS'!F29","v":"DE PERDAS POR IMPARIDADE"},{"$f":"'II-DEM RESULTADOS'!I29","v":0},{"$f":"'II-DEM RESULTADOS'!J29","v":0},{"$f":"'II-DEM RESULTADOS'!K29","v":0},{"$f":"'II-DEM RESULTADOS'!L29","v":0},{"$f":"'II-DEM RESULTADOS'!M29","v":0},{"$f":"'II-DEM RESULTADOS'!N29","v":0},{"$f":"'II-DEM RESULTADOS'!O29","v":0},{"$f":"'II-DEM RESULTADOS'!P29","v":0},{"$f":"'II-DEM RESULTADOS'!Q29","v":0},{"$f":"'II-DEM RESULTADOS'!R29","v":0},{"$f":"'II-DEM RESULTADOS'!S29","v":0},{"$f":"'II-DEM RESULTADOS'!T29","v":0},{"$f":"'II-DEM RESULTADOS'!U29","v":0},{"$f":"'II-DEM RESULTADOS'!V29","v":0},{"$f":"'II-DEM RESULTADOS'!W29","v":0},{"$f":"'II-DEM RESULTADOS'!X29","v":0},{"$f":"'II-DEM RESULTADOS'!Y29","v":0},{"$f":"'II-DEM RESULTADOS'!Z29","v":0},{"$f":"'II-DEM RESULTADOS'!AA29","v":0},{"$f":"'II-DEM RESULTADOS'!AB29","v":0}]
[{"$f":"+'dados I'!$A$2","v":20008838749},{"$f":"+'dados I'!$B$2","v":502065591},{"$f":"'II-DEM RESULTADOS'!C30","v":763},{"$f":"'II-DEM RESULTADOS'!F30","v":"DE PROVISÕES"},{"$f":"'II-DEM RESULTADOS'!I30","v":0},{"$f":"'II-DEM RESULTADOS'!J30","v":0},{"$f":"'II-DEM RESULTADOS'!K30","v":0},{"$f":"'II-DEM RESULTADOS'!L30","v":0},{"$f":"'II-DEM RESULTADOS'!M30","v":0},{"$f":"'II-DEM RESULTADOS'!N30","v":0},{"$f":"'II-DEM RESULTADOS'!O30","v":0},{"$f":"'II-DEM RESULTADOS'!P30","v":0},{"$f":"'II-DEM RESULTADOS'!Q30","v":0},{"$f":"'II-DEM RESULTADOS'!R30","v":0},{"$f":"'II-DEM RESULTADOS'!S30","v":0},{"$f":"'II-DEM RESULTADOS'!T30","v":0},{"$f":"'II-DEM RESULTADOS'!U30","v":0},{"$f":"'II-DEM RESULTADOS'!V30","v":0},{"$f":"'II-DEM RESULTADOS'!W30","v":0},{"$f":"'II-DEM RESULTADOS'!X30","v":0},{"$f":"'II-DEM RESULTADOS'!Y30","v":0},{"$f":"'II-DEM RESULTADOS'!Z30","v":0},{"$f":"'II-DEM RESULTADOS'!AA30","v":0},{"$f":"'II-DEM RESULTADOS'!AB30","v":0}]
[{"$f":"+'dados I'!$A$2","v":20008838749},{"$f":"+'dados I'!$B$2","v":502065591},{"$f":"'II-DEM RESULTADOS'!C31","v":764},{"$f":"'II-DEM RESULTADOS'!F31","v":"DE PROVISÕES ESPECÍFICAS"},{"$f":"'II-DEM RESULTADOS'!I31","v":0},{"$f":"'II-DEM RESULTADOS'!J31","v":0},{"$f":"'II-DEM RESULTADOS'!K31","v":0},{"$f":"'II-DEM RESULTADOS'!L31","v":0},{"$f":"'II-DEM RESULTADOS'!M31","v":0},{"$f":"'II-DEM RESULTADOS'!N31","v":0},{"$f":"'II-DEM RESULTADOS'!O31","v":0},{"$f":"'II-DEM RESULTADOS'!P31","v":0},{"$f":"'II-DEM RESULTADOS'!Q31","v":0},{"$f":"'II-DEM RESULTADOS'!R31","v":0},{"$f":"'II-DEM RESULTADOS'!S31","v":0},{"$f":"'II-DEM RESULTADOS'!T31","v":0},{"$f":"'II-DEM RESULTADOS'!U31","v":0},{"$f":"'II-DEM RESULTADOS'!V31","v":0},{"$f":"'II-DEM RESULTADOS'!W31","v":0},{"$f":"'II-DEM RESULTADOS'!X31","v":0},{"$f":"'II-DEM RESULTADOS'!Y31","v":0},{"$f":"'II-DEM RESULTADOS'!Z31","v":0},{"$f":"'II-DEM RESULTADOS'!AA31","v":0},{"$f":"'II-DEM RESULTADOS'!AB31","v":0}]
[{"$f":"+'dados I'!$A$2","v":20008838749},{"$f":"+'dados I'!$B$2","v":502065591},{"$f":"'II-DEM RESULTADOS'!C32","v":77},{"$f":"'II-DEM RESULTADOS'!F32","v":"GANHOS POR AUMENTOS DE JUSTO VALOR"},{"$f":"'II-DEM RESULTADOS'!I32","v":0},{"$f":"'II-DEM RESULTADOS'!J32","v":0},{"$f":"'II-DEM RESULTADOS'!K32","v":0},{"$f":"'II-DEM RESULTADOS'!L32","v":0},{"$f":"'II-DEM RESULTADOS'!M32","v":0},{"$f":"'II-DEM RESULTADOS'!N32","v":0},{"$f":"'II-DEM RESULTADOS'!O32","v":0},{"$f":"'II-DEM RESULTADOS'!P32","v":0},{"$f":"'II-DEM RESULTADOS'!Q32","v":0},{"$f":"'II-DEM RESULTADOS'!R32","v":0},{"$f":"'II-DEM RESULTADOS'!S32","v":0},{"$f":"'II-DEM RESULTADOS'!T32","v":0},{"$f":"'II-DEM RESULTADOS'!U32","v":0},{"$f":"'II-DEM RESULTADOS'!V32","v":0},{"$f":"'II-DEM RESULTADOS'!W32","v":0},{"$f":"'II-DEM RESULTADOS'!X32","v":0},{"$f":"'II-DEM RESULTADOS'!Y32","v":0},{"$f":"'II-DEM RESULTADOS'!Z32","v":0},{"$f":"'II-DEM RESULTADOS'!AA32","v":0},{"$f":"'II-DEM RESULTADOS'!AB32","v":0}]
[{"$f":"+'dados I'!$A$2","v":20008838749},{"$f":"+'dados I'!$B$2","v":502065591},{"$f":"'II-DEM RESULTADOS'!C33","v":78},{"$f":"'II-DEM RESULTADOS'!F33","v":"OUTROS RENDIMENTOS E GANHOS"},{"$f":"'II-DEM RESULTADOS'!I33","v":2822.54},{"$f":"'II-DEM RESULTADOS'!J33","v":625},{"$f":"'II-DEM RESULTADOS'!K33","v":625},{"$f":"'II-DEM RESULTADOS'!L33","v":625},{"$f":"'II-DEM RESULTADOS'!M33","v":947.54},{"$f":"'II-DEM RESULTADOS'!N33","v":0},{"$f":"'II-DEM RESULTADOS'!O33","v":0},{"$f":"'II-DEM RESULTADOS'!P33","v":0},{"$f":"'II-DEM RESULTADOS'!Q33","v":0},{"$f":"'II-DEM RESULTADOS'!R33","v":0},{"$f":"'II-DEM RESULTADOS'!S33","v":0},{"$f":"'II-DEM RESULTADOS'!T33","v":0},{"$f":"'II-DEM RESULTADOS'!U33","v":0},{"$f":"'II-DEM RESULTADOS'!V33","v":0},{"$f":"'II-DEM RESULTADOS'!W33","v":0},{"$f":"'II-DEM RESULTADOS'!X33","v":0},{"$f":"'II-DEM RESULTADOS'!Y33","v":0},{"$f":"'II-DEM RESULTADOS'!Z33","v":0},{"$f":"'II-DEM RESULTADOS'!AA33","v":0},{"$f":"'II-DEM RESULTADOS'!AB33","v":0}]
[{"$f":"+'dados I'!$A$2","v":20008838749},{"$f":"+'dados I'!$B$2","v":502065591},{"$f":"'II-DEM RESULTADOS'!C34","v":781},{"$f":"'II-DEM RESULTADOS'!F34","v":"RENDIMENTOS SUPLEMENTARES"},{"$f":"'II-DEM RESULTADOS'!I34","v":0},{"$f":"'II-DEM RESULTADOS'!J34","v":0},{"$f":"'II-DEM RESULTADOS'!K34","v":0},{"$f":"'II-DEM RESULTADOS'!L34","v":0},{"$f":"'II-DEM RESULTADOS'!M34","v":0},{"$f":"'II-DEM RESULTADOS'!N34","v":0},{"$f":"'II-DEM RESULTADOS'!O34","v":0},{"$f":"'II-DEM RESULTADOS'!P34","v":0},{"$f":"'II-DEM RESULTADOS'!Q34","v":0},{"$f":"'II-DEM RESULTADOS'!R34","v":0},{"$f":"'II-DEM RESULTADOS'!S34","v":0},{"$f":"'II-DEM RESULTADOS'!T34","v":0},{"$f":"'II-DEM RESULTADOS'!U34","v":0},{"$f":"'II-DEM RESULTADOS'!V34","v":0},{"$f":"'II-DEM RESULTADOS'!W34","v":0},{"$f":"'II-DEM RESULTADOS'!X34","v":0},{"$f":"'II-DEM RESULTADOS'!Y34","v":0},{"$f":"'II-DEM RESULTADOS'!Z34","v":0},{"$f":"'II-DEM RESULTADOS'!AA34","v":0},{"$f":"'II-DEM RESULTADOS'!AB34","v":0}]
[{"$f":"+'dados I'!$A$2","v":20008838749},{"$f":"+'dados I'!$B$2","v":502065591},{"$f":"'II-DEM RESULTADOS'!C36","v":788},{"$f":"'II-DEM RESULTADOS'!F36","v":"OUTROS RENDIMENTOS E GANHOS"},{"$f":"'II-DEM RESULTADOS'!I36","v":2822.54},{"$f":"'II-DEM RESULTADOS'!J36","v":625},{"$f":"'II-DEM RESULTADOS'!K36","v":625},{"$f":"'II-DEM RESULTADOS'!L36","v":625},{"$f":"'II-DEM RESULTADOS'!M36","v":947.54},{"$f":"'II-DEM RESULTADOS'!N36","v":0},{"$f":"'II-DEM RESULTADOS'!O36","v":0},{"$f":"'II-DEM RESULTADOS'!P36","v":0},{"$f":"'II-DEM RESULTADOS'!Q36","v":0},{"$f":"'II-DEM RESULTADOS'!R36","v":0},{"$f":"'II-DEM RESULTADOS'!S36","v":0},{"$f":"'II-DEM RESULTADOS'!T36","v":0},{"$f":"'II-DEM RESULTADOS'!U36","v":0},{"$f":"'II-DEM RESULTADOS'!V36","v":0},{"$f":"'II-DEM RESULTADOS'!W36","v":0},{"$f":"'II-DEM RESULTADOS'!X36","v":0},{"$f":"'II-DEM RESULTADOS'!Y36","v":0},{"$f":"'II-DEM RESULTADOS'!Z36","v":0},{"$f":"'II-DEM RESULTADOS'!AA36","v":0},{"$f":"'II-DEM RESULTADOS'!AB36","v":0}]
[{"$f":"+'dados I'!$A$2","v":20008838749},{"$f":"+'dados I'!$B$2","v":502065591},{"$f":"'II-DEM RESULTADOS'!C37","v":7881},{"$f":"'II-DEM RESULTADOS'!F37","v":"CORREÇÕES DE PERÍODOS ANTERIORES"},{"$f":"'II-DEM RESULTADOS'!I37","v":0},{"$f":"'II-DEM RESULTADOS'!J37","v":0},{"$f":"'II-DEM RESULTADOS'!K37","v":0},{"$f":"'II-DEM RESULTADOS'!L37","v":0},{"$f":"'II-DEM RESULTADOS'!M37","v":0},{"$f":"'II-DEM RESULTADOS'!N37","v":0},{"$f":"'II-DEM RESULTADOS'!O37","v":0},{"$f":"'II-DEM RESULTADOS'!P37","v":0},{"$f":"'II-DEM RESULTADOS'!Q37","v":0},{"$f":"'II-DEM RESULTADOS'!R37","v":0},{"$f":"'II-DEM RESULTADOS'!S37","v":0},{"$f":"'II-DEM RESULTADOS'!T37","v":0},{"$f":"'II-DEM RESULTADOS'!U37","v":0},{"$f":"'II-DEM RESULTADOS'!V37","v":0},{"$f":"'II-DEM RESULTADOS'!W37","v":0},{"$f":"'II-DEM RESULTADOS'!X37","v":0},{"$f":"'II-DEM RESULTADOS'!Y37","v":0},{"$f":"'II-DEM RESULTADOS'!Z37","v":0},{"$f":"'II-DEM RESULTADOS'!AA37","v":0},{"$f":"'II-DEM RESULTADOS'!AB37","v":0}]
[{"$f":"+'dados I'!$A$2","v":20008838749},{"$f":"+'dados I'!$B$2","v":502065591},{"$f":"'II-DEM RESULTADOS'!C38","v":7883},{"$f":"'II-DEM RESULTADOS'!F38","v":"IMPUTAÇÃO DE SUBSÍDIOS DE INVESTIMENTO"},{"$f":"'II-DEM RESULTADOS'!I38","v":1622.54},{"$f":"'II-DEM RESULTADOS'!J38","v":325},{"$f":"'II-DEM RESULTADOS'!K38","v":325},{"$f":"'II-DEM RESULTADOS'!L38","v":325},{"$f":"'II-DEM RESULTADOS'!M38","v":647.54},{"$f":"'II-DEM RESULTADOS'!N38","v":0},{"$f":"'II-DEM RESULTADOS'!O38","v":0},{"$f":"'II-DEM RESULTADOS'!P38","v":0},{"$f":"'II-DEM RESULTADOS'!Q38","v":0},{"$f":"'II-DEM RESULTADOS'!R38","v":0},{"$f":"'II-DEM RESULTADOS'!S38","v":0},{"$f":"'II-DEM RESULTADOS'!T38","v":0},{"$f":"'II-DEM RESULTADOS'!U38","v":0},{"$f":"'II-DEM RESULTADOS'!V38","v":0},{"$f":"'II-DEM RESULTADOS'!W38","v":0},{"$f":"'II-DEM RESULTADOS'!X38","v":0},{"$f":"'II-DEM RESULTADOS'!Y38","v":0},{"$f":"'II-DEM RESULTADOS'!Z38","v":0},{"$f":"'II-DEM RESULTADOS'!AA38","v":0},{"$f":"'II-DEM RESULTADOS'!AB38","v":0}]
[{"$f":"+'dados I'!$A$2","v":20008838749},{"$f":"+'dados I'!$B$2","v":502065591},{"$f":"'II-DEM RESULTADOS'!C39","v":"7882-7884/7887"},{"$f":"'II-DEM RESULTADOS'!F39","v":"RENDIMENTOS E GANHOS EM ATIVOS"},{"$f":"'II-DEM RESULTADOS'!I39","v":1200},{"$f":"'II-DEM RESULTADOS'!J39","v":300},{"$f":"'II-DEM RESULTADOS'!K39","v":300},{"$f":"'II-DEM RESULTADOS'!L39","v":300},{"$f":"'II-DEM RESULTADOS'!M39","v":300},{"$f":"'II-DEM RESULTADOS'!N39","v":0},{"$f":"'II-DEM RESULTADOS'!O39","v":0},{"$f":"'II-DEM RESULTADOS'!P39","v":0},{"$f":"'II-DEM RESULTADOS'!Q39","v":0},{"$f":"'II-DEM RESULTADOS'!R39","v":0},{"$f":"'II-DEM RESULTADOS'!S39","v":0},{"$f":"'II-DEM RESULTADOS'!T39","v":0},{"$f":"'II-DEM RESULTADOS'!U39","v":0},{"$f":"'II-DEM RESULTADOS'!V39","v":0},{"$f":"'II-DEM RESULTADOS'!W39","v":0},{"$f":"'II-DEM RESULTADOS'!X39","v":0},{"$f":"'II-DEM RESULTADOS'!Y39","v":0},{"$f":"'II-DEM RESULTADOS'!Z39","v":0},{"$f":"'II-DEM RESULTADOS'!AA39","v":0},{"$f":"'II-DEM RESULTADOS'!AB39","v":0}]
[{"$f":"+'dados I'!$A$2","v":20008838749},{"$f":"+'dados I'!$B$2","v":502065591},{"$f":"'II-DEM RESULTADOS'!C40","v":7888},{"$f":"'II-DEM RESULTADOS'!F40","v":"OUTROS NÃO ESPECIFICADOS"},{"$f":"'II-DEM RESULTADOS'!I40","v":0},{"$f":"'II-DEM RESULTADOS'!J40","v":0},{"$f":"'II-DEM RESULTADOS'!K40","v":0},{"$f":"'II-DEM RESULTADOS'!L40","v":0},{"$f":"'II-DEM RESULTADOS'!M40","v":0},{"$f":"'II-DEM RESULTADOS'!N40","v":0},{"$f":"'II-DEM RESULTADOS'!O40","v":0},{"$f":"'II-DEM RESULTADOS'!P40","v":0},{"$f":"'II-DEM RESULTADOS'!Q40","v":0},{"$f":"'II-DEM RESULTADOS'!R40","v":0},{"$f":"'II-DEM RESULTADOS'!S40","v":0},{"$f":"'II-DEM RESULTADOS'!T40","v":0},{"$f":"'II-DEM RESULTADOS'!U40","v":0},{"$f":"'II-DEM RESULTADOS'!V40","v":0},{"$f":"'II-DEM RESULTADOS'!W40","v":0},{"$f":"'II-DEM RESULTADOS'!X40","v":0},{"$f":"'II-DEM RESULTADOS'!Y40","v":0},{"$f":"'II-DEM RESULTADOS'!Z40","v":0},{"$f":"'II-DEM RESULTADOS'!AA40","v":0},{"$f":"'II-DEM RESULTADOS'!AB40","v":0}]
[{"$f":"+'dados I'!$A$2","v":20008838749},{"$f":"+'dados I'!$B$2","v":502065591},{"$f":"'II-DEM RESULTADOS'!C41","v":79},{"$f":"'II-DEM RESULTADOS'!F41","v":"JUROS, DIVIDENDOS E OUTROS RENDIMENTOS SIMILARES"},{"$f":"'II-DEM RESULTADOS'!I41","v":0},{"$f":"'II-DEM RESULTADOS'!J41","v":0},{"$f":"'II-DEM RESULTADOS'!K41","v":0},{"$f":"'II-DEM RESULTADOS'!L41","v":0},{"$f":"'II-DEM RESULTADOS'!M41","v":0},{"$f":"'II-DEM RESULTADOS'!N41","v":0},{"$f":"'II-DEM RESULTADOS'!O41","v":0},{"$f":"'II-DEM RESULTADOS'!P41","v":0},{"$f":"'II-DEM RESULTADOS'!Q41","v":0},{"$f":"'II-DEM RESULTADOS'!R41","v":0},{"$f":"'II-DEM RESULTADOS'!S41","v":0},{"$f":"'II-DEM RESULTADOS'!T41","v":0},{"$f":"'II-DEM RESULTADOS'!U41","v":0},{"$f":"'II-DEM RESULTADOS'!V41","v":0},{"$f":"'II-DEM RESULTADOS'!W41","v":0},{"$f":"'II-DEM RESULTADOS'!X41","v":0},{"$f":"'II-DEM RESULTADOS'!Y41","v":0},{"$f":"'II-DEM RESULTADOS'!Z41","v":0},{"$f":"'II-DEM RESULTADOS'!AA41","v":0},{"$f":"'II-DEM RESULTADOS'!AB41","v":0}]
[{"$f":"+'dados I'!$A$2","v":20008838749},{"$f":"+'dados I'!$B$2","v":502065591},{"$f":"'II-DEM RESULTADOS'!C42","v":7},{"$f":"'II-DEM RESULTADOS'!F42","v":"TOTAL RENDIMENTOS"},{"$f":"'II-DEM RESULTADOS'!I42","v":374469.88},{"$f":"'II-DEM RESULTADOS'!J42","v":177704.52},{"$f":"'II-DEM RESULTADOS'!K42","v":140411.97999999998},{"$f":"'II-DEM RESULTADOS'!L42","v":29982.2},{"$f":"'II-DEM RESULTADOS'!M42","v":26371.18},{"$f":"'II-DEM RESULTADOS'!N42","v":0},{"$f":"'II-DEM RESULTADOS'!O42","v":0},{"$f":"'II-DEM RESULTADOS'!P42","v":0},{"$f":"'II-DEM RESULTADOS'!Q42","v":0},{"$f":"'II-DEM RESULTADOS'!R42","v":0},{"$f":"'II-DEM RESULTADOS'!S42","v":0},{"$f":"'II-DEM RESULTADOS'!T42","v":0},{"$f":"'II-DEM RESULTADOS'!U42","v":0},{"$f":"'II-DEM RESULTADOS'!V42","v":0},{"$f":"'II-DEM RESULTADOS'!W42","v":0},{"$f":"'II-DEM RESULTADOS'!X42","v":0},{"$f":"'II-DEM RESULTADOS'!Y42","v":0},{"$f":"'II-DEM RESULTADOS'!Z42","v":0},{"$f":"'II-DEM RESULTADOS'!AA42","v":0},{"$f":"'II-DEM RESULTADOS'!AB42","v":0}]
[{"$f":"+'dados I'!$A$2","v":20008838749},{"$f":"+'dados I'!$B$2","v":502065591},{"$f":"+'II-DEM RESULTADOS'!C49","v":61},{"$f":"+'II-DEM RESULTADOS'!F49","v":"CUSTO MERCADORIAS E MATÉRIAS CONSUMIDAS"},{"$f":"+'II-DEM RESULTADOS'!I49","v":38500},{"$f":"+'II-DEM RESULTADOS'!J49","v":13090},{"$f":"+'II-DEM RESULTADOS'!K49","v":16170},{"$f":"+'II-DEM RESULTADOS'!L49","v":6160},{"$f":"+'II-DEM RESULTADOS'!M49","v":3080},{"$f":"+'II-DEM RESULTADOS'!N49","v":0},{"$f":"+'II-DEM RESULTADOS'!O49","v":0},{"$f":"+'II-DEM RESULTADOS'!P49","v":0},{"$f":"+'II-DEM RESULTADOS'!Q49","v":0},{"$f":"+'II-DEM RESULTADOS'!R49","v":0},{"$f":"+'II-DEM RESULTADOS'!S49","v":0},{"$f":"+'II-DEM RESULTADOS'!T49","v":0},{"$f":"+'II-DEM RESULTADOS'!U49","v":0},{"$f":"+'II-DEM RESULTADOS'!V49","v":0},{"$f":"+'II-DEM RESULTADOS'!W49","v":0},{"$f":"+'II-DEM RESULTADOS'!X49","v":0},{"$f":"+'II-DEM RESULTADOS'!Y49","v":0},{"$f":"+'II-DEM RESULTADOS'!Z49","v":0},{"$f":"+'II-DEM RESULTADOS'!AA49","v":0},{"$f":"+'II-DEM RESULTADOS'!AB49","v":0}]
[{"$f":"+'dados I'!$A$2","v":20008838749},{"$f":"+'dados I'!$B$2","v":502065591},{"$f":"+'II-DEM RESULTADOS'!C50","v":62},{"$f":"+'II-DEM RESULTADOS'!F50","v":"FORNECIMENTOS E SERVIÇOS EXTERNOS"},{"$f":"+'II-DEM RESULTADOS'!I50","v":42150},{"$f":"+'II-DEM RESULTADOS'!J50","v":11844.5},{"$f":"+'II-DEM RESULTADOS'!K50","v":13514.5},{"$f":"+'II-DEM RESULTADOS'!L50","v":9636},{"$f":"+'II-DEM RESULTADOS'!M50","v":7155},{"$f":"+'II-DEM RESULTADOS'!N50","v":0},{"$f":"+'II-DEM RESULTADOS'!O50","v":0},{"$f":"+'II-DEM RESULTADOS'!P50","v":0},{"$f":"+'II-DEM RESULTADOS'!Q50","v":0},{"$f":"+'II-DEM RESULTADOS'!R50","v":0},{"$f":"+'II-DEM RESULTADOS'!S50","v":0},{"$f":"+'II-DEM RESULTADOS'!T50","v":0},{"$f":"+'II-DEM RESULTADOS'!U50","v":0},{"$f":"+'II-DEM RESULTADOS'!V50","v":0},{"$f":"+'II-DEM RESULTADOS'!W50","v":0},{"$f":"+'II-DEM RESULTADOS'!X50","v":0},{"$f":"+'II-DEM RESULTADOS'!Y50","v":0},{"$f":"+'II-DEM RESULTADOS'!Z50","v":0},{"$f":"+'II-DEM RESULTADOS'!AA50","v":0},{"$f":"+'II-DEM RESULTADOS'!AB50","v":0}]
[{"$f":"+'dados I'!$A$2","v":20008838749},{"$f":"+'dados I'!$B$2","v":502065591},{"$f":"+'II-DEM RESULTADOS'!C51","v":621},{"$f":"+'II-DEM RESULTADOS'!F51","v":"SUBCONTRATOS"},{"$f":"+'II-DEM RESULTADOS'!I51","v":0},{"$f":"+'II-DEM RESULTADOS'!J51","v":0},{"$f":"+'II-DEM RESULTADOS'!K51","v":0},{"$f":"+'II-DEM RESULTADOS'!L51","v":0},{"$f":"+'II-DEM RESULTADOS'!M51","v":0},{"$f":"+'II-DEM RESULTADOS'!N51","v":0},{"$f":"+'II-DEM RESULTADOS'!O51","v":0},{"$f":"+'II-DEM RESULTADOS'!P51","v":0},{"$f":"+'II-DEM RESULTADOS'!Q51","v":0},{"$f":"+'II-DEM RESULTADOS'!R51","v":0},{"$f":"+'II-DEM RESULTADOS'!S51","v":0},{"$f":"+'II-DEM RESULTADOS'!T51","v":0},{"$f":"+'II-DEM RESULTADOS'!U51","v":0},{"$f":"+'II-DEM RESULTADOS'!V51","v":0},{"$f":"+'II-DEM RESULTADOS'!W51","v":0},{"$f":"+'II-DEM RESULTADOS'!X51","v":0},{"$f":"+'II-DEM RESULTADOS'!Y51","v":0},{"$f":"+'II-DEM RESULTADOS'!Z51","v":0},{"$f":"+'II-DEM RESULTADOS'!AA51","v":0},{"$f":"+'II-DEM RESULTADOS'!AB51","v":0}]
[{"$f":"+'dados I'!$A$2","v":20008838749},{"$f":"+'dados I'!$B$2","v":502065591},{"$f":"+'II-DEM RESULTADOS'!C52","v":622},{"$f":"+'II-DEM RESULTADOS'!F52","v":"SERVIÇOS ESPECIALIZADOS"},{"$f":"+'II-DEM RESULTADOS'!I52","v":6900},{"$f":"+'II-DEM RESULTADOS'!J52","v":2075},{"$f":"+'II-DEM RESULTADOS'!K52","v":2075},{"$f":"+'II-DEM RESULTADOS'!L52","v":2075},{"$f":"+'II-DEM RESULTADOS'!M52","v":675},{"$f":"+'II-DEM RESULTADOS'!N52","v":0},{"$f":"+'II-DEM RESULTADOS'!O52","v":0},{"$f":"+'II-DEM RESULTADOS'!P52","v":0},{"$f":"+'II-DEM RESULTADOS'!Q52","v":0},{"$f":"+'II-DEM RESULTADOS'!R52","v":0},{"$f":"+'II-DEM RESULTADOS'!S52","v":0},{"$f":"+'II-DEM RESULTADOS'!T52","v":0},{"$f":"+'II-DEM RESULTADOS'!U52","v":0},{"$f":"+'II-DEM RESULTADOS'!V52","v":0},{"$f":"+'II-DEM RESULTADOS'!W52","v":0},{"$f":"+'II-DEM RESULTADOS'!X52","v":0},{"$f":"+'II-DEM RESULTADOS'!Y52","v":0},{"$f":"+'II-DEM RESULTADOS'!Z52","v":0},{"$f":"+'II-DEM RESULTADOS'!AA52","v":0},{"$f":"+'II-DEM RESULTADOS'!AB52","v":0}]
[{"$f":"+'dados I'!$A$2","v":20008838749},{"$f":"+'dados I'!$B$2","v":502065591},{"$f":"+'II-DEM RESULTADOS'!C53","v":6221},{"$f":"+'II-DEM RESULTADOS'!F53","v":"TRABALHOS ESPECIALIZADOS"},{"$f":"+'II-DEM RESULTADOS'!I53","v":0},{"$f":"+'II-DEM RESULTADOS'!J53","v":0},{"$f":"+'II-DEM RESULTADOS'!K53","v":0},{"$f":"+'II-DEM RESULTADOS'!L53","v":0},{"$f":"+'II-DEM RESULTADOS'!M53","v":0},{"$f":"+'II-DEM RESULTADOS'!N53","v":0},{"$f":"+'II-DEM RESULTADOS'!O53","v":0},{"$f":"+'II-DEM RESULTADOS'!P53","v":0},{"$f":"+'II-DEM RESULTADOS'!Q53","v":0},{"$f":"+'II-DEM RESULTADOS'!R53","v":0},{"$f":"+'II-DEM RESULTADOS'!S53","v":0},{"$f":"+'II-DEM RESULTADOS'!T53","v":0},{"$f":"+'II-DEM RESULTADOS'!U53","v":0},{"$f":"+'II-DEM RESULTADOS'!V53","v":0},{"$f":"+'II-DEM RESULTADOS'!W53","v":0},{"$f":"+'II-DEM RESULTADOS'!X53","v":0},{"$f":"+'II-DEM RESULTADOS'!Y53","v":0},{"$f":"+'II-DEM RESULTADOS'!Z53","v":0},{"$f":"+'II-DEM RESULTADOS'!AA53","v":0},{"$f":"+'II-DEM RESULTADOS'!AB53","v":0}]
[{"$f":"+'dados I'!$A$2","v":20008838749},{"$f":"+'dados I'!$B$2","v":502065591},{"$f":"+'II-DEM RESULTADOS'!C54","v":6222},{"$f":"+'II-DEM RESULTADOS'!F54","v":"PUBLICIDADE E PROPAGANDA"},{"$f":"+'II-DEM RESULTADOS'!I54","v":0},{"$f":"+'II-DEM RESULTADOS'!J54","v":0},{"$f":"+'II-DEM RESULTADOS'!K54","v":0},{"$f":"+'II-DEM RESULTADOS'!L54","v":0},{"$f":"+'II-DEM RESULTADOS'!M54","v":0},{"$f":"+'II-DEM RESULTADOS'!N54","v":0},{"$f":"+'II-DEM RESULTADOS'!O54","v":0},{"$f":"+'II-DEM RESULTADOS'!P54","v":0},{"$f":"+'II-DEM RESULTADOS'!Q54","v":0},{"$f":"+'II-DEM RESULTADOS'!R54","v":0},{"$f":"+'II-DEM RESULTADOS'!S54","v":0},{"$f":"+'II-DEM RESULTADOS'!T54","v":0},{"$f":"+'II-DEM RESULTADOS'!U54","v":0},{"$f":"+'II-DEM RESULTADOS'!V54","v":0},{"$f":"+'II-DEM RESULTADOS'!W54","v":0},{"$f":"+'II-DEM RESULTADOS'!X54","v":0},{"$f":"+'II-DEM RESULTADOS'!Y54","v":0},{"$f":"+'II-DEM RESULTADOS'!Z54","v":0},{"$f":"+'II-DEM RESULTADOS'!AA54","v":0},{"$f":"+'II-DEM RESULTADOS'!AB54","v":0}]
[{"$f":"+'dados I'!$A$2","v":20008838749},{"$f":"+'dados I'!$B$2","v":502065591},{"$f":"+'II-DEM RESULTADOS'!C55","v":6223},{"$f":"+'II-DEM RESULTADOS'!F55","v":"VIGILÂNCIA E SEGURANÇA"},{"$f":"+'II-DEM RESULTADOS'!I55","v":700},{"$f":"+'II-DEM RESULTADOS'!J55","v":175},{"$f":"+'II-DEM RESULTADOS'!K55","v":175},{"$f":"+'II-DEM RESULTADOS'!L55","v":175},{"$f":"+'II-DEM RESULTADOS'!M55","v":175},{"$f":"+'II-DEM RESULTADOS'!N55","v":0},{"$f":"+'II-DEM RESULTADOS'!O55","v":0},{"$f":"+'II-DEM RESULTADOS'!P55","v":0},{"$f":"+'II-DEM RESULTADOS'!Q55","v":0},{"$f":"+'II-DEM RESULTADOS'!R55","v":0},{"$f":"+'II-DEM RESULTADOS'!S55","v":0},{"$f":"+'II-DEM RESULTADOS'!T55","v":0},{"$f":"+'II-DEM RESULTADOS'!U55","v":0},{"$f":"+'II-DEM RESULTADOS'!V55","v":0},{"$f":"+'II-DEM RESULTADOS'!W55","v":0},{"$f":"+'II-DEM RESULTADOS'!X55","v":0},{"$f":"+'II-DEM RESULTADOS'!Y55","v":0},{"$f":"+'II-DEM RESULTADOS'!Z55","v":0},{"$f":"+'II-DEM RESULTADOS'!AA55","v":0},{"$f":"+'II-DEM RESULTADOS'!AB55","v":0}]
[{"$f":"+'dados I'!$A$2","v":20008838749},{"$f":"+'dados I'!$B$2","v":502065591},{"$f":"+'II-DEM RESULTADOS'!C56","v":6224},{"$f":"+'II-DEM RESULTADOS'!F56","v":"HONORÁRIOS"},{"$f":"+'II-DEM RESULTADOS'!I56","v":0},{"$f":"+'II-DEM RESULTADOS'!J56","v":0},{"$f":"+'II-DEM RESULTADOS'!K56","v":0},{"$f":"+'II-DEM RESULTADOS'!L56","v":0},{"$f":"+'II-DEM RESULTADOS'!M56","v":0},{"$f":"+'II-DEM RESULTADOS'!N56","v":0},{"$f":"+'II-DEM RESULTADOS'!O56","v":0},{"$f":"+'II-DEM RESULTADOS'!P56","v":0},{"$f":"+'II-DEM RESULTADOS'!Q56","v":0},{"$f":"+'II-DEM RESULTADOS'!R56","v":0},{"$f":"+'II-DEM RESULTADOS'!S56","v":0},{"$f":"+'II-DEM RESULTADOS'!T56","v":0},{"$f":"+'II-DEM RESULTADOS'!U56","v":0},{"$f":"+'II-DEM RESULTADOS'!V56","v":0},{"$f":"+'II-DEM RESULTADOS'!W56","v":0},{"$f":"+'II-DEM RESULTADOS'!X56","v":0},{"$f":"+'II-DEM RESULTADOS'!Y56","v":0},{"$f":"+'II-DEM RESULTADOS'!Z56","v":0},{"$f":"+'II-DEM RESULTADOS'!AA56","v":0},{"$f":"+'II-DEM RESULTADOS'!AB56","v":0}]
[{"$f":"+'dados I'!$A$2","v":20008838749},{"$f":"+'dados I'!$B$2","v":502065591},{"$f":"+'II-DEM RESULTADOS'!C57","v":6225},{"$f":"+'II-DEM RESULTADOS'!F57","v":"COMISSÕES"},{"$f":"+'II-DEM RESULTADOS'!I57","v":0},{"$f":"+'II-DEM RESULTADOS'!J57","v":0},{"$f":"+'II-DEM RESULTADOS'!K57","v":0},{"$f":"+'II-DEM RESULTADOS'!L57","v":0},{"$f":"+'II-DEM RESULTADOS'!M57","v":0},{"$f":"+'II-DEM RESULTADOS'!N57","v":0},{"$f":"+'II-DEM RESULTADOS'!O57","v":0},{"$f":"+'II-DEM RESULTADOS'!P57","v":0},{"$f":"+'II-DEM RESULTADOS'!Q57","v":0},{"$f":"+'II-DEM RESULTADOS'!R57","v":0},{"$f":"+'II-DEM RESULTADOS'!S57","v":0},{"$f":"+'II-DEM RESULTADOS'!T57","v":0},{"$f":"+'II-DEM RESULTADOS'!U57","v":0},{"$f":"+'II-DEM RESULTADOS'!V57","v":0},{"$f":"+'II-DEM RESULTADOS'!W57","v":0},{"$f":"+'II-DEM RESULTADOS'!X57","v":0},{"$f":"+'II-DEM RESULTADOS'!Y57","v":0},{"$f":"+'II-DEM RESULTADOS'!Z57","v":0},{"$f":"+'II-DEM RESULTADOS'!AA57","v":0},{"$f":"+'II-DEM RESULTADOS'!AB57","v":0}]
[{"$f":"+'dados I'!$A$2","v":20008838749},{"$f":"+'dados I'!$B$2","v":502065591},{"$f":"+'II-DEM RESULTADOS'!C58","v":6226},{"$f":"+'II-DEM RESULTADOS'!F58","v":"CONSERVAÇÃO E REPARAÇÃO"},{"$f":"+'II-DEM RESULTADOS'!I58","v":4200},{"$f":"+'II-DEM RESULTADOS'!J58","v":1400},{"$f":"+'II-DEM RESULTADOS'!K58","v":1400},{"$f":"+'II-DEM RESULTADOS'!L58","v":1400},{"$f":"+'II-DEM RESULTADOS'!M58","v":0},{"$f":"+'II-DEM RESULTADOS'!N58","v":0},{"$f":"+'II-DEM RESULTADOS'!O58","v":0},{"$f":"+'II-DEM RESULTADOS'!P58","v":0},{"$f":"+'II-DEM RESULTADOS'!Q58","v":0},{"$f":"+'II-DEM RESULTADOS'!R58","v":0},{"$f":"+'II-DEM RESULTADOS'!S58","v":0},{"$f":"+'II-DEM RESULTADOS'!T58","v":0},{"$f":"+'II-DEM RESULTADOS'!U58","v":0},{"$f":"+'II-DEM RESULTADOS'!V58","v":0},{"$f":"+'II-DEM RESULTADOS'!W58","v":0},{"$f":"+'II-DEM RESULTADOS'!X58","v":0},{"$f":"+'II-DEM RESULTADOS'!Y58","v":0},{"$f":"+'II-DEM RESULTADOS'!Z58","v":0},{"$f":"+'II-DEM RESULTADOS'!AA58","v":0},{"$f":"+'II-DEM RESULTADOS'!AB58","v":0}]
[{"$f":"+'dados I'!$A$2","v":20008838749},{"$f":"+'dados I'!$B$2","v":502065591},{"$f":"+'II-DEM RESULTADOS'!C59","v":6228},{"$f":"+'II-DEM RESULTADOS'!F59","v":"OUTROS"},{"$f":"+'II-DEM RESULTADOS'!I59","v":2000},{"$f":"+'II-DEM RESULTADOS'!J59","v":500},{"$f":"+'II-DEM RESULTADOS'!K59","v":500},{"$f":"+'II-DEM RESULTADOS'!L59","v":500},{"$f":"+'II-DEM RESULTADOS'!M59","v":500},{"$f":"+'II-DEM RESULTADOS'!N59","v":0},{"$f":"+'II-DEM RESULTADOS'!O59","v":0},{"$f":"+'II-DEM RESULTADOS'!P59","v":0},{"$f":"+'II-DEM RESULTADOS'!Q59","v":0},{"$f":"+'II-DEM RESULTADOS'!R59","v":0},{"$f":"+'II-DEM RESULTADOS'!S59","v":0},{"$f":"+'II-DEM RESULTADOS'!T59","v":0},{"$f":"+'II-DEM RESULTADOS'!U59","v":0},{"$f":"+'II-DEM RESULTADOS'!V59","v":0},{"$f":"+'II-DEM RESULTADOS'!W59","v":0},{"$f":"+'II-DEM RESULTADOS'!X59","v":0},{"$f":"+'II-DEM RESULTADOS'!Y59","v":0},{"$f":"+'II-DEM RESULTADOS'!Z59","v":0},{"$f":"+'II-DEM RESULTADOS'!AA59","v":0},{"$f":"+'II-DEM RESULTADOS'!AB59","v":0}]
[{"$f":"+'dados I'!$A$2","v":20008838749},{"$f":"+'dados I'!$B$2","v":502065591},{"$f":"+'II-DEM RESULTADOS'!C60","v":623},{"$f":"+'II-DEM RESULTADOS'!F60","v":"MATERIAIS"},{"$f":"+'II-DEM RESULTADOS'!I60","v":11750},{"$f":"+'II-DEM RESULTADOS'!J60","v":2742.5},{"$f":"+'II-DEM RESULTADOS'!K60","v":4082.5},{"$f":"+'II-DEM RESULTADOS'!L60","v":2712.5},{"$f":"+'II-DEM RESULTADOS'!M60","v":2212.5},{"$f":"+'II-DEM RESULTADOS'!N60","v":0},{"$f":"+'II-DEM RESULTADOS'!O60","v":0},{"$f":"+'II-DEM RESULTADOS'!P60","v":0},{"$f":"+'II-DEM RESULTADOS'!Q60","v":0},{"$f":"+'II-DEM RESULTADOS'!R60","v":0},{"$f":"+'II-DEM RESULTADOS'!S60","v":0},{"$f":"+'II-DEM RESULTADOS'!T60","v":0},{"$f":"+'II-DEM RESULTADOS'!U60","v":0},{"$f":"+'II-DEM RESULTADOS'!V60","v":0},{"$f":"+'II-DEM RESULTADOS'!W60","v":0},{"$f":"+'II-DEM RESULTADOS'!X60","v":0},{"$f":"+'II-DEM RESULTADOS'!Y60","v":0},{"$f":"+'II-DEM RESULTADOS'!Z60","v":0},{"$f":"+'II-DEM RESULTADOS'!AA60","v":0},{"$f":"+'II-DEM RESULTADOS'!AB60","v":0}]
[{"$f":"+'dados I'!$A$2","v":20008838749},{"$f":"+'dados I'!$B$2","v":502065591},{"$f":"+'II-DEM RESULTADOS'!C61","v":6231},{"$f":"+'II-DEM RESULTADOS'!F61","v":"FERRAMENTAS E UTENSÍLIOS DE DESGATE RÁPIDO"},{"$f":"+'II-DEM RESULTADOS'!I61","v":6500},{"$f":"+'II-DEM RESULTADOS'!J61","v":1625},{"$f":"+'II-DEM RESULTADOS'!K61","v":1625},{"$f":"+'II-DEM RESULTADOS'!L61","v":1625},{"$f":"+'II-DEM RESULTADOS'!M61","v":1625},{"$f":"+'II-DEM RESULTADOS'!N61","v":0},{"$f":"+'II-DEM RESULTADOS'!O61","v":0},{"$f":"+'II-DEM RESULTADOS'!P61","v":0},{"$f":"+'II-DEM RESULTADOS'!Q61","v":0},{"$f":"+'II-DEM RESULTADOS'!R61","v":0},{"$f":"+'II-DEM RESULTADOS'!S61","v":0},{"$f":"+'II-DEM RESULTADOS'!T61","v":0},{"$f":"+'II-DEM RESULTADOS'!U61","v":0},{"$f":"+'II-DEM RESULTADOS'!V61","v":0},{"$f":"+'II-DEM RESULTADOS'!W61","v":0},{"$f":"+'II-DEM RESULTADOS'!X61","v":0},{"$f":"+'II-DEM RESULTADOS'!Y61","v":0},{"$f":"+'II-DEM RESULTADOS'!Z61","v":0},{"$f":"+'II-DEM RESULTADOS'!AA61","v":0},{"$f":"+'II-DEM RESULTADOS'!AB61","v":0}]
[{"$f":"+'dados I'!$A$2","v":20008838749},{"$f":"+'dados I'!$B$2","v":502065591},{"$f":"+'II-DEM RESULTADOS'!C62","v":6232},{"$f":"+'II-DEM RESULTADOS'!F62","v":"LIVROS E DOCUMENTAÇÃO TÉCNICA"},{"$f":"+'II-DEM RESULTADOS'!I62","v":0},{"$f":"+'II-DEM RESULTADOS'!J62","v":0},{"$f":"+'II-DEM RESULTADOS'!K62","v":0},{"$f":"+'II-DEM RESULTADOS'!L62","v":0},{"$f":"+'II-DEM RESULTADOS'!M62","v":0},{"$f":"+'II-DEM RESULTADOS'!N62","v":0},{"$f":"+'II-DEM RESULTADOS'!O62","v":0},{"$f":"+'II-DEM RESULTADOS'!P62","v":0},{"$f":"+'II-DEM RESULTADOS'!Q62","v":0},{"$f":"+'II-DEM RESULTADOS'!R62","v":0},{"$f":"+'II-DEM RESULTADOS'!S62","v":0},{"$f":"+'II-DEM RESULTADOS'!T62","v":0},{"$f":"+'II-DEM RESULTADOS'!U62","v":0},{"$f":"+'II-DEM RESULTADOS'!V62","v":0},{"$f":"+'II-DEM RESULTADOS'!W62","v":0},{"$f":"+'II-DEM RESULTADOS'!X62","v":0},{"$f":"+'II-DEM RESULTADOS'!Y62","v":0},{"$f":"+'II-DEM RESULTADOS'!Z62","v":0},{"$f":"+'II-DEM RESULTADOS'!AA62","v":0},{"$f":"+'II-DEM RESULTADOS'!AB62","v":0}]
[{"$f":"+'dados I'!$A$2","v":20008838749},{"$f":"+'dados I'!$B$2","v":502065591},{"$f":"+'II-DEM RESULTADOS'!C63","v":6233},{"$f":"+'II-DEM RESULTADOS'!F63","v":"MATERIAL DE ESCRITÓRIO"},{"$f":"+'II-DEM RESULTADOS'!I63","v":2000},{"$f":"+'II-DEM RESULTADOS'!J63","v":500},{"$f":"+'II-DEM RESULTADOS'!K63","v":880},{"$f":"+'II-DEM RESULTADOS'!L63","v":500},{"$f":"+'II-DEM RESULTADOS'!M63","v":120},{"$f":"+'II-DEM RESULTADOS'!N63","v":0},{"$f":"+'II-DEM RESULTADOS'!O63","v":0},{"$f":"+'II-DEM RESULTADOS'!P63","v":0},{"$f":"+'II-DEM RESULTADOS'!Q63","v":0},{"$f":"+'II-DEM RESULTADOS'!R63","v":0},{"$f":"+'II-DEM RESULTADOS'!S63","v":0},{"$f":"+'II-DEM RESULTADOS'!T63","v":0},{"$f":"+'II-DEM RESULTADOS'!U63","v":0},{"$f":"+'II-DEM RESULTADOS'!V63","v":0},{"$f":"+'II-DEM RESULTADOS'!W63","v":0},{"$f":"+'II-DEM RESULTADOS'!X63","v":0},{"$f":"+'II-DEM RESULTADOS'!Y63","v":0},{"$f":"+'II-DEM RESULTADOS'!Z63","v":0},{"$f":"+'II-DEM RESULTADOS'!AA63","v":0},{"$f":"+'II-DEM RESULTADOS'!AB63","v":0}]
[{"$f":"+'dados I'!$A$2","v":20008838749},{"$f":"+'dados I'!$B$2","v":502065591},{"$f":"+'II-DEM RESULTADOS'!C64","v":6234},{"$f":"+'II-DEM RESULTADOS'!F64","v":"ARTIGOS PARA OFERTA"},{"$f":"+'II-DEM RESULTADOS'!I64","v":1750},{"$f":"+'II-DEM RESULTADOS'!J64","v":437.5},{"$f":"+'II-DEM RESULTADOS'!K64","v":437.5},{"$f":"+'II-DEM RESULTADOS'!L64","v":437.5},{"$f":"+'II-DEM RESULTADOS'!M64","v":437.5},{"$f":"+'II-DEM RESULTADOS'!N64","v":0},{"$f":"+'II-DEM RESULTADOS'!O64","v":0},{"$f":"+'II-DEM RESULTADOS'!P64","v":0},{"$f":"+'II-DEM RESULTADOS'!Q64","v":0},{"$f":"+'II-DEM RESULTADOS'!R64","v":0},{"$f":"+'II-DEM RESULTADOS'!S64","v":0},{"$f":"+'II-DEM RESULTADOS'!T64","v":0},{"$f":"+'II-DEM RESULTADOS'!U64","v":0},{"$f":"+'II-DEM RESULTADOS'!V64","v":0},{"$f":"+'II-DEM RESULTADOS'!W64","v":0},{"$f":"+'II-DEM RESULTADOS'!X64","v":0},{"$f":"+'II-DEM RESULTADOS'!Y64","v":0},{"$f":"+'II-DEM RESULTADOS'!Z64","v":0},{"$f":"+'II-DEM RESULTADOS'!AA64","v":0},{"$f":"+'II-DEM RESULTADOS'!AB64","v":0}]
[{"$f":"+'dados I'!$A$2","v":20008838749},{"$f":"+'dados I'!$B$2","v":502065591},{"$f":"+'II-DEM RESULTADOS'!C65","v":"6235/6238"},{"$f":"+'II-DEM RESULTADOS'!F65","v":"OUTROS"},{"$f":"+'II-DEM RESULTADOS'!I65","v":1500},{"$f":"+'II-DEM RESULTADOS'!J65","v":180},{"$f":"+'II-DEM RESULTADOS'!K65","v":1140},{"$f":"+'II-DEM RESULTADOS'!L65","v":150},{"$f":"+'II-DEM RESULTADOS'!M65","v":30},{"$f":"+'II-DEM RESULTADOS'!N65","v":0},{"$f":"+'II-DEM RESULTADOS'!O65","v":0},{"$f":"+'II-DEM RESULTADOS'!P65","v":0},{"$f":"+'II-DEM RESULTADOS'!Q65","v":0},{"$f":"+'II-DEM RESULTADOS'!R65","v":0},{"$f":"+'II-DEM RESULTADOS'!S65","v":0},{"$f":"+'II-DEM RESULTADOS'!T65","v":0},{"$f":"+'II-DEM RESULTADOS'!U65","v":0},{"$f":"+'II-DEM RESULTADOS'!V65","v":0},{"$f":"+'II-DEM RESULTADOS'!W65","v":0},{"$f":"+'II-DEM RESULTADOS'!X65","v":0},{"$f":"+'II-DEM RESULTADOS'!Y65","v":0},{"$f":"+'II-DEM RESULTADOS'!Z65","v":0},{"$f":"+'II-DEM RESULTADOS'!AA65","v":0},{"$f":"+'II-DEM RESULTADOS'!AB65","v":0}]
[{"$f":"+'dados I'!$A$2","v":20008838749},{"$f":"+'dados I'!$B$2","v":502065591},{"$f":"+'II-DEM RESULTADOS'!C66","v":624},{"$f":"+'II-DEM RESULTADOS'!F66","v":"ENERGIA E FLUIDOS"},{"$f":"+'II-DEM RESULTADOS'!I66","v":11950},{"$f":"+'II-DEM RESULTADOS'!J66","v":3584.5},{"$f":"+'II-DEM RESULTADOS'!K66","v":4164.5},{"$f":"+'II-DEM RESULTADOS'!L66","v":1896},{"$f":"+'II-DEM RESULTADOS'!M66","v":2305},{"$f":"+'II-DEM RESULTADOS'!N66","v":0},{"$f":"+'II-DEM RESULTADOS'!O66","v":0},{"$f":"+'II-DEM RESULTADOS'!P66","v":0},{"$f":"+'II-DEM RESULTADOS'!Q66","v":0},{"$f":"+'II-DEM RESULTADOS'!R66","v":0},{"$f":"+'II-DEM RESULTADOS'!S66","v":0},{"$f":"+'II-DEM RESULTADOS'!T66","v":0},{"$f":"+'II-DEM RESULTADOS'!U66","v":0},{"$f":"+'II-DEM RESULTADOS'!V66","v":0},{"$f":"+'II-DEM RESULTADOS'!W66","v":0},{"$f":"+'II-DEM RESULTADOS'!X66","v":0},{"$f":"+'II-DEM RESULTADOS'!Y66","v":0},{"$f":"+'II-DEM RESULTADOS'!Z66","v":0},{"$f":"+'II-DEM RESULTADOS'!AA66","v":0},{"$f":"+'II-DEM RESULTADOS'!AB66","v":0}]
[{"$f":"+'dados I'!$A$2","v":20008838749},{"$f":"+'dados I'!$B$2","v":502065591},{"$f":"+'II-DEM RESULTADOS'!C67","v":6241},{"$f":"+'II-DEM RESULTADOS'!F67","v":"ELETRICIDADE"},{"$f":"+'II-DEM RESULTADOS'!I67","v":7500},{"$f":"+'II-DEM RESULTADOS'!J67","v":2532},{"$f":"+'II-DEM RESULTADOS'!K67","v":2532},{"$f":"+'II-DEM RESULTADOS'!L67","v":1291},{"$f":"+'II-DEM RESULTADOS'!M67","v":1145},{"$f":"+'II-DEM RESULTADOS'!N67","v":0},{"$f":"+'II-DEM RESULTADOS'!O67","v":0},{"$f":"+'II-DEM RESULTADOS'!P67","v":0},{"$f":"+'II-DEM RESULTADOS'!Q67","v":0},{"$f":"+'II-DEM RESULTADOS'!R67","v":0},{"$f":"+'II-DEM RESULTADOS'!S67","v":0},{"$f":"+'II-DEM RESULTADOS'!T67","v":0},{"$f":"+'II-DEM RESULTADOS'!U67","v":0},{"$f":"+'II-DEM RESULTADOS'!V67","v":0},{"$f":"+'II-DEM RESULTADOS'!W67","v":0},{"$f":"+'II-DEM RESULTADOS'!X67","v":0},{"$f":"+'II-DEM RESULTADOS'!Y67","v":0},{"$f":"+'II-DEM RESULTADOS'!Z67","v":0},{"$f":"+'II-DEM RESULTADOS'!AA67","v":0},{"$f":"+'II-DEM RESULTADOS'!AB67","v":0}]
[{"$f":"+'dados I'!$A$2","v":20008838749},{"$f":"+'dados I'!$B$2","v":502065591},{"$f":"+'II-DEM RESULTADOS'!C68","v":6242},{"$f":"+'II-DEM RESULTADOS'!F68","v":"COMBUSTÍVEIS"},{"$f":"+'II-DEM RESULTADOS'!I68","v":1200},{"$f":"+'II-DEM RESULTADOS'!J68","v":240},{"$f":"+'II-DEM RESULTADOS'!K68","v":240},{"$f":"+'II-DEM RESULTADOS'!L68","v":240},{"$f":"+'II-DEM RESULTADOS'!M68","v":480},{"$f":"+'II-DEM RESULTADOS'!N68","v":0},{"$f":"+'II-DEM RESULTADOS'!O68","v":0},{"$f":"+'II-DEM RESULTADOS'!P68","v":0},{"$f":"+'II-DEM RESULTADOS'!Q68","v":0},{"$f":"+'II-DEM RESULTADOS'!R68","v":0},{"$f":"+'II-DEM RESULTADOS'!S68","v":0},{"$f":"+'II-DEM RESULTADOS'!T68","v":0},{"$f":"+'II-DEM RESULTADOS'!U68","v":0},{"$f":"+'II-DEM RESULTADOS'!V68","v":0},{"$f":"+'II-DEM RESULTADOS'!W68","v":0},{"$f":"+'II-DEM RESULTADOS'!X68","v":0},{"$f":"+'II-DEM RESULTADOS'!Y68","v":0},{"$f":"+'II-DEM RESULTADOS'!Z68","v":0},{"$f":"+'II-DEM RESULTADOS'!AA68","v":0},{"$f":"+'II-DEM RESULTADOS'!AB68","v":0}]
[{"$f":"+'dados I'!$A$2","v":20008838749},{"$f":"+'dados I'!$B$2","v":502065591},{"$f":"+'II-DEM RESULTADOS'!C69","v":6243},{"$f":"+'II-DEM RESULTADOS'!F69","v":"ÁGUA"},{"$f":"+'II-DEM RESULTADOS'!I69","v":1250},{"$f":"+'II-DEM RESULTADOS'!J69","v":312.5},{"$f":"+'II-DEM RESULTADOS'!K69","v":312.5},{"$f":"+'II-DEM RESULTADOS'!L69","v":225},{"$f":"+'II-DEM RESULTADOS'!M69","v":400},{"$f":"+'II-DEM RESULTADOS'!N69","v":0},{"$f":"+'II-DEM RESULTADOS'!O69","v":0},{"$f":"+'II-DEM RESULTADOS'!P69","v":0},{"$f":"+'II-DEM RESULTADOS'!Q69","v":0},{"$f":"+'II-DEM RESULTADOS'!R69","v":0},{"$f":"+'II-DEM RESULTADOS'!S69","v":0},{"$f":"+'II-DEM RESULTADOS'!T69","v":0},{"$f":"+'II-DEM RESULTADOS'!U69","v":0},{"$f":"+'II-DEM RESULTADOS'!V69","v":0},{"$f":"+'II-DEM RESULTADOS'!W69","v":0},{"$f":"+'II-DEM RESULTADOS'!X69","v":0},{"$f":"+'II-DEM RESULTADOS'!Y69","v":0},{"$f":"+'II-DEM RESULTADOS'!Z69","v":0},{"$f":"+'II-DEM RESULTADOS'!AA69","v":0},{"$f":"+'II-DEM RESULTADOS'!AB69","v":0}]
[{"$f":"+'dados I'!$A$2","v":20008838749},{"$f":"+'dados I'!$B$2","v":502065591},{"$f":"+'II-DEM RESULTADOS'!C70","v":6248},{"$f":"+'II-DEM RESULTADOS'!F70","v":"OUTROS"},{"$f":"+'II-DEM RESULTADOS'!I70","v":2000},{"$f":"+'II-DEM RESULTADOS'!J70","v":500},{"$f":"+'II-DEM RESULTADOS'!K70","v":1080},{"$f":"+'II-DEM RESULTADOS'!L70","v":140},{"$f":"+'II-DEM RESULTADOS'!M70","v":280},{"$f":"+'II-DEM RESULTADOS'!N70","v":0},{"$f":"+'II-DEM RESULTADOS'!O70","v":0},{"$f":"+'II-DEM RESULTADOS'!P70","v":0},{"$f":"+'II-DEM RESULTADOS'!Q70","v":0},{"$f":"+'II-DEM RESULTADOS'!R70","v":0},{"$f":"+'II-DEM RESULTADOS'!S70","v":0},{"$f":"+'II-DEM RESULTADOS'!T70","v":0},{"$f":"+'II-DEM RESULTADOS'!U70","v":0},{"$f":"+'II-DEM RESULTADOS'!V70","v":0},{"$f":"+'II-DEM RESULTADOS'!W70","v":0},{"$f":"+'II-DEM RESULTADOS'!X70","v":0},{"$f":"+'II-DEM RESULTADOS'!Y70","v":0},{"$f":"+'II-DEM RESULTADOS'!Z70","v":0},{"$f":"+'II-DEM RESULTADOS'!AA70","v":0},{"$f":"+'II-DEM RESULTADOS'!AB70","v":0}]
[{"$f":"+'dados I'!$A$2","v":20008838749},{"$f":"+'dados I'!$B$2","v":502065591},{"$f":"+'II-DEM RESULTADOS'!C71","v":625},{"$f":"+'II-DEM RESULTADOS'!F71","v":"DESLOCAÇÕES, ESTADAS E TRANSPORTES"},{"$f":"+'II-DEM RESULTADOS'!I71","v":1500},{"$f":"+'II-DEM RESULTADOS'!J71","v":375},{"$f":"+'II-DEM RESULTADOS'!K71","v":375},{"$f":"+'II-DEM RESULTADOS'!L71","v":375},{"$f":"+'II-DEM RESULTADOS'!M71","v":375},{"$f":"+'II-DEM RESULTADOS'!N71","v":0},{"$f":"+'II-DEM RESULTADOS'!O71","v":0},{"$f":"+'II-DEM RESULTADOS'!P71","v":0},{"$f":"+'II-DEM RESULTADOS'!Q71","v":0},{"$f":"+'II-DEM RESULTADOS'!R71","v":0},{"$f":"+'II-DEM RESULTADOS'!S71","v":0},{"$f":"+'II-DEM RESULTADOS'!T71","v":0},{"$f":"+'II-DEM RESULTADOS'!U71","v":0},{"$f":"+'II-DEM RESULTADOS'!V71","v":0},{"$f":"+'II-DEM RESULTADOS'!W71","v":0},{"$f":"+'II-DEM RESULTADOS'!X71","v":0},{"$f":"+'II-DEM RESULTADOS'!Y71","v":0},{"$f":"+'II-DEM RESULTADOS'!Z71","v":0},{"$f":"+'II-DEM RESULTADOS'!AA71","v":0},{"$f":"+'II-DEM RESULTADOS'!AB71","v":0}]
[{"$f":"+'dados I'!$A$2","v":20008838749},{"$f":"+'dados I'!$B$2","v":502065591},{"$f":"+'II-DEM RESULTADOS'!C72","v":6251},{"$f":"+'II-DEM RESULTADOS'!F72","v":"DESLOCAÇÕES E ESTADAS"},{"$f":"+'II-DEM RESULTADOS'!I72","v":1500},{"$f":"+'II-DEM RESULTADOS'!J72","v":375},{"$f":"+'II-DEM RESULTADOS'!K72","v":375},{"$f":"+'II-DEM RESULTADOS'!L72","v":375},{"$f":"+'II-DEM RESULTADOS'!M72","v":375},{"$f":"+'II-DEM RESULTADOS'!N72","v":0},{"$f":"+'II-DEM RESULTADOS'!O72","v":0},{"$f":"+'II-DEM RESULTADOS'!P72","v":0},{"$f":"+'II-DEM RESULTADOS'!Q72","v":0},{"$f":"+'II-DEM RESULTADOS'!R72","v":0},{"$f":"+'II-DEM RESULTADOS'!S72","v":0},{"$f":"+'II-DEM RESULTADOS'!T72","v":0},{"$f":"+'II-DEM RESULTADOS'!U72","v":0},{"$f":"+'II-DEM RESULTADOS'!V72","v":0},{"$f":"+'II-DEM RESULTADOS'!W72","v":0},{"$f":"+'II-DEM RESULTADOS'!X72","v":0},{"$f":"+'II-DEM RESULTADOS'!Y72","v":0},{"$f":"+'II-DEM RESULTADOS'!Z72","v":0},{"$f":"+'II-DEM RESULTADOS'!AA72","v":0},{"$f":"+'II-DEM RESULTADOS'!AB72","v":0}]
[{"$f":"+'dados I'!$A$2","v":20008838749},{"$f":"+'dados I'!$B$2","v":502065591},{"$f":"+'II-DEM RESULTADOS'!C73","v":6252},{"$f":"+'II-DEM RESULTADOS'!F73","v":"TRANSPORTES DE PESSOAL"},{"$f":"+'II-DEM RESULTADOS'!I73","v":0},{"$f":"+'II-DEM RESULTADOS'!J73","v":0},{"$f":"+'II-DEM RESULTADOS'!K73","v":0},{"$f":"+'II-DEM RESULTADOS'!L73","v":0},{"$f":"+'II-DEM RESULTADOS'!M73","v":0},{"$f":"+'II-DEM RESULTADOS'!N73","v":0},{"$f":"+'II-DEM RESULTADOS'!O73","v":0},{"$f":"+'II-DEM RESULTADOS'!P73","v":0},{"$f":"+'II-DEM RESULTADOS'!Q73","v":0},{"$f":"+'II-DEM RESULTADOS'!R73","v":0},{"$f":"+'II-DEM RESULTADOS'!S73","v":0},{"$f":"+'II-DEM RESULTADOS'!T73","v":0},{"$f":"+'II-DEM RESULTADOS'!U73","v":0},{"$f":"+'II-DEM RESULTADOS'!V73","v":0},{"$f":"+'II-DEM RESULTADOS'!W73","v":0},{"$f":"+'II-DEM RESULTADOS'!X73","v":0},{"$f":"+'II-DEM RESULTADOS'!Y73","v":0},{"$f":"+'II-DEM RESULTADOS'!Z73","v":0},{"$f":"+'II-DEM RESULTADOS'!AA73","v":0},{"$f":"+'II-DEM RESULTADOS'!AB73","v":0}]
[{"$f":"+'dados I'!$A$2","v":20008838749},{"$f":"+'dados I'!$B$2","v":502065591},{"$f":"+'II-DEM RESULTADOS'!C74","v":6253},{"$f":"+'II-DEM RESULTADOS'!F74","v":"TRANSPORTES DE MERCADORIAS"},{"$f":"+'II-DEM RESULTADOS'!I74","v":0},{"$f":"+'II-DEM RESULTADOS'!J74","v":0},{"$f":"+'II-DEM RESULTADOS'!K74","v":0},{"$f":"+'II-DEM RESULTADOS'!L74","v":0},{"$f":"+'II-DEM RESULTADOS'!M74","v":0},{"$f":"+'II-DEM RESULTADOS'!N74","v":0},{"$f":"+'II-DEM RESULTADOS'!O74","v":0},{"$f":"+'II-DEM RESULTADOS'!P74","v":0},{"$f":"+'II-DEM RESULTADOS'!Q74","v":0},{"$f":"+'II-DEM RESULTADOS'!R74","v":0},{"$f":"+'II-DEM RESULTADOS'!S74","v":0},{"$f":"+'II-DEM RESULTADOS'!T74","v":0},{"$f":"+'II-DEM RESULTADOS'!U74","v":0},{"$f":"+'II-DEM RESULTADOS'!V74","v":0},{"$f":"+'II-DEM RESULTADOS'!W74","v":0},{"$f":"+'II-DEM RESULTADOS'!X74","v":0},{"$f":"+'II-DEM RESULTADOS'!Y74","v":0},{"$f":"+'II-DEM RESULTADOS'!Z74","v":0},{"$f":"+'II-DEM RESULTADOS'!AA74","v":0},{"$f":"+'II-DEM RESULTADOS'!AB74","v":0}]
[{"$f":"+'dados I'!$A$2","v":20008838749},{"$f":"+'dados I'!$B$2","v":502065591},{"$f":"+'II-DEM RESULTADOS'!C75","v":6258},{"$f":"+'II-DEM RESULTADOS'!F75","v":"OUTROS"},{"$f":"+'II-DEM RESULTADOS'!I75","v":0},{"$f":"+'II-DEM RESULTADOS'!J75","v":0},{"$f":"+'II-DEM RESULTADOS'!K75","v":0},{"$f":"+'II-DEM RESULTADOS'!L75","v":0},{"$f":"+'II-DEM RESULTADOS'!M75","v":0},{"$f":"+'II-DEM RESULTADOS'!N75","v":0},{"$f":"+'II-DEM RESULTADOS'!O75","v":0},{"$f":"+'II-DEM RESULTADOS'!P75","v":0},{"$f":"+'II-DEM RESULTADOS'!Q75","v":0},{"$f":"+'II-DEM RESULTADOS'!R75","v":0},{"$f":"+'II-DEM RESULTADOS'!S75","v":0},{"$f":"+'II-DEM RESULTADOS'!T75","v":0},{"$f":"+'II-DEM RESULTADOS'!U75","v":0},{"$f":"+'II-DEM RESULTADOS'!V75","v":0},{"$f":"+'II-DEM RESULTADOS'!W75","v":0},{"$f":"+'II-DEM RESULTADOS'!X75","v":0},{"$f":"+'II-DEM RESULTADOS'!Y75","v":0},{"$f":"+'II-DEM RESULTADOS'!Z75","v":0},{"$f":"+'II-DEM RESULTADOS'!AA75","v":0},{"$f":"+'II-DEM RESULTADOS'!AB75","v":0}]
[{"$f":"+'dados I'!$A$2","v":20008838749},{"$f":"+'dados I'!$B$2","v":502065591},{"$f":"+'II-DEM RESULTADOS'!C76","v":626},{"$f":"+'II-DEM RESULTADOS'!F76","v":"SERVIÇOS DIVERSOS"},{"$f":"+'II-DEM RESULTADOS'!I76","v":10050},{"$f":"+'II-DEM RESULTADOS'!J76","v":3067.5},{"$f":"+'II-DEM RESULTADOS'!K76","v":2817.5},{"$f":"+'II-DEM RESULTADOS'!L76","v":2577.5},{"$f":"+'II-DEM RESULTADOS'!M76","v":1587.5},{"$f":"+'II-DEM RESULTADOS'!N76","v":0},{"$f":"+'II-DEM RESULTADOS'!O76","v":0},{"$f":"+'II-DEM RESULTADOS'!P76","v":0},{"$f":"+'II-DEM RESULTADOS'!Q76","v":0},{"$f":"+'II-DEM RESULTADOS'!R76","v":0},{"$f":"+'II-DEM RESULTADOS'!S76","v":0},{"$f":"+'II-DEM RESULTADOS'!T76","v":0},{"$f":"+'II-DEM RESULTADOS'!U76","v":0},{"$f":"+'II-DEM RESULTADOS'!V76","v":0},{"$f":"+'II-DEM RESULTADOS'!W76","v":0},{"$f":"+'II-DEM RESULTADOS'!X76","v":0},{"$f":"+'II-DEM RESULTADOS'!Y76","v":0},{"$f":"+'II-DEM RESULTADOS'!Z76","v":0},{"$f":"+'II-DEM RESULTADOS'!AA76","v":0},{"$f":"+'II-DEM RESULTADOS'!AB76","v":0}]
[{"$f":"+'dados I'!$A$2","v":20008838749},{"$f":"+'dados I'!$B$2","v":502065591},{"$f":"+'II-DEM RESULTADOS'!C77","v":6261},{"$f":"+'II-DEM RESULTADOS'!F77","v":"RENDAS E ALUGUERES"},{"$f":"+'II-DEM RESULTADOS'!I77","v":0},{"$f":"+'II-DEM RESULTADOS'!J77","v":0},{"$f":"+'II-DEM RESULTADOS'!K77","v":0},{"$f":"+'II-DEM RESULTADOS'!L77","v":0},{"$f":"+'II-DEM RESULTADOS'!M77","v":0},{"$f":"+'II-DEM RESULTADOS'!N77","v":0},{"$f":"+'II-DEM RESULTADOS'!O77","v":0},{"$f":"+'II-DEM RESULTADOS'!P77","v":0},{"$f":"+'II-DEM RESULTADOS'!Q77","v":0},{"$f":"+'II-DEM RESULTADOS'!R77","v":0},{"$f":"+'II-DEM RESULTADOS'!S77","v":0},{"$f":"+'II-DEM RESULTADOS'!T77","v":0},{"$f":"+'II-DEM RESULTADOS'!U77","v":0},{"$f":"+'II-DEM RESULTADOS'!V77","v":0},{"$f":"+'II-DEM RESULTADOS'!W77","v":0},{"$f":"+'II-DEM RESULTADOS'!X77","v":0},{"$f":"+'II-DEM RESULTADOS'!Y77","v":0},{"$f":"+'II-DEM RESULTADOS'!Z77","v":0},{"$f":"+'II-DEM RESULTADOS'!AA77","v":0},{"$f":"+'II-DEM RESULTADOS'!AB77","v":0}]
[{"$f":"+'dados I'!$A$2","v":20008838749},{"$f":"+'dados I'!$B$2","v":502065591},{"$f":"+'II-DEM RESULTADOS'!C78","v":6262},{"$f":"+'II-DEM RESULTADOS'!F78","v":"COMUNICAÇÃO"},{"$f":"+'II-DEM RESULTADOS'!I78","v":3000},{"$f":"+'II-DEM RESULTADOS'!J78","v":840},{"$f":"+'II-DEM RESULTADOS'!K78","v":840},{"$f":"+'II-DEM RESULTADOS'!L78","v":840},{"$f":"+'II-DEM RESULTADOS'!M78","v":480},{"$f":"+'II-DEM RESULTADOS'!N78","v":0},{"$f":"+'II-DEM RESULTADOS'!O78","v":0},{"$f":"+'II-DEM RESULTADOS'!P78","v":0},{"$f":"+'II-DEM RESULTADOS'!Q78","v":0},{"$f":"+'II-DEM RESULTADOS'!R78","v":0},{"$f":"+'II-DEM RESULTADOS'!S78","v":0},{"$f":"+'II-DEM RESULTADOS'!T78","v":0},{"$f":"+'II-DEM RESULTADOS'!U78","v":0},{"$f":"+'II-DEM RESULTADOS'!V78","v":0},{"$f":"+'II-DEM RESULTADOS'!W78","v":0},{"$f":"+'II-DEM RESULTADOS'!X78","v":0},{"$f":"+'II-DEM RESULTADOS'!Y78","v":0},{"$f":"+'II-DEM RESULTADOS'!Z78","v":0},{"$f":"+'II-DEM RESULTADOS'!AA78","v":0},{"$f":"+'II-DEM RESULTADOS'!AB78","v":0}]
[{"$f":"+'dados I'!$A$2","v":20008838749},{"$f":"+'dados I'!$B$2","v":502065591},{"$f":"+'II-DEM RESULTADOS'!C79","v":6263},{"$f":"+'II-DEM RESULTADOS'!F79","v":"SEGUROS"},{"$f":"+'II-DEM RESULTADOS'!I79","v":750},{"$f":"+'II-DEM RESULTADOS'!J79","v":187.5},{"$f":"+'II-DEM RESULTADOS'!K79","v":187.5},{"$f":"+'II-DEM RESULTADOS'!L79","v":187.5},{"$f":"+'II-DEM RESULTADOS'!M79","v":187.5},{"$f":"+'II-DEM RESULTADOS'!N79","v":0},{"$f":"+'II-DEM RESULTADOS'!O79","v":0},{"$f":"+'II-DEM RESULTADOS'!P79","v":0},{"$f":"+'II-DEM RESULTADOS'!Q79","v":0},{"$f":"+'II-DEM RESULTADOS'!R79","v":0},{"$f":"+'II-DEM RESULTADOS'!S79","v":0},{"$f":"+'II-DEM RESULTADOS'!T79","v":0},{"$f":"+'II-DEM RESULTADOS'!U79","v":0},{"$f":"+'II-DEM RESULTADOS'!V79","v":0},{"$f":"+'II-DEM RESULTADOS'!W79","v":0},{"$f":"+'II-DEM RESULTADOS'!X79","v":0},{"$f":"+'II-DEM RESULTADOS'!Y79","v":0},{"$f":"+'II-DEM RESULTADOS'!Z79","v":0},{"$f":"+'II-DEM RESULTADOS'!AA79","v":0},{"$f":"+'II-DEM RESULTADOS'!AB79","v":0}]
[{"$f":"+'dados I'!$A$2","v":20008838749},{"$f":"+'dados I'!$B$2","v":502065591},{"$f":"+'II-DEM RESULTADOS'!C80","v":6264},{"$f":"+'II-DEM RESULTADOS'!F80","v":"ROYALTIES"},{"$f":"+'II-DEM RESULTADOS'!I80","v":0},{"$f":"+'II-DEM RESULTADOS'!J80","v":0},{"$f":"+'II-DEM RESULTADOS'!K80","v":0},{"$f":"+'II-DEM RESULTADOS'!L80","v":0},{"$f":"+'II-DEM RESULTADOS'!M80","v":0},{"$f":"+'II-DEM RESULTADOS'!N80","v":0},{"$f":"+'II-DEM RESULTADOS'!O80","v":0},{"$f":"+'II-DEM RESULTADOS'!P80","v":0},{"$f":"+'II-DEM RESULTADOS'!Q80","v":0},{"$f":"+'II-DEM RESULTADOS'!R80","v":0},{"$f":"+'II-DEM RESULTADOS'!S80","v":0},{"$f":"+'II-DEM RESULTADOS'!T80","v":0},{"$f":"+'II-DEM RESULTADOS'!U80","v":0},{"$f":"+'II-DEM RESULTADOS'!V80","v":0},{"$f":"+'II-DEM RESULTADOS'!W80","v":0},{"$f":"+'II-DEM RESULTADOS'!X80","v":0},{"$f":"+'II-DEM RESULTADOS'!Y80","v":0},{"$f":"+'II-DEM RESULTADOS'!Z80","v":0},{"$f":"+'II-DEM RESULTADOS'!AA80","v":0},{"$f":"+'II-DEM RESULTADOS'!AB80","v":0}]
[{"$f":"+'dados I'!$A$2","v":20008838749},{"$f":"+'dados I'!$B$2","v":502065591},{"$f":"+'II-DEM RESULTADOS'!C81","v":6265},{"$f":"+'II-DEM RESULTADOS'!F81","v":"CONTENCIOSO E NOTARIADO"},{"$f":"+'II-DEM RESULTADOS'!I81","v":250},{"$f":"+'II-DEM RESULTADOS'!J81","v":250},{"$f":"+'II-DEM RESULTADOS'!K81","v":0},{"$f":"+'II-DEM RESULTADOS'!L81","v":0},{"$f":"+'II-DEM RESULTADOS'!M81","v":0},{"$f":"+'II-DEM RESULTADOS'!N81","v":0},{"$f":"+'II-DEM RESULTADOS'!O81","v":0},{"$f":"+'II-DEM RESULTADOS'!P81","v":0},{"$f":"+'II-DEM RESULTADOS'!Q81","v":0},{"$f":"+'II-DEM RESULTADOS'!R81","v":0},{"$f":"+'II-DEM RESULTADOS'!S81","v":0},{"$f":"+'II-DEM RESULTADOS'!T81","v":0},{"$f":"+'II-DEM RESULTADOS'!U81","v":0},{"$f":"+'II-DEM RESULTADOS'!V81","v":0},{"$f":"+'II-DEM RESULTADOS'!W81","v":0},{"$f":"+'II-DEM RESULTADOS'!X81","v":0},{"$f":"+'II-DEM RESULTADOS'!Y81","v":0},{"$f":"+'II-DEM RESULTADOS'!Z81","v":0},{"$f":"+'II-DEM RESULTADOS'!AA81","v":0},{"$f":"+'II-DEM RESULTADOS'!AB81","v":0}]
[{"$f":"+'dados I'!$A$2","v":20008838749},{"$f":"+'dados I'!$B$2","v":502065591},{"$f":"+'II-DEM RESULTADOS'!C82","v":6266},{"$f":"+'II-DEM RESULTADOS'!F82","v":"DESPESAS DE REPRESENTAÇÃO"},{"$f":"+'II-DEM RESULTADOS'!I82","v":500},{"$f":"+'II-DEM RESULTADOS'!J82","v":125},{"$f":"+'II-DEM RESULTADOS'!K82","v":125},{"$f":"+'II-DEM RESULTADOS'!L82","v":125},{"$f":"+'II-DEM RESULTADOS'!M82","v":125},{"$f":"+'II-DEM RESULTADOS'!N82","v":0},{"$f":"+'II-DEM RESULTADOS'!O82","v":0},{"$f":"+'II-DEM RESULTADOS'!P82","v":0},{"$f":"+'II-DEM RESULTADOS'!Q82","v":0},{"$f":"+'II-DEM RESULTADOS'!R82","v":0},{"$f":"+'II-DEM RESULTADOS'!S82","v":0},{"$f":"+'II-DEM RESULTADOS'!T82","v":0},{"$f":"+'II-DEM RESULTADOS'!U82","v":0},{"$f":"+'II-DEM RESULTADOS'!V82","v":0},{"$f":"+'II-DEM RESULTADOS'!W82","v":0},{"$f":"+'II-DEM RESULTADOS'!X82","v":0},{"$f":"+'II-DEM RESULTADOS'!Y82","v":0},{"$f":"+'II-DEM RESULTADOS'!Z82","v":0},{"$f":"+'II-DEM RESULTADOS'!AA82","v":0},{"$f":"+'II-DEM RESULTADOS'!AB82","v":0}]
[{"$f":"+'dados I'!$A$2","v":20008838749},{"$f":"+'dados I'!$B$2","v":502065591},{"$f":"+'II-DEM RESULTADOS'!C83","v":6267},{"$f":"+'II-DEM RESULTADOS'!F83","v":"LIMPEZA, HIGIENE E CONFORTO"},{"$f":"+'II-DEM RESULTADOS'!I83","v":4800},{"$f":"+'II-DEM RESULTADOS'!J83","v":1440},{"$f":"+'II-DEM RESULTADOS'!K83","v":1440},{"$f":"+'II-DEM RESULTADOS'!L83","v":1200},{"$f":"+'II-DEM RESULTADOS'!M83","v":720},{"$f":"+'II-DEM RESULTADOS'!N83","v":0},{"$f":"+'II-DEM RESULTADOS'!O83","v":0},{"$f":"+'II-DEM RESULTADOS'!P83","v":0},{"$f":"+'II-DEM RESULTADOS'!Q83","v":0},{"$f":"+'II-DEM RESULTADOS'!R83","v":0},{"$f":"+'II-DEM RESULTADOS'!S83","v":0},{"$f":"+'II-DEM RESULTADOS'!T83","v":0},{"$f":"+'II-DEM RESULTADOS'!U83","v":0},{"$f":"+'II-DEM RESULTADOS'!V83","v":0},{"$f":"+'II-DEM RESULTADOS'!W83","v":0},{"$f":"+'II-DEM RESULTADOS'!X83","v":0},{"$f":"+'II-DEM RESULTADOS'!Y83","v":0},{"$f":"+'II-DEM RESULTADOS'!Z83","v":0},{"$f":"+'II-DEM RESULTADOS'!AA83","v":0},{"$f":"+'II-DEM RESULTADOS'!AB83","v":0}]
[{"$f":"+'dados I'!$A$2","v":20008838749},{"$f":"+'dados I'!$B$2","v":502065591},{"$f":"+'II-DEM RESULTADOS'!C84","v":6268},{"$f":"+'II-DEM RESULTADOS'!F84","v":"OUTROS SERVIÇOS"},{"$f":"+'II-DEM RESULTADOS'!I84","v":750},{"$f":"+'II-DEM RESULTADOS'!J84","v":225},{"$f":"+'II-DEM RESULTADOS'!K84","v":225},{"$f":"+'II-DEM RESULTADOS'!L84","v":225},{"$f":"+'II-DEM RESULTADOS'!M84","v":75},{"$f":"+'II-DEM RESULTADOS'!N84","v":0},{"$f":"+'II-DEM RESULTADOS'!O84","v":0},{"$f":"+'II-DEM RESULTADOS'!P84","v":0},{"$f":"+'II-DEM RESULTADOS'!Q84","v":0},{"$f":"+'II-DEM RESULTADOS'!R84","v":0},{"$f":"+'II-DEM RESULTADOS'!S84","v":0},{"$f":"+'II-DEM RESULTADOS'!T84","v":0},{"$f":"+'II-DEM RESULTADOS'!U84","v":0},{"$f":"+'II-DEM RESULTADOS'!V84","v":0},{"$f":"+'II-DEM RESULTADOS'!W84","v":0},{"$f":"+'II-DEM RESULTADOS'!X84","v":0},{"$f":"+'II-DEM RESULTADOS'!Y84","v":0},{"$f":"+'II-DEM RESULTADOS'!Z84","v":0},{"$f":"+'II-DEM RESULTADOS'!AA84","v":0},{"$f":"+'II-DEM RESULTADOS'!AB84","v":0}]
[{"$f":"+'dados I'!$A$2","v":20008838749},{"$f":"+'dados I'!$B$2","v":502065591},{"$f":"+'II-DEM RESULTADOS'!C85","v":63},{"$f":"+'II-DEM RESULTADOS'!F85","v":"GASTOS COM PESSOAL"},{"$f":"+'II-DEM RESULTADOS'!I85","v":257380.83999999997},{"$f":"+'II-DEM RESULTADOS'!J85","v":97466.72},{"$f":"+'II-DEM RESULTADOS'!K85","v":117849.18},{"$f":"+'II-DEM RESULTADOS'!L85","v":23580.27},{"$f":"+'II-DEM RESULTADOS'!M85","v":18484.669999999998},{"$f":"+'II-DEM RESULTADOS'!N85","v":0},{"$f":"+'II-DEM RESULTADOS'!O85","v":0},{"$f":"+'II-DEM RESULTADOS'!P85","v":0},{"$f":"+'II-DEM RESULTADOS'!Q85","v":0},{"$f":"+'II-DEM RESULTADOS'!R85","v":0},{"$f":"+'II-DEM RESULTADOS'!S85","v":0},{"$f":"+'II-DEM RESULTADOS'!T85","v":0},{"$f":"+'II-DEM RESULTADOS'!U85","v":0},{"$f":"+'II-DEM RESULTADOS'!V85","v":0},{"$f":"+'II-DEM RESULTADOS'!W85","v":0},{"$f":"+'II-DEM RESULTADOS'!X85","v":0},{"$f":"+'II-DEM RESULTADOS'!Y85","v":0},{"$f":"+'II-DEM RESULTADOS'!Z85","v":0},{"$f":"+'II-DEM RESULTADOS'!AA85","v":0},{"$f":"+'II-DEM RESULTADOS'!AB85","v":0}]
[{"$f":"+'dados I'!$A$2","v":20008838749},{"$f":"+'dados I'!$B$2","v":502065591},{"$f":"+'II-DEM RESULTADOS'!C86","v":631},{"$f":"+'II-DEM RESULTADOS'!F86","v":"REMUNERAÇÕES DOS ÓRGÃOS SOCIAIS"},{"$f":"+'II-DEM RESULTADOS'!I86","v":0},{"$f":"+'II-DEM RESULTADOS'!J86","v":0},{"$f":"+'II-DEM RESULTADOS'!K86","v":0},{"$f":"+'II-DEM RESULTADOS'!L86","v":0},{"$f":"+'II-DEM RESULTADOS'!M86","v":0},{"$f":"+'II-DEM RESULTADOS'!N86","v":0},{"$f":"+'II-DEM RESULTADOS'!O86","v":0},{"$f":"+'II-DEM RESULTADOS'!P86","v":0},{"$f":"+'II-DEM RESULTADOS'!Q86","v":0},{"$f":"+'II-DEM RESULTADOS'!R86","v":0},{"$f":"+'II-DEM RESULTADOS'!S86","v":0},{"$f":"+'II-DEM RESULTADOS'!T86","v":0},{"$f":"+'II-DEM RESULTADOS'!U86","v":0},{"$f":"+'II-DEM RESULTADOS'!V86","v":0},{"$f":"+'II-DEM RESULTADOS'!W86","v":0},{"$f":"+'II-DEM RESULTADOS'!X86","v":0},{"$f":"+'II-DEM RESULTADOS'!Y86","v":0},{"$f":"+'II-DEM RESULTADOS'!Z86","v":0},{"$f":"+'II-DEM RESULTADOS'!AA86","v":0},{"$f":"+'II-DEM RESULTADOS'!AB86","v":0}]
[{"$f":"+'dados I'!$A$2","v":20008838749},{"$f":"+'dados I'!$B$2","v":502065591},{"$f":"+'II-DEM RESULTADOS'!C87","v":6311},{"$f":"+'II-DEM RESULTADOS'!F87","v":"REMUNERAÇÕES CERTAS"},{"$f":"+'II-DEM RESULTADOS'!I87","v":0},{"$f":"+'II-DEM RESULTADOS'!J87","v":0},{"$f":"+'II-DEM RESULTADOS'!K87","v":0},{"$f":"+'II-DEM RESULTADOS'!L87","v":0},{"$f":"+'II-DEM RESULTADOS'!M87","v":0},{"$f":"+'II-DEM RESULTADOS'!N87","v":0},{"$f":"+'II-DEM RESULTADOS'!O87","v":0},{"$f":"+'II-DEM RESULTADOS'!P87","v":0},{"$f":"+'II-DEM RESULTADOS'!Q87","v":0},{"$f":"+'II-DEM RESULTADOS'!R87","v":0},{"$f":"+'II-DEM RESULTADOS'!S87","v":0},{"$f":"+'II-DEM RESULTADOS'!T87","v":0},{"$f":"+'II-DEM RESULTADOS'!U87","v":0},{"$f":"+'II-DEM RESULTADOS'!V87","v":0},{"$f":"+'II-DEM RESULTADOS'!W87","v":0},{"$f":"+'II-DEM RESULTADOS'!X87","v":0},{"$f":"+'II-DEM RESULTADOS'!Y87","v":0},{"$f":"+'II-DEM RESULTADOS'!Z87","v":0},{"$f":"+'II-DEM RESULTADOS'!AA87","v":0},{"$f":"+'II-DEM RESULTADOS'!AB87","v":0}]
[{"$f":"+'dados I'!$A$2","v":20008838749},{"$f":"+'dados I'!$B$2","v":502065591},{"$f":"+'II-DEM RESULTADOS'!C88","v":6312},{"$f":"+'II-DEM RESULTADOS'!F88","v":"REMUNERAÇÕES ADICIONAIS"},{"$f":"+'II-DEM RESULTADOS'!I88","v":0},{"$f":"+'II-DEM RESULTADOS'!J88","v":0},{"$f":"+'II-DEM RESULTADOS'!K88","v":0},{"$f":"+'II-DEM RESULTADOS'!L88","v":0},{"$f":"+'II-DEM RESULTADOS'!M88","v":0},{"$f":"+'II-DEM RESULTADOS'!N88","v":0},{"$f":"+'II-DEM RESULTADOS'!O88","v":0},{"$f":"+'II-DEM RESULTADOS'!P88","v":0},{"$f":"+'II-DEM RESULTADOS'!Q88","v":0},{"$f":"+'II-DEM RESULTADOS'!R88","v":0},{"$f":"+'II-DEM RESULTADOS'!S88","v":0},{"$f":"+'II-DEM RESULTADOS'!T88","v":0},{"$f":"+'II-DEM RESULTADOS'!U88","v":0},{"$f":"+'II-DEM RESULTADOS'!V88","v":0},{"$f":"+'II-DEM RESULTADOS'!W88","v":0},{"$f":"+'II-DEM RESULTADOS'!X88","v":0},{"$f":"+'II-DEM RESULTADOS'!Y88","v":0},{"$f":"+'II-DEM RESULTADOS'!Z88","v":0},{"$f":"+'II-DEM RESULTADOS'!AA88","v":0},{"$f":"+'II-DEM RESULTADOS'!AB88","v":0}]
[{"$f":"+'dados I'!$A$2","v":20008838749},{"$f":"+'dados I'!$B$2","v":502065591},{"$f":"+'II-DEM RESULTADOS'!C89","v":632},{"$f":"+'II-DEM RESULTADOS'!F89","v":"REMUNERAÇÕES DO PESSOAL"},{"$f":"+'II-DEM RESULTADOS'!I89","v":208324.48000000001},{"$f":"+'II-DEM RESULTADOS'!J89","v":79163.3},{"$f":"+'II-DEM RESULTADOS'!K89","v":95829.26},{"$f":"+'II-DEM RESULTADOS'!L89","v":18749.2},{"$f":"+'II-DEM RESULTADOS'!M89","v":14582.72},{"$f":"+'II-DEM RESULTADOS'!N89","v":0},{"$f":"+'II-DEM RESULTADOS'!O89","v":0},{"$f":"+'II-DEM RESULTADOS'!P89","v":0},{"$f":"+'II-DEM RESULTADOS'!Q89","v":0},{"$f":"+'II-DEM RESULTADOS'!R89","v":0},{"$f":"+'II-DEM RESULTADOS'!S89","v":0},{"$f":"+'II-DEM RESULTADOS'!T89","v":0},{"$f":"+'II-DEM RESULTADOS'!U89","v":0},{"$f":"+'II-DEM RESULTADOS'!V89","v":0},{"$f":"+'II-DEM RESULTADOS'!W89","v":0},{"$f":"+'II-DEM RESULTADOS'!X89","v":0},{"$f":"+'II-DEM RESULTADOS'!Y89","v":0},{"$f":"+'II-DEM RESULTADOS'!Z89","v":0},{"$f":"+'II-DEM RESULTADOS'!AA89","v":0},{"$f":"+'II-DEM RESULTADOS'!AB89","v":0}]
[{"$f":"+'dados I'!$A$2","v":20008838749},{"$f":"+'dados I'!$B$2","v":502065591},{"$f":"+'II-DEM RESULTADOS'!C90","v":6321},{"$f":"+'II-DEM RESULTADOS'!F90","v":"REMUNERAÇÕES CERTAS"},{"$f":"+'II-DEM RESULTADOS'!I90","v":208324.48000000001},{"$f":"+'II-DEM RESULTADOS'!J90","v":79163.3},{"$f":"+'II-DEM RESULTADOS'!K90","v":95829.26},{"$f":"+'II-DEM RESULTADOS'!L90","v":18749.2},{"$f":"+'II-DEM RESULTADOS'!M90","v":14582.72},{"$f":"+'II-DEM RESULTADOS'!N90","v":0},{"$f":"+'II-DEM RESULTADOS'!O90","v":0},{"$f":"+'II-DEM RESULTADOS'!P90","v":0},{"$f":"+'II-DEM RESULTADOS'!Q90","v":0},{"$f":"+'II-DEM RESULTADOS'!R90","v":0},{"$f":"+'II-DEM RESULTADOS'!S90","v":0},{"$f":"+'II-DEM RESULTADOS'!T90","v":0},{"$f":"+'II-DEM RESULTADOS'!U90","v":0},{"$f":"+'II-DEM RESULTADOS'!V90","v":0},{"$f":"+'II-DEM RESULTADOS'!W90","v":0},{"$f":"+'II-DEM RESULTADOS'!X90","v":0},{"$f":"+'II-DEM RESULTADOS'!Y90","v":0},{"$f":"+'II-DEM RESULTADOS'!Z90","v":0},{"$f":"+'II-DEM RESULTADOS'!AA90","v":0},{"$f":"+'II-DEM RESULTADOS'!AB90","v":0}]
[{"$f":"+'dados I'!$A$2","v":20008838749},{"$f":"+'dados I'!$B$2","v":502065591},{"$f":"+'II-DEM RESULTADOS'!C91","v":6322},{"$f":"+'II-DEM RESULTADOS'!F91","v":"REMUNERAÇÕES ADICIONAIS"},{"$f":"+'II-DEM RESULTADOS'!I91","v":0},{"$f":"+'II-DEM RESULTADOS'!J91","v":0},{"$f":"+'II-DEM RESULTADOS'!K91","v":0},{"$f":"+'II-DEM RESULTADOS'!L91","v":0},{"$f":"+'II-DEM RESULTADOS'!M91","v":0},{"$f":"+'II-DEM RESULTADOS'!N91","v":0},{"$f":"+'II-DEM RESULTADOS'!O91","v":0},{"$f":"+'II-DEM RESULTADOS'!P91","v":0},{"$f":"+'II-DEM RESULTADOS'!Q91","v":0},{"$f":"+'II-DEM RESULTADOS'!R91","v":0},{"$f":"+'II-DEM RESULTADOS'!S91","v":0},{"$f":"+'II-DEM RESULTADOS'!T91","v":0},{"$f":"+'II-DEM RESULTADOS'!U91","v":0},{"$f":"+'II-DEM RESULTADOS'!V91","v":0},{"$f":"+'II-DEM RESULTADOS'!W91","v":0},{"$f":"+'II-DEM RESULTADOS'!X91","v":0},{"$f":"+'II-DEM RESULTADOS'!Y91","v":0},{"$f":"+'II-DEM RESULTADOS'!Z91","v":0},{"$f":"+'II-DEM RESULTADOS'!AA91","v":0},{"$f":"+'II-DEM RESULTADOS'!AB91","v":0}]
[{"$f":"+'dados I'!$A$2","v":20008838749},{"$f":"+'dados I'!$B$2","v":502065591},{"$f":"+'II-DEM RESULTADOS'!C92","v":633},{"$f":"+'II-DEM RESULTADOS'!F92","v":"BENEFÍCIOS PÓS-EMPREGO"},{"$f":"+'II-DEM RESULTADOS'!I92","v":0},{"$f":"+'II-DEM RESULTADOS'!J92","v":0},{"$f":"+'II-DEM RESULTADOS'!K92","v":0},{"$f":"+'II-DEM RESULTADOS'!L92","v":0},{"$f":"+'II-DEM RESULTADOS'!M92","v":0},{"$f":"+'II-DEM RESULTADOS'!N92","v":0},{"$f":"+'II-DEM RESULTADOS'!O92","v":0},{"$f":"+'II-DEM RESULTADOS'!P92","v":0},{"$f":"+'II-DEM RESULTADOS'!Q92","v":0},{"$f":"+'II-DEM RESULTADOS'!R92","v":0},{"$f":"+'II-DEM RESULTADOS'!S92","v":0},{"$f":"+'II-DEM RESULTADOS'!T92","v":0},{"$f":"+'II-DEM RESULTADOS'!U92","v":0},{"$f":"+'II-DEM RESULTADOS'!V92","v":0},{"$f":"+'II-DEM RESULTADOS'!W92","v":0},{"$f":"+'II-DEM RESULTADOS'!X92","v":0},{"$f":"+'II-DEM RESULTADOS'!Y92","v":0},{"$f":"+'II-DEM RESULTADOS'!Z92","v":0},{"$f":"+'II-DEM RESULTADOS'!AA92","v":0},{"$f":"+'II-DEM RESULTADOS'!AB92","v":0}]
[{"$f":"+'dados I'!$A$2","v":20008838749},{"$f":"+'dados I'!$B$2","v":502065591},{"$f":"+'II-DEM RESULTADOS'!C93","v":6331},{"$f":"+'II-DEM RESULTADOS'!F93","v":"ÓRGÃOS SOCIAIS"},{"$f":"+'II-DEM RESULTADOS'!I93","v":0},{"$f":"+'II-DEM RESULTADOS'!J93","v":0},{"$f":"+'II-DEM RESULTADOS'!K93","v":0},{"$f":"+'II-DEM RESULTADOS'!L93","v":0},{"$f":"+'II-DEM RESULTADOS'!M93","v":0},{"$f":"+'II-DEM RESULTADOS'!N93","v":0},{"$f":"+'II-DEM RESULTADOS'!O93","v":0},{"$f":"+'II-DEM RESULTADOS'!P93","v":0},{"$f":"+'II-DEM RESULTADOS'!Q93","v":0},{"$f":"+'II-DEM RESULTADOS'!R93","v":0},{"$f":"+'II-DEM RESULTADOS'!S93","v":0},{"$f":"+'II-DEM RESULTADOS'!T93","v":0},{"$f":"+'II-DEM RESULTADOS'!U93","v":0},{"$f":"+'II-DEM RESULTADOS'!V93","v":0},{"$f":"+'II-DEM RESULTADOS'!W93","v":0},{"$f":"+'II-DEM RESULTADOS'!X93","v":0},{"$f":"+'II-DEM RESULTADOS'!Y93","v":0},{"$f":"+'II-DEM RESULTADOS'!Z93","v":0},{"$f":"+'II-DEM RESULTADOS'!AA93","v":0},{"$f":"+'II-DEM RESULTADOS'!AB93","v":0}]
[{"$f":"+'dados I'!$A$2","v":20008838749},{"$f":"+'dados I'!$B$2","v":502065591},{"$f":"+'II-DEM RESULTADOS'!C94","v":6332},{"$f":"+'II-DEM RESULTADOS'!F94","v":"PESSOAL"},{"$f":"+'II-DEM RESULTADOS'!I94","v":0},{"$f":"+'II-DEM RESULTADOS'!J94","v":0},{"$f":"+'II-DEM RESULTADOS'!K94","v":0},{"$f":"+'II-DEM RESULTADOS'!L94","v":0},{"$f":"+'II-DEM RESULTADOS'!M94","v":0},{"$f":"+'II-DEM RESULTADOS'!N94","v":0},{"$f":"+'II-DEM RESULTADOS'!O94","v":0},{"$f":"+'II-DEM RESULTADOS'!P94","v":0},{"$f":"+'II-DEM RESULTADOS'!Q94","v":0},{"$f":"+'II-DEM RESULTADOS'!R94","v":0},{"$f":"+'II-DEM RESULTADOS'!S94","v":0},{"$f":"+'II-DEM RESULTADOS'!T94","v":0},{"$f":"+'II-DEM RESULTADOS'!U94","v":0},{"$f":"+'II-DEM RESULTADOS'!V94","v":0},{"$f":"+'II-DEM RESULTADOS'!W94","v":0},{"$f":"+'II-DEM RESULTADOS'!X94","v":0},{"$f":"+'II-DEM RESULTADOS'!Y94","v":0},{"$f":"+'II-DEM RESULTADOS'!Z94","v":0},{"$f":"+'II-DEM RESULTADOS'!AA94","v":0},{"$f":"+'II-DEM RESULTADOS'!AB94","v":0}]
[{"$f":"+'dados I'!$A$2","v":20008838749},{"$f":"+'dados I'!$B$2","v":502065591},{"$f":"+'II-DEM RESULTADOS'!C95","v":634},{"$f":"+'II-DEM RESULTADOS'!F95","v":"INDEMNIZAÇÕES"},{"$f":"+'II-DEM RESULTADOS'!I95","v":0},{"$f":"+'II-DEM RESULTADOS'!J95","v":0},{"$f":"+'II-DEM RESULTADOS'!K95","v":0},{"$f":"+'II-DEM RESULTADOS'!L95","v":0},{"$f":"+'II-DEM RESULTADOS'!M95","v":0},{"$f":"+'II-DEM RESULTADOS'!N95","v":0},{"$f":"+'II-DEM RESULTADOS'!O95","v":0},{"$f":"+'II-DEM RESULTADOS'!P95","v":0},{"$f":"+'II-DEM RESULTADOS'!Q95","v":0},{"$f":"+'II-DEM RESULTADOS'!R95","v":0},{"$f":"+'II-DEM RESULTADOS'!S95","v":0},{"$f":"+'II-DEM RESULTADOS'!T95","v":0},{"$f":"+'II-DEM RESULTADOS'!U95","v":0},{"$f":"+'II-DEM RESULTADOS'!V95","v":0},{"$f":"+'II-DEM RESULTADOS'!W95","v":0},{"$f":"+'II-DEM RESULTADOS'!X95","v":0},{"$f":"+'II-DEM RESULTADOS'!Y95","v":0},{"$f":"+'II-DEM RESULTADOS'!Z95","v":0},{"$f":"+'II-DEM RESULTADOS'!AA95","v":0},{"$f":"+'II-DEM RESULTADOS'!AB95","v":0}]
[{"$f":"+'dados I'!$A$2","v":20008838749},{"$f":"+'dados I'!$B$2","v":502065591},{"$f":"+'II-DEM RESULTADOS'!C96","v":6341},{"$f":"+'II-DEM RESULTADOS'!F96","v":"ÓRGÃOS SOCIAIS"},{"$f":"+'II-DEM RESULTADOS'!I96","v":0},{"$f":"+'II-DEM RESULTADOS'!J96","v":0},{"$f":"+'II-DEM RESULTADOS'!K96","v":0},{"$f":"+'II-DEM RESULTADOS'!L96","v":0},{"$f":"+'II-DEM RESULTADOS'!M96","v":0},{"$f":"+'II-DEM RESULTADOS'!N96","v":0},{"$f":"+'II-DEM RESULTADOS'!O96","v":0},{"$f":"+'II-DEM RESULTADOS'!P96","v":0},{"$f":"+'II-DEM RESULTADOS'!Q96","v":0},{"$f":"+'II-DEM RESULTADOS'!R96","v":0},{"$f":"+'II-DEM RESULTADOS'!S96","v":0},{"$f":"+'II-DEM RESULTADOS'!T96","v":0},{"$f":"+'II-DEM RESULTADOS'!U96","v":0},{"$f":"+'II-DEM RESULTADOS'!V96","v":0},{"$f":"+'II-DEM RESULTADOS'!W96","v":0},{"$f":"+'II-DEM RESULTADOS'!X96","v":0},{"$f":"+'II-DEM RESULTADOS'!Y96","v":0},{"$f":"+'II-DEM RESULTADOS'!Z96","v":0},{"$f":"+'II-DEM RESULTADOS'!AA96","v":0},{"$f":"+'II-DEM RESULTADOS'!AB96","v":0}]
[{"$f":"+'dados I'!$A$2","v":20008838749},{"$f":"+'dados I'!$B$2","v":502065591},{"$f":"+'II-DEM RESULTADOS'!C97","v":6342},{"$f":"+'II-DEM RESULTADOS'!F97","v":"PESSOAL"},{"$f":"+'II-DEM RESULTADOS'!I97","v":0},{"$f":"+'II-DEM RESULTADOS'!J97","v":0},{"$f":"+'II-DEM RESULTADOS'!K97","v":0},{"$f":"+'II-DEM RESULTADOS'!L97","v":0},{"$f":"+'II-DEM RESULTADOS'!M97","v":0},{"$f":"+'II-DEM RESULTADOS'!N97","v":0},{"$f":"+'II-DEM RESULTADOS'!O97","v":0},{"$f":"+'II-DEM RESULTADOS'!P97","v":0},{"$f":"+'II-DEM RESULTADOS'!Q97","v":0},{"$f":"+'II-DEM RESULTADOS'!R97","v":0},{"$f":"+'II-DEM RESULTADOS'!S97","v":0},{"$f":"+'II-DEM RESULTADOS'!T97","v":0},{"$f":"+'II-DEM RESULTADOS'!U97","v":0},{"$f":"+'II-DEM RESULTADOS'!V97","v":0},{"$f":"+'II-DEM RESULTADOS'!W97","v":0},{"$f":"+'II-DEM RESULTADOS'!X97","v":0},{"$f":"+'II-DEM RESULTADOS'!Y97","v":0},{"$f":"+'II-DEM RESULTADOS'!Z97","v":0},{"$f":"+'II-DEM RESULTADOS'!AA97","v":0},{"$f":"+'II-DEM RESULTADOS'!AB97","v":0}]
[{"$f":"+'dados I'!$A$2","v":20008838749},{"$f":"+'dados I'!$B$2","v":502065591},{"$f":"+'II-DEM RESULTADOS'!C98","v":635},{"$f":"+'II-DEM RESULTADOS'!F98","v":"ENCARGOS SOBRE REMUNERAÇÕES"},{"$f":"+'II-DEM RESULTADOS'!I98","v":46456.359999999993},{"$f":"+'II-DEM RESULTADOS'!J98","v":17653.419999999998},{"$f":"+'II-DEM RESULTADOS'!K98","v":21369.919999999998},{"$f":"+'II-DEM RESULTADOS'!L98","v":4181.07},{"$f":"+'II-DEM RESULTADOS'!M98","v":3251.95},{"$f":"+'II-DEM RESULTADOS'!N98","v":0},{"$f":"+'II-DEM RESULTADOS'!O98","v":0},{"$f":"+'II-DEM RESULTADOS'!P98","v":0},{"$f":"+'II-DEM RESULTADOS'!Q98","v":0},{"$f":"+'II-DEM RESULTADOS'!R98","v":0},{"$f":"+'II-DEM RESULTADOS'!S98","v":0},{"$f":"+'II-DEM RESULTADOS'!T98","v":0},{"$f":"+'II-DEM RESULTADOS'!U98","v":0},{"$f":"+'II-DEM RESULTADOS'!V98","v":0},{"$f":"+'II-DEM RESULTADOS'!W98","v":0},{"$f":"+'II-DEM RESULTADOS'!X98","v":0},{"$f":"+'II-DEM RESULTADOS'!Y98","v":0},{"$f":"+'II-DEM RESULTADOS'!Z98","v":0},{"$f":"+'II-DEM RESULTADOS'!AA98","v":0},{"$f":"+'II-DEM RESULTADOS'!AB98","v":0}]
[{"$f":"+'dados I'!$A$2","v":20008838749},{"$f":"+'dados I'!$B$2","v":502065591},{"$f":"+'II-DEM RESULTADOS'!C99","v":6351},{"$f":"+'II-DEM RESULTADOS'!F99","v":"ÓRGÃOS SOCIAIS"},{"$f":"+'II-DEM RESULTADOS'!I99","v":0},{"$f":"+'II-DEM RESULTADOS'!J99","v":0},{"$f":"+'II-DEM RESULTADOS'!K99","v":0},{"$f":"+'II-DEM RESULTADOS'!L99","v":0},{"$f":"+'II-DEM RESULTADOS'!M99","v":0},{"$f":"+'II-DEM RESULTADOS'!N99","v":0},{"$f":"+'II-DEM RESULTADOS'!O99","v":0},{"$f":"+'II-DEM RESULTADOS'!P99","v":0},{"$f":"+'II-DEM RESULTADOS'!Q99","v":0},{"$f":"+'II-DEM RESULTADOS'!R99","v":0},{"$f":"+'II-DEM RESULTADOS'!S99","v":0},{"$f":"+'II-DEM RESULTADOS'!T99","v":0},{"$f":"+'II-DEM RESULTADOS'!U99","v":0},{"$f":"+'II-DEM RESULTADOS'!V99","v":0},{"$f":"+'II-DEM RESULTADOS'!W99","v":0},{"$f":"+'II-DEM RESULTADOS'!X99","v":0},{"$f":"+'II-DEM RESULTADOS'!Y99","v":0},{"$f":"+'II-DEM RESULTADOS'!Z99","v":0},{"$f":"+'II-DEM RESULTADOS'!AA99","v":0},{"$f":"+'II-DEM RESULTADOS'!AB99","v":0}]
[{"$f":"+'dados I'!$A$2","v":20008838749},{"$f":"+'dados I'!$B$2","v":502065591},{"$f":"+'II-DEM RESULTADOS'!C100","v":6352},{"$f":"+'II-DEM RESULTADOS'!F100","v":"PESSOAL"},{"$f":"+'II-DEM RESULTADOS'!I100","v":46456.359999999993},{"$f":"+'II-DEM RESULTADOS'!J100","v":17653.419999999998},{"$f":"+'II-DEM RESULTADOS'!K100","v":21369.919999999998},{"$f":"+'II-DEM RESULTADOS'!L100","v":4181.07},{"$f":"+'II-DEM RESULTADOS'!M100","v":3251.95},{"$f":"+'II-DEM RESULTADOS'!N100","v":0},{"$f":"+'II-DEM RESULTADOS'!O100","v":0},{"$f":"+'II-DEM RESULTADOS'!P100","v":0},{"$f":"+'II-DEM RESULTADOS'!Q100","v":0},{"$f":"+'II-DEM RESULTADOS'!R100","v":0},{"$f":"+'II-DEM RESULTADOS'!S100","v":0},{"$f":"+'II-DEM RESULTADOS'!T100","v":0},{"$f":"+'II-DEM RESULTADOS'!U100","v":0},{"$f":"+'II-DEM RESULTADOS'!V100","v":0},{"$f":"+'II-DEM RESULTADOS'!W100","v":0},{"$f":"+'II-DEM RESULTADOS'!X100","v":0},{"$f":"+'II-DEM RESULTADOS'!Y100","v":0},{"$f":"+'II-DEM RESULTADOS'!Z100","v":0},{"$f":"+'II-DEM RESULTADOS'!AA100","v":0},{"$f":"+'II-DEM RESULTADOS'!AB100","v":0}]
[{"$f":"+'dados I'!$A$2","v":20008838749},{"$f":"+'dados I'!$B$2","v":502065591},{"$f":"+'II-DEM RESULTADOS'!C101","v":636},{"$f":"+'II-DEM RESULTADOS'!F101","v":"SEGUROS ACIDENTES TRABALHO E DOENÇAS PROFISSIONAIS"},{"$f":"+'II-DEM RESULTADOS'!I101","v":1850},{"$f":"+'II-DEM RESULTADOS'!J101","v":462.5},{"$f":"+'II-DEM RESULTADOS'!K101","v":462.5},{"$f":"+'II-DEM RESULTADOS'!L101","v":462.5},{"$f":"+'II-DEM RESULTADOS'!M101","v":462.5},{"$f":"+'II-DEM RESULTADOS'!N101","v":0},{"$f":"+'II-DEM RESULTADOS'!O101","v":0},{"$f":"+'II-DEM RESULTADOS'!P101","v":0},{"$f":"+'II-DEM RESULTADOS'!Q101","v":0},{"$f":"+'II-DEM RESULTADOS'!R101","v":0},{"$f":"+'II-DEM RESULTADOS'!S101","v":0},{"$f":"+'II-DEM RESULTADOS'!T101","v":0},{"$f":"+'II-DEM RESULTADOS'!U101","v":0},{"$f":"+'II-DEM RESULTADOS'!V101","v":0},{"$f":"+'II-DEM RESULTADOS'!W101","v":0},{"$f":"+'II-DEM RESULTADOS'!X101","v":0},{"$f":"+'II-DEM RESULTADOS'!Y101","v":0},{"$f":"+'II-DEM RESULTADOS'!Z101","v":0},{"$f":"+'II-DEM RESULTADOS'!AA101","v":0},{"$f":"+'II-DEM RESULTADOS'!AB101","v":0}]
[{"$f":"+'dados I'!$A$2","v":20008838749},{"$f":"+'dados I'!$B$2","v":502065591},{"$f":"+'II-DEM RESULTADOS'!C102","v":6361},{"$f":"+'II-DEM RESULTADOS'!F102","v":"ÓRGÃOS SOCIAIS"},{"$f":"+'II-DEM RESULTADOS'!I102","v":0},{"$f":"+'II-DEM RESULTADOS'!J102","v":0},{"$f":"+'II-DEM RESULTADOS'!K102","v":0},{"$f":"+'II-DEM RESULTADOS'!L102","v":0},{"$f":"+'II-DEM RESULTADOS'!M102","v":0},{"$f":"+'II-DEM RESULTADOS'!N102","v":0},{"$f":"+'II-DEM RESULTADOS'!O102","v":0},{"$f":"+'II-DEM RESULTADOS'!P102","v":0},{"$f":"+'II-DEM RESULTADOS'!Q102","v":0},{"$f":"+'II-DEM RESULTADOS'!R102","v":0},{"$f":"+'II-DEM RESULTADOS'!S102","v":0},{"$f":"+'II-DEM RESULTADOS'!T102","v":0},{"$f":"+'II-DEM RESULTADOS'!U102","v":0},{"$f":"+'II-DEM RESULTADOS'!V102","v":0},{"$f":"+'II-DEM RESULTADOS'!W102","v":0},{"$f":"+'II-DEM RESULTADOS'!X102","v":0},{"$f":"+'II-DEM RESULTADOS'!Y102","v":0},{"$f":"+'II-DEM RESULTADOS'!Z102","v":0},{"$f":"+'II-DEM RESULTADOS'!AA102","v":0},{"$f":"+'II-DEM RESULTADOS'!AB102","v":0}]
[{"$f":"+'dados I'!$A$2","v":20008838749},{"$f":"+'dados I'!$B$2","v":502065591},{"$f":"+'II-DEM RESULTADOS'!C103","v":6362},{"$f":"+'II-DEM RESULTADOS'!F103","v":"PESSOAL"},{"$f":"+'II-DEM RESULTADOS'!I103","v":1850},{"$f":"+'II-DEM RESULTADOS'!J103","v":462.5},{"$f":"+'II-DEM RESULTADOS'!K103","v":462.5},{"$f":"+'II-DEM RESULTADOS'!L103","v":462.5},{"$f":"+'II-DEM RESULTADOS'!M103","v":462.5},{"$f":"+'II-DEM RESULTADOS'!N103","v":0},{"$f":"+'II-DEM RESULTADOS'!O103","v":0},{"$f":"+'II-DEM RESULTADOS'!P103","v":0},{"$f":"+'II-DEM RESULTADOS'!Q103","v":0},{"$f":"+'II-DEM RESULTADOS'!R103","v":0},{"$f":"+'II-DEM RESULTADOS'!S103","v":0},{"$f":"+'II-DEM RESULTADOS'!T103","v":0},{"$f":"+'II-DEM RESULTADOS'!U103","v":0},{"$f":"+'II-DEM RESULTADOS'!V103","v":0},{"$f":"+'II-DEM RESULTADOS'!W103","v":0},{"$f":"+'II-DEM RESULTADOS'!X103","v":0},{"$f":"+'II-DEM RESULTADOS'!Y103","v":0},{"$f":"+'II-DEM RESULTADOS'!Z103","v":0},{"$f":"+'II-DEM RESULTADOS'!AA103","v":0},{"$f":"+'II-DEM RESULTADOS'!AB103","v":0}]
[{"$f":"+'dados I'!$A$2","v":20008838749},{"$f":"+'dados I'!$B$2","v":502065591},{"$f":"+'II-DEM RESULTADOS'!C104","v":637},{"$f":"+'II-DEM RESULTADOS'!F104","v":"GASTOS DE AÇÃO SOCIAL"},{"$f":"+'II-DEM RESULTADOS'!I104","v":0},{"$f":"+'II-DEM RESULTADOS'!J104","v":0},{"$f":"+'II-DEM RESULTADOS'!K104","v":0},{"$f":"+'II-DEM RESULTADOS'!L104","v":0},{"$f":"+'II-DEM RESULTADOS'!M104","v":0},{"$f":"+'II-DEM RESULTADOS'!N104","v":0},{"$f":"+'II-DEM RESULTADOS'!O104","v":0},{"$f":"+'II-DEM RESULTADOS'!P104","v":0},{"$f":"+'II-DEM RESULTADOS'!Q104","v":0},{"$f":"+'II-DEM RESULTADOS'!R104","v":0},{"$f":"+'II-DEM RESULTADOS'!S104","v":0},{"$f":"+'II-DEM RESULTADOS'!T104","v":0},{"$f":"+'II-DEM RESULTADOS'!U104","v":0},{"$f":"+'II-DEM RESULTADOS'!V104","v":0},{"$f":"+'II-DEM RESULTADOS'!W104","v":0},{"$f":"+'II-DEM RESULTADOS'!X104","v":0},{"$f":"+'II-DEM RESULTADOS'!Y104","v":0},{"$f":"+'II-DEM RESULTADOS'!Z104","v":0},{"$f":"+'II-DEM RESULTADOS'!AA104","v":0},{"$f":"+'II-DEM RESULTADOS'!AB104","v":0}]
[{"$f":"+'dados I'!$A$2","v":20008838749},{"$f":"+'dados I'!$B$2","v":502065591},{"$f":"+'II-DEM RESULTADOS'!C105","v":6371},{"$f":"+'II-DEM RESULTADOS'!F105","v":"ÓRGÃOS SOCIAIS"},{"$f":"+'II-DEM RESULTADOS'!I105","v":0},{"$f":"+'II-DEM RESULTADOS'!J105","v":0},{"$f":"+'II-DEM RESULTADOS'!K105","v":0},{"$f":"+'II-DEM RESULTADOS'!L105","v":0},{"$f":"+'II-DEM RESULTADOS'!M105","v":0},{"$f":"+'II-DEM RESULTADOS'!N105","v":0},{"$f":"+'II-DEM RESULTADOS'!O105","v":0},{"$f":"+'II-DEM RESULTADOS'!P105","v":0},{"$f":"+'II-DEM RESULTADOS'!Q105","v":0},{"$f":"+'II-DEM RESULTADOS'!R105","v":0},{"$f":"+'II-DEM RESULTADOS'!S105","v":0},{"$f":"+'II-DEM RESULTADOS'!T105","v":0},{"$f":"+'II-DEM RESULTADOS'!U105","v":0},{"$f":"+'II-DEM RESULTADOS'!V105","v":0},{"$f":"+'II-DEM RESULTADOS'!W105","v":0},{"$f":"+'II-DEM RESULTADOS'!X105","v":0},{"$f":"+'II-DEM RESULTADOS'!Y105","v":0},{"$f":"+'II-DEM RESULTADOS'!Z105","v":0},{"$f":"+'II-DEM RESULTADOS'!AA105","v":0},{"$f":"+'II-DEM RESULTADOS'!AB105","v":0}]
[{"$f":"+'dados I'!$A$2","v":20008838749},{"$f":"+'dados I'!$B$2","v":502065591},{"$f":"+'II-DEM RESULTADOS'!C106","v":6372},{"$f":"+'II-DEM RESULTADOS'!F106","v":"PESSOAL"},{"$f":"+'II-DEM RESULTADOS'!I106","v":0},{"$f":"+'II-DEM RESULTADOS'!J106","v":0},{"$f":"+'II-DEM RESULTADOS'!K106","v":0},{"$f":"+'II-DEM RESULTADOS'!L106","v":0},{"$f":"+'II-DEM RESULTADOS'!M106","v":0},{"$f":"+'II-DEM RESULTADOS'!N106","v":0},{"$f":"+'II-DEM RESULTADOS'!O106","v":0},{"$f":"+'II-DEM RESULTADOS'!P106","v":0},{"$f":"+'II-DEM RESULTADOS'!Q106","v":0},{"$f":"+'II-DEM RESULTADOS'!R106","v":0},{"$f":"+'II-DEM RESULTADOS'!S106","v":0},{"$f":"+'II-DEM RESULTADOS'!T106","v":0},{"$f":"+'II-DEM RESULTADOS'!U106","v":0},{"$f":"+'II-DEM RESULTADOS'!V106","v":0},{"$f":"+'II-DEM RESULTADOS'!W106","v":0},{"$f":"+'II-DEM RESULTADOS'!X106","v":0},{"$f":"+'II-DEM RESULTADOS'!Y106","v":0},{"$f":"+'II-DEM RESULTADOS'!Z106","v":0},{"$f":"+'II-DEM RESULTADOS'!AA106","v":0},{"$f":"+'II-DEM RESULTADOS'!AB106","v":0}]
[{"$f":"+'dados I'!$A$2","v":20008838749},{"$f":"+'dados I'!$B$2","v":502065591},{"$f":"+'II-DEM RESULTADOS'!C107","v":638},{"$f":"+'II-DEM RESULTADOS'!F107","v":"OUTROS GASTOS COM O PESSOAL"},{"$f":"+'II-DEM RESULTADOS'!I107","v":750},{"$f":"+'II-DEM RESULTADOS'!J107","v":187.5},{"$f":"+'II-DEM RESULTADOS'!K107","v":187.5},{"$f":"+'II-DEM RESULTADOS'!L107","v":187.5},{"$f":"+'II-DEM RESULTADOS'!M107","v":187.5},{"$f":"+'II-DEM RESULTADOS'!N107","v":0},{"$f":"+'II-DEM RESULTADOS'!O107","v":0},{"$f":"+'II-DEM RESULTADOS'!P107","v":0},{"$f":"+'II-DEM RESULTADOS'!Q107","v":0},{"$f":"+'II-DEM RESULTADOS'!R107","v":0},{"$f":"+'II-DEM RESULTADOS'!S107","v":0},{"$f":"+'II-DEM RESULTADOS'!T107","v":0},{"$f":"+'II-DEM RESULTADOS'!U107","v":0},{"$f":"+'II-DEM RESULTADOS'!V107","v":0},{"$f":"+'II-DEM RESULTADOS'!W107","v":0},{"$f":"+'II-DEM RESULTADOS'!X107","v":0},{"$f":"+'II-DEM RESULTADOS'!Y107","v":0},{"$f":"+'II-DEM RESULTADOS'!Z107","v":0},{"$f":"+'II-DEM RESULTADOS'!AA107","v":0},{"$f":"+'II-DEM RESULTADOS'!AB107","v":0}]
[{"$f":"+'dados I'!$A$2","v":20008838749},{"$f":"+'dados I'!$B$2","v":502065591},{"$f":"+'II-DEM RESULTADOS'!C108","v":6381},{"$f":"+'II-DEM RESULTADOS'!F108","v":"ÓRGÃOS SOCIAIS"},{"$f":"+'II-DEM RESULTADOS'!I108","v":0},{"$f":"+'II-DEM RESULTADOS'!J108","v":0},{"$f":"+'II-DEM RESULTADOS'!K108","v":0},{"$f":"+'II-DEM RESULTADOS'!L108","v":0},{"$f":"+'II-DEM RESULTADOS'!M108","v":0},{"$f":"+'II-DEM RESULTADOS'!N108","v":0},{"$f":"+'II-DEM RESULTADOS'!O108","v":0},{"$f":"+'II-DEM RESULTADOS'!P108","v":0},{"$f":"+'II-DEM RESULTADOS'!Q108","v":0},{"$f":"+'II-DEM RESULTADOS'!R108","v":0},{"$f":"+'II-DEM RESULTADOS'!S108","v":0},{"$f":"+'II-DEM RESULTADOS'!T108","v":0},{"$f":"+'II-DEM RESULTADOS'!U108","v":0},{"$f":"+'II-DEM RESULTADOS'!V108","v":0},{"$f":"+'II-DEM RESULTADOS'!W108","v":0},{"$f":"+'II-DEM RESULTADOS'!X108","v":0},{"$f":"+'II-DEM RESULTADOS'!Y108","v":0},{"$f":"+'II-DEM RESULTADOS'!Z108","v":0},{"$f":"+'II-DEM RESULTADOS'!AA108","v":0},{"$f":"+'II-DEM RESULTADOS'!AB108","v":0}]
[{"$f":"+'dados I'!$A$2","v":20008838749},{"$f":"+'dados I'!$B$2","v":502065591},{"$f":"+'II-DEM RESULTADOS'!C109","v":6382},{"$f":"+'II-DEM RESULTADOS'!F109","v":"PESSOAL"},{"$f":"+'II-DEM RESULTADOS'!I109","v":750},{"$f":"+'II-DEM RESULTADOS'!J109","v":187.5},{"$f":"+'II-DEM RESULTADOS'!K109","v":187.5},{"$f":"+'II-DEM RESULTADOS'!L109","v":187.5},{"$f":"+'II-DEM RESULTADOS'!M109","v":187.5},{"$f":"+'II-DEM RESULTADOS'!N109","v":0},{"$f":"+'II-DEM RESULTADOS'!O109","v":0},{"$f":"+'II-DEM RESULTADOS'!P109","v":0},{"$f":"+'II-DEM RESULTADOS'!Q109","v":0},{"$f":"+'II-DEM RESULTADOS'!R109","v":0},{"$f":"+'II-DEM RESULTADOS'!S109","v":0},{"$f":"+'II-DEM RESULTADOS'!T109","v":0},{"$f":"+'II-DEM RESULTADOS'!U109","v":0},{"$f":"+'II-DEM RESULTADOS'!V109","v":0},{"$f":"+'II-DEM RESULTADOS'!W109","v":0},{"$f":"+'II-DEM RESULTADOS'!X109","v":0},{"$f":"+'II-DEM RESULTADOS'!Y109","v":0},{"$f":"+'II-DEM RESULTADOS'!Z109","v":0},{"$f":"+'II-DEM RESULTADOS'!AA109","v":0},{"$f":"+'II-DEM RESULTADOS'!AB109","v":0}]
[{"$f":"+'dados I'!$A$2","v":20008838749},{"$f":"+'dados I'!$B$2","v":502065591},{"$f":"+'II-DEM RESULTADOS'!C110","v":64},{"$f":"+'II-DEM RESULTADOS'!F110","v":"GASTOS DE DEPRECIAÇÃO E AMORTIZAÇÃO"},{"$f":"+'II-DEM RESULTADOS'!I110","v":10100},{"$f":"+'II-DEM RESULTADOS'!J110","v":2279},{"$f":"+'II-DEM RESULTADOS'!K110","v":3345},{"$f":"+'II-DEM RESULTADOS'!L110","v":1910},{"$f":"+'II-DEM RESULTADOS'!M110","v":2566},{"$f":"+'II-DEM RESULTADOS'!N110","v":0},{"$f":"+'II-DEM RESULTADOS'!O110","v":0},{"$f":"+'II-DEM RESULTADOS'!P110","v":0},{"$f":"+'II-DEM RESULTADOS'!Q110","v":0},{"$f":"+'II-DEM RESULTADOS'!R110","v":0},{"$f":"+'II-DEM RESULTADOS'!S110","v":0},{"$f":"+'II-DEM RESULTADOS'!T110","v":0},{"$f":"+'II-DEM RESULTADOS'!U110","v":0},{"$f":"+'II-DEM RESULTADOS'!V110","v":0},{"$f":"+'II-DEM RESULTADOS'!W110","v":0},{"$f":"+'II-DEM RESULTADOS'!X110","v":0},{"$f":"+'II-DEM RESULTADOS'!Y110","v":0},{"$f":"+'II-DEM RESULTADOS'!Z110","v":0},{"$f":"+'II-DEM RESULTADOS'!AA110","v":0},{"$f":"+'II-DEM RESULTADOS'!AB110","v":0}]
[{"$f":"+'dados I'!$A$2","v":20008838749},{"$f":"+'dados I'!$B$2","v":502065591},{"$f":"+'II-DEM RESULTADOS'!C111","v":641},{"$f":"+'II-DEM RESULTADOS'!F111","v":"PROPRIEDADES DE INVESTIMENTO"},{"$f":"+'II-DEM RESULTADOS'!I111","v":0},{"$f":"+'II-DEM RESULTADOS'!J111","v":0},{"$f":"+'II-DEM RESULTADOS'!K111","v":0},{"$f":"+'II-DEM RESULTADOS'!L111","v":0},{"$f":"+'II-DEM RESULTADOS'!M111","v":0},{"$f":"+'II-DEM RESULTADOS'!N111","v":0},{"$f":"+'II-DEM RESULTADOS'!O111","v":0},{"$f":"+'II-DEM RESULTADOS'!P111","v":0},{"$f":"+'II-DEM RESULTADOS'!Q111","v":0},{"$f":"+'II-DEM RESULTADOS'!R111","v":0},{"$f":"+'II-DEM RESULTADOS'!S111","v":0},{"$f":"+'II-DEM RESULTADOS'!T111","v":0},{"$f":"+'II-DEM RESULTADOS'!U111","v":0},{"$f":"+'II-DEM RESULTADOS'!V111","v":0},{"$f":"+'II-DEM RESULTADOS'!W111","v":0},{"$f":"+'II-DEM RESULTADOS'!X111","v":0},{"$f":"+'II-DEM RESULTADOS'!Y111","v":0},{"$f":"+'II-DEM RESULTADOS'!Z111","v":0},{"$f":"+'II-DEM RESULTADOS'!AA111","v":0},{"$f":"+'II-DEM RESULTADOS'!AB111","v":0}]
[{"$f":"+'dados I'!$A$2","v":20008838749},{"$f":"+'dados I'!$B$2","v":502065591},{"$f":"+'II-DEM RESULTADOS'!C112","v":642},{"$f":"+'II-DEM RESULTADOS'!F112","v":"ATIVOS FIXOS TANGÍVEIS"},{"$f":"+'II-DEM RESULTADOS'!I112","v":10100},{"$f":"+'II-DEM RESULTADOS'!J112","v":2279},{"$f":"+'II-DEM RESULTADOS'!K112","v":3345},{"$f":"+'II-DEM RESULTADOS'!L112","v":1910},{"$f":"+'II-DEM RESULTADOS'!M112","v":2566},{"$f":"+'II-DEM RESULTADOS'!N112","v":0},{"$f":"+'II-DEM RESULTADOS'!O112","v":0},{"$f":"+'II-DEM RESULTADOS'!P112","v":0},{"$f":"+'II-DEM RESULTADOS'!Q112","v":0},{"$f":"+'II-DEM RESULTADOS'!R112","v":0},{"$f":"+'II-DEM RESULTADOS'!S112","v":0},{"$f":"+'II-DEM RESULTADOS'!T112","v":0},{"$f":"+'II-DEM RESULTADOS'!U112","v":0},{"$f":"+'II-DEM RESULTADOS'!V112","v":0},{"$f":"+'II-DEM RESULTADOS'!W112","v":0},{"$f":"+'II-DEM RESULTADOS'!X112","v":0},{"$f":"+'II-DEM RESULTADOS'!Y112","v":0},{"$f":"+'II-DEM RESULTADOS'!Z112","v":0},{"$f":"+'II-DEM RESULTADOS'!AA112","v":0},{"$f":"+'II-DEM RESULTADOS'!AB112","v":0}]
[{"$f":"+'dados I'!$A$2","v":20008838749},{"$f":"+'dados I'!$B$2","v":502065591},{"$f":"+'II-DEM RESULTADOS'!C113","v":643},{"$f":"+'II-DEM RESULTADOS'!F113","v":"ATIVOS INTANGÍVEIS"},{"$f":"+'II-DEM RESULTADOS'!I113","v":0},{"$f":"+'II-DEM RESULTADOS'!J113","v":0},{"$f":"+'II-DEM RESULTADOS'!K113","v":0},{"$f":"+'II-DEM RESULTADOS'!L113","v":0},{"$f":"+'II-DEM RESULTADOS'!M113","v":0},{"$f":"+'II-DEM RESULTADOS'!N113","v":0},{"$f":"+'II-DEM RESULTADOS'!O113","v":0},{"$f":"+'II-DEM RESULTADOS'!P113","v":0},{"$f":"+'II-DEM RESULTADOS'!Q113","v":0},{"$f":"+'II-DEM RESULTADOS'!R113","v":0},{"$f":"+'II-DEM RESULTADOS'!S113","v":0},{"$f":"+'II-DEM RESULTADOS'!T113","v":0},{"$f":"+'II-DEM RESULTADOS'!U113","v":0},{"$f":"+'II-DEM RESULTADOS'!V113","v":0},{"$f":"+'II-DEM RESULTADOS'!W113","v":0},{"$f":"+'II-DEM RESULTADOS'!X113","v":0},{"$f":"+'II-DEM RESULTADOS'!Y113","v":0},{"$f":"+'II-DEM RESULTADOS'!Z113","v":0},{"$f":"+'II-DEM RESULTADOS'!AA113","v":0},{"$f":"+'II-DEM RESULTADOS'!AB113","v":0}]
[{"$f":"+'dados I'!$A$2","v":20008838749},{"$f":"+'dados I'!$B$2","v":502065591},{"$f":"+'II-DEM RESULTADOS'!C114","v":65},{"$f":"+'II-DEM RESULTADOS'!F114","v":"PERDAS POR IMPARIDADE"},{"$f":"+'II-DEM RESULTADOS'!I114","v":0},{"$f":"+'II-DEM RESULTADOS'!J114","v":0},{"$f":"+'II-DEM RESULTADOS'!K114","v":0},{"$f":"+'II-DEM RESULTADOS'!L114","v":0},{"$f":"+'II-DEM RESULTADOS'!M114","v":0},{"$f":"+'II-DEM RESULTADOS'!N114","v":0},{"$f":"+'II-DEM RESULTADOS'!O114","v":0},{"$f":"+'II-DEM RESULTADOS'!P114","v":0},{"$f":"+'II-DEM RESULTADOS'!Q114","v":0},{"$f":"+'II-DEM RESULTADOS'!R114","v":0},{"$f":"+'II-DEM RESULTADOS'!S114","v":0},{"$f":"+'II-DEM RESULTADOS'!T114","v":0},{"$f":"+'II-DEM RESULTADOS'!U114","v":0},{"$f":"+'II-DEM RESULTADOS'!V114","v":0},{"$f":"+'II-DEM RESULTADOS'!W114","v":0},{"$f":"+'II-DEM RESULTADOS'!X114","v":0},{"$f":"+'II-DEM RESULTADOS'!Y114","v":0},{"$f":"+'II-DEM RESULTADOS'!Z114","v":0},{"$f":"+'II-DEM RESULTADOS'!AA114","v":0},{"$f":"+'II-DEM RESULTADOS'!AB114","v":0}]
[{"$f":"+'dados I'!$A$2","v":20008838749},{"$f":"+'dados I'!$B$2","v":502065591},{"$f":"+'II-DEM RESULTADOS'!C115","v":651},{"$f":"+'II-DEM RESULTADOS'!F115","v":"DE DÍVIDAS A RECEBER"},{"$f":"+'II-DEM RESULTADOS'!I115","v":0},{"$f":"+'II-DEM RESULTADOS'!J115","v":0},{"$f":"+'II-DEM RESULTADOS'!K115","v":0},{"$f":"+'II-DEM RESULTADOS'!L115","v":0},{"$f":"+'II-DEM RESULTADOS'!M115","v":0},{"$f":"+'II-DEM RESULTADOS'!N115","v":0},{"$f":"+'II-DEM RESULTADOS'!O115","v":0},{"$f":"+'II-DEM RESULTADOS'!P115","v":0},{"$f":"+'II-DEM RESULTADOS'!Q115","v":0},{"$f":"+'II-DEM RESULTADOS'!R115","v":0},{"$f":"+'II-DEM RESULTADOS'!S115","v":0},{"$f":"+'II-DEM RESULTADOS'!T115","v":0},{"$f":"+'II-DEM RESULTADOS'!U115","v":0},{"$f":"+'II-DEM RESULTADOS'!V115","v":0},{"$f":"+'II-DEM RESULTADOS'!W115","v":0},{"$f":"+'II-DEM RESULTADOS'!X115","v":0},{"$f":"+'II-DEM RESULTADOS'!Y115","v":0},{"$f":"+'II-DEM RESULTADOS'!Z115","v":0},{"$f":"+'II-DEM RESULTADOS'!AA115","v":0},{"$f":"+'II-DEM RESULTADOS'!AB115","v":0}]
[{"$f":"+'dados I'!$A$2","v":20008838749},{"$f":"+'dados I'!$B$2","v":502065591},{"$f":"+'II-DEM RESULTADOS'!C116","v":652},{"$f":"+'II-DEM RESULTADOS'!F116","v":"DE INVENTÁRIOS"},{"$f":"+'II-DEM RESULTADOS'!I116","v":0},{"$f":"+'II-DEM RESULTADOS'!J116","v":0},{"$f":"+'II-DEM RESULTADOS'!K116","v":0},{"$f":"+'II-DEM RESULTADOS'!L116","v":0},{"$f":"+'II-DEM RESULTADOS'!M116","v":0},{"$f":"+'II-DEM RESULTADOS'!N116","v":0},{"$f":"+'II-DEM RESULTADOS'!O116","v":0},{"$f":"+'II-DEM RESULTADOS'!P116","v":0},{"$f":"+'II-DEM RESULTADOS'!Q116","v":0},{"$f":"+'II-DEM RESULTADOS'!R116","v":0},{"$f":"+'II-DEM RESULTADOS'!S116","v":0},{"$f":"+'II-DEM RESULTADOS'!T116","v":0},{"$f":"+'II-DEM RESULTADOS'!U116","v":0},{"$f":"+'II-DEM RESULTADOS'!V116","v":0},{"$f":"+'II-DEM RESULTADOS'!W116","v":0},{"$f":"+'II-DEM RESULTADOS'!X116","v":0},{"$f":"+'II-DEM RESULTADOS'!Y116","v":0},{"$f":"+'II-DEM RESULTADOS'!Z116","v":0},{"$f":"+'II-DEM RESULTADOS'!AA116","v":0},{"$f":"+'II-DEM RESULTADOS'!AB116","v":0}]
[{"$f":"+'dados I'!$A$2","v":20008838749},{"$f":"+'dados I'!$B$2","v":502065591},{"$f":"+'II-DEM RESULTADOS'!C117","v":"653/658"},{"$f":"+'II-DEM RESULTADOS'!F117","v":"PERDAS EM OUTROS ATIVOS"},{"$f":"+'II-DEM RESULTADOS'!I117","v":0},{"$f":"+'II-DEM RESULTADOS'!J117","v":0},{"$f":"+'II-DEM RESULTADOS'!K117","v":0},{"$f":"+'II-DEM RESULTADOS'!L117","v":0},{"$f":"+'II-DEM RESULTADOS'!M117","v":0},{"$f":"+'II-DEM RESULTADOS'!N117","v":0},{"$f":"+'II-DEM RESULTADOS'!O117","v":0},{"$f":"+'II-DEM RESULTADOS'!P117","v":0},{"$f":"+'II-DEM RESULTADOS'!Q117","v":0},{"$f":"+'II-DEM RESULTADOS'!R117","v":0},{"$f":"+'II-DEM RESULTADOS'!S117","v":0},{"$f":"+'II-DEM RESULTADOS'!T117","v":0},{"$f":"+'II-DEM RESULTADOS'!U117","v":0},{"$f":"+'II-DEM RESULTADOS'!V117","v":0},{"$f":"+'II-DEM RESULTADOS'!W117","v":0},{"$f":"+'II-DEM RESULTADOS'!X117","v":0},{"$f":"+'II-DEM RESULTADOS'!Y117","v":0},{"$f":"+'II-DEM RESULTADOS'!Z117","v":0},{"$f":"+'II-DEM RESULTADOS'!AA117","v":0},{"$f":"+'II-DEM RESULTADOS'!AB117","v":0}]
[{"$f":"+'dados I'!$A$2","v":20008838749},{"$f":"+'dados I'!$B$2","v":502065591},{"$f":"+'II-DEM RESULTADOS'!C118","v":66},{"$f":"+'II-DEM RESULTADOS'!F118","v":"PERDAS POR REDUÇÃO DE JUSTO VALOR"},{"$f":"+'II-DEM RESULTADOS'!I118","v":0},{"$f":"+'II-DEM RESULTADOS'!J118","v":0},{"$f":"+'II-DEM RESULTADOS'!K118","v":0},{"$f":"+'II-DEM RESULTADOS'!L118","v":0},{"$f":"+'II-DEM RESULTADOS'!M118","v":0},{"$f":"+'II-DEM RESULTADOS'!N118","v":0},{"$f":"+'II-DEM RESULTADOS'!O118","v":0},{"$f":"+'II-DEM RESULTADOS'!P118","v":0},{"$f":"+'II-DEM RESULTADOS'!Q118","v":0},{"$f":"+'II-DEM RESULTADOS'!R118","v":0},{"$f":"+'II-DEM RESULTADOS'!S118","v":0},{"$f":"+'II-DEM RESULTADOS'!T118","v":0},{"$f":"+'II-DEM RESULTADOS'!U118","v":0},{"$f":"+'II-DEM RESULTADOS'!V118","v":0},{"$f":"+'II-DEM RESULTADOS'!W118","v":0},{"$f":"+'II-DEM RESULTADOS'!X118","v":0},{"$f":"+'II-DEM RESULTADOS'!Y118","v":0},{"$f":"+'II-DEM RESULTADOS'!Z118","v":0},{"$f":"+'II-DEM RESULTADOS'!AA118","v":0},{"$f":"+'II-DEM RESULTADOS'!AB118","v":0}]
[{"$f":"+'dados I'!$A$2","v":20008838749},{"$f":"+'dados I'!$B$2","v":502065591},{"$f":"+'II-DEM RESULTADOS'!C119","v":67},{"$f":"+'II-DEM RESULTADOS'!F119","v":"PROVISÕES DO PERÍODO"},{"$f":"+'II-DEM RESULTADOS'!I119","v":0},{"$f":"+'II-DEM RESULTADOS'!J119","v":0},{"$f":"+'II-DEM RESULTADOS'!K119","v":0},{"$f":"+'II-DEM RESULTADOS'!L119","v":0},{"$f":"+'II-DEM RESULTADOS'!M119","v":0},{"$f":"+'II-DEM RESULTADOS'!N119","v":0},{"$f":"+'II-DEM RESULTADOS'!O119","v":0},{"$f":"+'II-DEM RESULTADOS'!P119","v":0},{"$f":"+'II-DEM RESULTADOS'!Q119","v":0},{"$f":"+'II-DEM RESULTADOS'!R119","v":0},{"$f":"+'II-DEM RESULTADOS'!S119","v":0},{"$f":"+'II-DEM RESULTADOS'!T119","v":0},{"$f":"+'II-DEM RESULTADOS'!U119","v":0},{"$f":"+'II-DEM RESULTADOS'!V119","v":0},{"$f":"+'II-DEM RESULTADOS'!W119","v":0},{"$f":"+'II-DEM RESULTADOS'!X119","v":0},{"$f":"+'II-DEM RESULTADOS'!Y119","v":0},{"$f":"+'II-DEM RESULTADOS'!Z119","v":0},{"$f":"+'II-DEM RESULTADOS'!AA119","v":0},{"$f":"+'II-DEM RESULTADOS'!AB119","v":0}]
[{"$f":"+'dados I'!$A$2","v":20008838749},{"$f":"+'dados I'!$B$2","v":502065591},{"$f":"+'II-DEM RESULTADOS'!C120","v":68},{"$f":"+'II-DEM RESULTADOS'!F120","v":"OUTROS GASTOS E PERDAS"},{"$f":"+'II-DEM RESULTADOS'!I120","v":180},{"$f":"+'II-DEM RESULTADOS'!J120","v":45},{"$f":"+'II-DEM RESULTADOS'!K120","v":45},{"$f":"+'II-DEM RESULTADOS'!L120","v":45},{"$f":"+'II-DEM RESULTADOS'!M120","v":45},{"$f":"+'II-DEM RESULTADOS'!N120","v":0},{"$f":"+'II-DEM RESULTADOS'!O120","v":0},{"$f":"+'II-DEM RESULTADOS'!P120","v":0},{"$f":"+'II-DEM RESULTADOS'!Q120","v":0},{"$f":"+'II-DEM RESULTADOS'!R120","v":0},{"$f":"+'II-DEM RESULTADOS'!S120","v":0},{"$f":"+'II-DEM RESULTADOS'!T120","v":0},{"$f":"+'II-DEM RESULTADOS'!U120","v":0},{"$f":"+'II-DEM RESULTADOS'!V120","v":0},{"$f":"+'II-DEM RESULTADOS'!W120","v":0},{"$f":"+'II-DEM RESULTADOS'!X120","v":0},{"$f":"+'II-DEM RESULTADOS'!Y120","v":0},{"$f":"+'II-DEM RESULTADOS'!Z120","v":0},{"$f":"+'II-DEM RESULTADOS'!AA120","v":0},{"$f":"+'II-DEM RESULTADOS'!AB120","v":0}]
[{"$f":"+'dados I'!$A$2","v":20008838749},{"$f":"+'dados I'!$B$2","v":502065591},{"$f":"+'II-DEM RESULTADOS'!C121","v":681},{"$f":"+'II-DEM RESULTADOS'!F121","v":"IMPOSTOS"},{"$f":"+'II-DEM RESULTADOS'!I121","v":0},{"$f":"+'II-DEM RESULTADOS'!J121","v":0},{"$f":"+'II-DEM RESULTADOS'!K121","v":0},{"$f":"+'II-DEM RESULTADOS'!L121","v":0},{"$f":"+'II-DEM RESULTADOS'!M121","v":0},{"$f":"+'II-DEM RESULTADOS'!N121","v":0},{"$f":"+'II-DEM RESULTADOS'!O121","v":0},{"$f":"+'II-DEM RESULTADOS'!P121","v":0},{"$f":"+'II-DEM RESULTADOS'!Q121","v":0},{"$f":"+'II-DEM RESULTADOS'!R121","v":0},{"$f":"+'II-DEM RESULTADOS'!S121","v":0},{"$f":"+'II-DEM RESULTADOS'!T121","v":0},{"$f":"+'II-DEM RESULTADOS'!U121","v":0},{"$f":"+'II-DEM RESULTADOS'!V121","v":0},{"$f":"+'II-DEM RESULTADOS'!W121","v":0},{"$f":"+'II-DEM RESULTADOS'!X121","v":0},{"$f":"+'II-DEM RESULTADOS'!Y121","v":0},{"$f":"+'II-DEM RESULTADOS'!Z121","v":0},{"$f":"+'II-DEM RESULTADOS'!AA121","v":0},{"$f":"+'II-DEM RESULTADOS'!AB121","v":0}]
[{"$f":"+'dados I'!$A$2","v":20008838749},{"$f":"+'dados I'!$B$2","v":502065591},{"$f":"+'II-DEM RESULTADOS'!C122","v":"682/687"},{"$f":"+'II-DEM RESULTADOS'!F122","v":"OUTROS GASTOS E PERDAS EM ATIVOS"},{"$f":"+'II-DEM RESULTADOS'!I122","v":0},{"$f":"+'II-DEM RESULTADOS'!J122","v":0},{"$f":"+'II-DEM RESULTADOS'!K122","v":0},{"$f":"+'II-DEM RESULTADOS'!L122","v":0},{"$f":"+'II-DEM RESULTADOS'!M122","v":0},{"$f":"+'II-DEM RESULTADOS'!N122","v":0},{"$f":"+'II-DEM RESULTADOS'!O122","v":0},{"$f":"+'II-DEM RESULTADOS'!P122","v":0},{"$f":"+'II-DEM RESULTADOS'!Q122","v":0},{"$f":"+'II-DEM RESULTADOS'!R122","v":0},{"$f":"+'II-DEM RESULTADOS'!S122","v":0},{"$f":"+'II-DEM RESULTADOS'!T122","v":0},{"$f":"+'II-DEM RESULTADOS'!U122","v":0},{"$f":"+'II-DEM RESULTADOS'!V122","v":0},{"$f":"+'II-DEM RESULTADOS'!W122","v":0},{"$f":"+'II-DEM RESULTADOS'!X122","v":0},{"$f":"+'II-DEM RESULTADOS'!Y122","v":0},{"$f":"+'II-DEM RESULTADOS'!Z122","v":0},{"$f":"+'II-DEM RESULTADOS'!AA122","v":0},{"$f":"+'II-DEM RESULTADOS'!AB122","v":0}]
[{"$f":"+'dados I'!$A$2","v":20008838749},{"$f":"+'dados I'!$B$2","v":502065591},{"$f":"+'II-DEM RESULTADOS'!C123","v":688},{"$f":"+'II-DEM RESULTADOS'!F123","v":"OUTROS GASTOS E PERDAS"},{"$f":"+'II-DEM RESULTADOS'!I123","v":180},{"$f":"+'II-DEM RESULTADOS'!J123","v":45},{"$f":"+'II-DEM RESULTADOS'!K123","v":45},{"$f":"+'II-DEM RESULTADOS'!L123","v":45},{"$f":"+'II-DEM RESULTADOS'!M123","v":45},{"$f":"+'II-DEM RESULTADOS'!N123","v":0},{"$f":"+'II-DEM RESULTADOS'!O123","v":0},{"$f":"+'II-DEM RESULTADOS'!P123","v":0},{"$f":"+'II-DEM RESULTADOS'!Q123","v":0},{"$f":"+'II-DEM RESULTADOS'!R123","v":0},{"$f":"+'II-DEM RESULTADOS'!S123","v":0},{"$f":"+'II-DEM RESULTADOS'!T123","v":0},{"$f":"+'II-DEM RESULTADOS'!U123","v":0},{"$f":"+'II-DEM RESULTADOS'!V123","v":0},{"$f":"+'II-DEM RESULTADOS'!W123","v":0},{"$f":"+'II-DEM RESULTADOS'!X123","v":0},{"$f":"+'II-DEM RESULTADOS'!Y123","v":0},{"$f":"+'II-DEM RESULTADOS'!Z123","v":0},{"$f":"+'II-DEM RESULTADOS'!AA123","v":0},{"$f":"+'II-DEM RESULTADOS'!AB123","v":0}]
[{"$f":"+'dados I'!$A$2","v":20008838749},{"$f":"+'dados I'!$B$2","v":502065591},{"$f":"+'II-DEM RESULTADOS'!C124","v":6881},{"$f":"+'II-DEM RESULTADOS'!F124","v":"CORREÇÕES DE PERÍODOS ANTERIORES"},{"$f":"+'II-DEM RESULTADOS'!I124","v":0},{"$f":"+'II-DEM RESULTADOS'!J124","v":0},{"$f":"+'II-DEM RESULTADOS'!K124","v":0},{"$f":"+'II-DEM RESULTADOS'!L124","v":0},{"$f":"+'II-DEM RESULTADOS'!M124","v":0},{"$f":"+'II-DEM RESULTADOS'!N124","v":0},{"$f":"+'II-DEM RESULTADOS'!O124","v":0},{"$f":"+'II-DEM RESULTADOS'!P124","v":0},{"$f":"+'II-DEM RESULTADOS'!Q124","v":0},{"$f":"+'II-DEM RESULTADOS'!R124","v":0},{"$f":"+'II-DEM RESULTADOS'!S124","v":0},{"$f":"+'II-DEM RESULTADOS'!T124","v":0},{"$f":"+'II-DEM RESULTADOS'!U124","v":0},{"$f":"+'II-DEM RESULTADOS'!V124","v":0},{"$f":"+'II-DEM RESULTADOS'!W124","v":0},{"$f":"+'II-DEM RESULTADOS'!X124","v":0},{"$f":"+'II-DEM RESULTADOS'!Y124","v":0},{"$f":"+'II-DEM RESULTADOS'!Z124","v":0},{"$f":"+'II-DEM RESULTADOS'!AA124","v":0},{"$f":"+'II-DEM RESULTADOS'!AB124","v":0}]
[{"$f":"+'dados I'!$A$2","v":20008838749},{"$f":"+'dados I'!$B$2","v":502065591},{"$f":"+'II-DEM RESULTADOS'!C125","v":6882},{"$f":"+'II-DEM RESULTADOS'!F125","v":"DONATIVOS"},{"$f":"+'II-DEM RESULTADOS'!I125","v":0},{"$f":"+'II-DEM RESULTADOS'!J125","v":0},{"$f":"+'II-DEM RESULTADOS'!K125","v":0},{"$f":"+'II-DEM RESULTADOS'!L125","v":0},{"$f":"+'II-DEM RESULTADOS'!M125","v":0},{"$f":"+'II-DEM RESULTADOS'!N125","v":0},{"$f":"+'II-DEM RESULTADOS'!O125","v":0},{"$f":"+'II-DEM RESULTADOS'!P125","v":0},{"$f":"+'II-DEM RESULTADOS'!Q125","v":0},{"$f":"+'II-DEM RESULTADOS'!R125","v":0},{"$f":"+'II-DEM RESULTADOS'!S125","v":0},{"$f":"+'II-DEM RESULTADOS'!T125","v":0},{"$f":"+'II-DEM RESULTADOS'!U125","v":0},{"$f":"+'II-DEM RESULTADOS'!V125","v":0},{"$f":"+'II-DEM RESULTADOS'!W125","v":0},{"$f":"+'II-DEM RESULTADOS'!X125","v":0},{"$f":"+'II-DEM RESULTADOS'!Y125","v":0},{"$f":"+'II-DEM RESULTADOS'!Z125","v":0},{"$f":"+'II-DEM RESULTADOS'!AA125","v":0},{"$f":"+'II-DEM RESULTADOS'!AB125","v":0}]
[{"$f":"+'dados I'!$A$2","v":20008838749},{"$f":"+'dados I'!$B$2","v":502065591},{"$f":"+'II-DEM RESULTADOS'!C126","v":6883},{"$f":"+'II-DEM RESULTADOS'!F126","v":"QUOTIZAÇÕES"},{"$f":"+'II-DEM RESULTADOS'!I126","v":180},{"$f":"+'II-DEM RESULTADOS'!J126","v":45},{"$f":"+'II-DEM RESULTADOS'!K126","v":45},{"$f":"+'II-DEM RESULTADOS'!L126","v":45},{"$f":"+'II-DEM RESULTADOS'!M126","v":45},{"$f":"+'II-DEM RESULTADOS'!N126","v":0},{"$f":"+'II-DEM RESULTADOS'!O126","v":0},{"$f":"+'II-DEM RESULTADOS'!P126","v":0},{"$f":"+'II-DEM RESULTADOS'!Q126","v":0},{"$f":"+'II-DEM RESULTADOS'!R126","v":0},{"$f":"+'II-DEM RESULTADOS'!S126","v":0},{"$f":"+'II-DEM RESULTADOS'!T126","v":0},{"$f":"+'II-DEM RESULTADOS'!U126","v":0},{"$f":"+'II-DEM RESULTADOS'!V126","v":0},{"$f":"+'II-DEM RESULTADOS'!W126","v":0},{"$f":"+'II-DEM RESULTADOS'!X126","v":0},{"$f":"+'II-DEM RESULTADOS'!Y126","v":0},{"$f":"+'II-DEM RESULTADOS'!Z126","v":0},{"$f":"+'II-DEM RESULTADOS'!AA126","v":0},{"$f":"+'II-DEM RESULTADOS'!AB126","v":0}]
[{"$f":"+'dados I'!$A$2","v":20008838749},{"$f":"+'dados I'!$B$2","v":502065591},{"$f":"+'II-DEM RESULTADOS'!C127","v":"6884/6888"},{"$f":"+'II-DEM RESULTADOS'!F127","v":"OUTROS GASTOS E PERDAS"},{"$f":"+'II-DEM RESULTADOS'!I127","v":0},{"$f":"+'II-DEM RESULTADOS'!J127","v":0},{"$f":"+'II-DEM RESULTADOS'!K127","v":0},{"$f":"+'II-DEM RESULTADOS'!L127","v":0},{"$f":"+'II-DEM RESULTADOS'!M127","v":0},{"$f":"+'II-DEM RESULTADOS'!N127","v":0},{"$f":"+'II-DEM RESULTADOS'!O127","v":0},{"$f":"+'II-DEM RESULTADOS'!P127","v":0},{"$f":"+'II-DEM RESULTADOS'!Q127","v":0},{"$f":"+'II-DEM RESULTADOS'!R127","v":0},{"$f":"+'II-DEM RESULTADOS'!S127","v":0},{"$f":"+'II-DEM RESULTADOS'!T127","v":0},{"$f":"+'II-DEM RESULTADOS'!U127","v":0},{"$f":"+'II-DEM RESULTADOS'!V127","v":0},{"$f":"+'II-DEM RESULTADOS'!W127","v":0},{"$f":"+'II-DEM RESULTADOS'!X127","v":0},{"$f":"+'II-DEM RESULTADOS'!Y127","v":0},{"$f":"+'II-DEM RESULTADOS'!Z127","v":0},{"$f":"+'II-DEM RESULTADOS'!AA127","v":0},{"$f":"+'II-DEM RESULTADOS'!AB127","v":0}]
[{"$f":"+'dados I'!$A$2","v":20008838749},{"$f":"+'dados I'!$B$2","v":502065591},{"$f":"+'II-DEM RESULTADOS'!C128","v":689},{"$f":"+'II-DEM RESULTADOS'!F128","v":"CUSTOS C/ APOIOS FIN. CONCEDIDOS A ASS. OU UTENTES"},{"$f":"+'II-DEM RESULTADOS'!I128","v":0},{"$f":"+'II-DEM RESULTADOS'!J128","v":0},{"$f":"+'II-DEM RESULTADOS'!K128","v":0},{"$f":"+'II-DEM RESULTADOS'!L128","v":0},{"$f":"+'II-DEM RESULTADOS'!M128","v":0},{"$f":"+'II-DEM RESULTADOS'!N128","v":0},{"$f":"+'II-DEM RESULTADOS'!O128","v":0},{"$f":"+'II-DEM RESULTADOS'!P128","v":0},{"$f":"+'II-DEM RESULTADOS'!Q128","v":0},{"$f":"+'II-DEM RESULTADOS'!R128","v":0},{"$f":"+'II-DEM RESULTADOS'!S128","v":0},{"$f":"+'II-DEM RESULTADOS'!T128","v":0},{"$f":"+'II-DEM RESULTADOS'!U128","v":0},{"$f":"+'II-DEM RESULTADOS'!V128","v":0},{"$f":"+'II-DEM RESULTADOS'!W128","v":0},{"$f":"+'II-DEM RESULTADOS'!X128","v":0},{"$f":"+'II-DEM RESULTADOS'!Y128","v":0},{"$f":"+'II-DEM RESULTADOS'!Z128","v":0},{"$f":"+'II-DEM RESULTADOS'!AA128","v":0},{"$f":"+'II-DEM RESULTADOS'!AB128","v":0}]
[{"$f":"+'dados I'!$A$2","v":20008838749},{"$f":"+'dados I'!$B$2","v":502065591},{"$f":"+'II-DEM RESULTADOS'!C129","v":69},{"$f":"+'II-DEM RESULTADOS'!F129","v":"GASTOS E PERDAS DE FINANCIAMENTO"},{"$f":"+'II-DEM RESULTADOS'!I129","v":96},{"$f":"+'II-DEM RESULTADOS'!J129","v":24},{"$f":"+'II-DEM RESULTADOS'!K129","v":24},{"$f":"+'II-DEM RESULTADOS'!L129","v":24},{"$f":"+'II-DEM RESULTADOS'!M129","v":24},{"$f":"+'II-DEM RESULTADOS'!N129","v":0},{"$f":"+'II-DEM RESULTADOS'!O129","v":0},{"$f":"+'II-DEM RESULTADOS'!P129","v":0},{"$f":"+'II-DEM RESULTADOS'!Q129","v":0},{"$f":"+'II-DEM RESULTADOS'!R129","v":0},{"$f":"+'II-DEM RESULTADOS'!S129","v":0},{"$f":"+'II-DEM RESULTADOS'!T129","v":0},{"$f":"+'II-DEM RESULTADOS'!U129","v":0},{"$f":"+'II-DEM RESULTADOS'!V129","v":0},{"$f":"+'II-DEM RESULTADOS'!W129","v":0},{"$f":"+'II-DEM RESULTADOS'!X129","v":0},{"$f":"+'II-DEM RESULTADOS'!Y129","v":0},{"$f":"+'II-DEM RESULTADOS'!Z129","v":0},{"$f":"+'II-DEM RESULTADOS'!AA129","v":0},{"$f":"+'II-DEM RESULTADOS'!AB129","v":0}]
[{"$f":"+'dados I'!$A$2","v":20008838749},{"$f":"+'dados I'!$B$2","v":502065591},{"$f":"+'II-DEM RESULTADOS'!C130","v":6},{"$f":"+'II-DEM RESULTADOS'!F130","v":"TOTAL GASTOS"},{"$f":"+'II-DEM RESULTADOS'!I130","v":348406.83999999997},{"$f":"+'II-DEM RESULTADOS'!J130","v":124749.22},{"$f":"+'II-DEM RESULTADOS'!K130","v":150947.68},{"$f":"+'II-DEM RESULTADOS'!L130","v":41355.270000000004},{"$f":"+'II-DEM RESULTADOS'!M130","v":31354.67},{"$f":"+'II-DEM RESULTADOS'!N130","v":0},{"$f":"+'II-DEM RESULTADOS'!O130","v":0},{"$f":"+'II-DEM RESULTADOS'!P130","v":0},{"$f":"+'II-DEM RESULTADOS'!Q130","v":0},{"$f":"+'II-DEM RESULTADOS'!R130","v":0},{"$f":"+'II-DEM RESULTADOS'!S130","v":0},{"$f":"+'II-DEM RESULTADOS'!T130","v":0},{"$f":"+'II-DEM RESULTADOS'!U130","v":0},{"$f":"+'II-DEM RESULTADOS'!V130","v":0},{"$f":"+'II-DEM RESULTADOS'!W130","v":0},{"$f":"+'II-DEM RESULTADOS'!X130","v":0},{"$f":"+'II-DEM RESULTADOS'!Y130","v":0},{"$f":"+'II-DEM RESULTADOS'!Z130","v":0},{"$f":"+'II-DEM RESULTADOS'!AA130","v":0},{"$f":"+'II-DEM RESULTADOS'!AB130","v":0}]
[{"$f":"+'dados I'!$A$2","v":20008838749},{"$f":"+'dados I'!$B$2","v":502065591},{"$f":"+'II-DEM RESULTADOS'!C136","v":85},{"$f":"+'II-DEM RESULTADOS'!F136","v":"RESULTADOS ANTES IMPOSTOS"},{"$f":"+'II-DEM RESULTADOS'!I136","v":26063.040000000037},{"$f":"+'II-DEM RESULTADOS'!J136","v":52955.299999999988},{"$f":"+'II-DEM RESULTADOS'!K136","v":-10535.700000000012},{"$f":"+'II-DEM RESULTADOS'!L136","v":-11373.070000000003},{"$f":"+'II-DEM RESULTADOS'!M136","v":-4983.489999999998},{"$f":"+'II-DEM RESULTADOS'!N136","v":0},{"$f":"+'II-DEM RESULTADOS'!O136","v":0},{"$f":"+'II-DEM RESULTADOS'!P136","v":0},{"$f":"+'II-DEM RESULTADOS'!Q136","v":0},{"$f":"+'II-DEM RESULTADOS'!R136","v":0},{"$f":"+'II-DEM RESULTADOS'!S136","v":0},{"$f":"+'II-DEM RESULTADOS'!T136","v":0},{"$f":"+'II-DEM RESULTADOS'!U136","v":0},{"$f":"+'II-DEM RESULTADOS'!V136","v":0},{"$f":"+'II-DEM RESULTADOS'!W136","v":0},{"$f":"+'II-DEM RESULTADOS'!X136","v":0},{"$f":"+'II-DEM RESULTADOS'!Y136","v":0},{"$f":"+'II-DEM RESULTADOS'!Z136","v":0},{"$f":"+'II-DEM RESULTADOS'!AA136","v":0},{"$f":"+'II-DEM RESULTADOS'!AB136","v":0}]
[{"$f":"+'dados I'!$A$2","v":20008838749},{"$f":"+'dados I'!$B$2","v":502065591},{"$f":"+'II-DEM RESULTADOS'!C137","v":86},{"$f":"+'II-DEM RESULTADOS'!F137","v":"IMPOSTO RENDIMENTO EXERCÍCIO"},{"$f":"+'II-DEM RESULTADOS'!I137","v":0},{"$f":"+'II-DEM RESULTADOS'!J137","v":0},{"$f":"+'II-DEM RESULTADOS'!K137","v":0},{"$f":"+'II-DEM RESULTADOS'!L137","v":0},{"$f":"+'II-DEM RESULTADOS'!M137","v":0},{"$f":"+'II-DEM RESULTADOS'!N137","v":0},{"$f":"+'II-DEM RESULTADOS'!O137","v":0},{"$f":"+'II-DEM RESULTADOS'!P137","v":0},{"$f":"+'II-DEM RESULTADOS'!Q137","v":0},{"$f":"+'II-DEM RESULTADOS'!R137","v":0},{"$f":"+'II-DEM RESULTADOS'!S137","v":0},{"$f":"+'II-DEM RESULTADOS'!T137","v":0},{"$f":"+'II-DEM RESULTADOS'!U137","v":0},{"$f":"+'II-DEM RESULTADOS'!V137","v":0},{"$f":"+'II-DEM RESULTADOS'!W137","v":0},{"$f":"+'II-DEM RESULTADOS'!X137","v":0},{"$f":"+'II-DEM RESULTADOS'!Y137","v":0},{"$f":"+'II-DEM RESULTADOS'!Z137","v":0},{"$f":"+'II-DEM RESULTADOS'!AA137","v":0},{"$f":"+'II-DEM RESULTADOS'!AB137","v":0}]
[{"$f":"+'dados I'!$A$2","v":20008838749},{"$f":"+'dados I'!$B$2","v":502065591},{"$f":"+'II-DEM RESULTADOS'!C138","v":88},{"$f":"+'II-DEM RESULTADOS'!F138","v":"RESULTADO LÍQUIDO"},{"$f":"+'II-DEM RESULTADOS'!I138","v":26063.040000000037},{"$f":"+'II-DEM RESULTADOS'!J138","v":52955.299999999988},{"$f":"+'II-DEM RESULTADOS'!K138","v":-10535.700000000012},{"$f":"+'II-DEM RESULTADOS'!L138","v":-11373.070000000003},{"$f":"+'II-DEM RESULTADOS'!M138","v":-4983.489999999998},{"$f":"+'II-DEM RESULTADOS'!N138","v":0},{"$f":"+'II-DEM RESULTADOS'!O138","v":0},{"$f":"+'II-DEM RESULTADOS'!P138","v":0},{"$f":"+'II-DEM RESULTADOS'!Q138","v":0},{"$f":"+'II-DEM RESULTADOS'!R138","v":0},{"$f":"+'II-DEM RESULTADOS'!S138","v":0},{"$f":"+'II-DEM RESULTADOS'!T138","v":0},{"$f":"+'II-DEM RESULTADOS'!U138","v":0},{"$f":"+'II-DEM RESULTADOS'!V138","v":0},{"$f":"+'II-DEM RESULTADOS'!W138","v":0},{"$f":"+'II-DEM RESULTADOS'!X138","v":0},{"$f":"+'II-DEM RESULTADOS'!Y138","v":0},{"$f":"+'II-DEM RESULTADOS'!Z138","v":0},{"$f":"+'II-DEM RESULTADOS'!AA138","v":0},{"$f":"+'II-DEM RESULTADOS'!AB138","v":0}]

{"sheet":"dados III","index":9,"n_rows":2,"n_cols":200,"rows_kept":2,"cut":false,"hidden":true,"merged":[]}
["NISS","NIF","ISS_AC_1101","ISS_AC_1102","ISS_AC_1103","ISS_AC_1104","ISS_AC_1105","ISS_AC_1201","ISS_AC_1202","ISS_AC_1203","ISS_AC_1301","ISS_AC_1302","ISS_AC_1303","ISS_AC_1304","ISS_AC_1305","ISS_AC_1306","ISS_AC_2101","ISS_AC_2102","ISS_AC_2103","ISS_AC_2104","ISS_AC_2105","ISS_AC_2106","ISS_AC_2107","ISS_AC_2201","ISS_AC_2202","ISS_AC_2203","ISS_AC_2204","ISS_AC_2205","ISS_AC_2206","ISS_AC_2301","ISS_AC_2302","ISS_AC_2303","ISS_AC_2401","ISS_AC_2402","ISS_AC_2403","ISS_AC_2404","ISS_AC_2501","ISS_AC_2502","ISS_AC_3101","ISS_AC_3102","ISS_AC_3103","ISS_AC_3104","ISS_AC_3105","ISS_AC_3106","ISS_AC_3107","ISS_AC_3108","ISS_AC_3109","ISS_AC_3201","ISS_AC_3202","ISS_AC_3203","ISS_AC_3301","ISS_AC_3302","ISS_AC_3401","ISS_AC_3402","ISS_AC_4101","ISS_AC_4102","ISS_AC_4103","ISS_AC_4104","ISS_AC_4104","ISS-OUTROS ACORDOS","ISS_P_SEREMAIS","ISS_P_RSI","ISS_P_RNCCI","ISS_P_LNES","ISS_P_OUTROS","ISS_P_PIEF",{"$f":"+'III- FINANCIAMENTO'!$H78","v":0},"ISS_P_CLDS","ISS_P_PAII","ISS_P_PILAR","ISS_P_PES","ISS_P_PAPI","ISS_P_PCACC","ISS_P_PARES","ISS_P_POPH","ISS_P_MASES","ISS_P_PCHI","ISS_PR_OUTROS","ISS_F_RF","ISS_F_CSE","IGFSS_AC","IGFSS_PROT","IGFSS_PROG","IGFSS_F","IGFSS_O","IEFP_AC","IEFP_PROT","IEFP_PROG","IEFP_F","IEFP_O","AUT_AC","AUT_PROT","AUT_PROG","AUT_F","AUT_O","MEDUC_AC","MEDUC_PROT","MEDUC_PROG","MEDUC_F","MEDUC_O","MS_AC","MS_PROT","MS_PROG","MS_F","MS_O","MECON_AC","MECON_PROT","MECON_PROG","MECON_F","MECON_O","OEP_AC","OEP_PROT","OEP_PROG","OEP_F","OEP_O","TOTAL_COMP_PUB_EXP","COMP_INV_PROG_PIDDAC","COMP_INV_PROG_OUTROS","COMP_INV_FUNDOS_FSS","COMP_INV_FUNDOS_OUTROS","COMP_INV_OUTROS_OUTROS","COMP_INV_IGFSS_PROG","COMP_INV_IGFSS_FUNDOS","COMP_INV_IGFSS_OUTROS","COMP_INV_IEFP_PROG","COMP_INV_IEFP_FUNDOS","COMP_INV_IEFP_OUTROS","COMP_INV_AUT_PROG","COMP_INV_AUT_FUNDOS","COMP_INV_AUT_OUTROS","COMP_INV_MEDUC_PROG","COMP_INV_MEDUC_FUNDOS","COMP_INV_MEDUC_OUTROS","COMP_INV_MS_PROG","COMP_INV_MS_FUNDOS","COMP_INV_MS_OUTROS","COMP_INV_MECON_PROG","COMP_INV_MECON_FUNDOS","COMP_INV_MECON_OUTROS","COMP_INV_OEP_PROG","COMP_INV_OEP_FUNDOS","COMP_INV_OEP_OUTROS","TOTAL_COMP_PUB_FIN","COMP_INV_PROG_PIDDAC_1","COMP_INV_PROG_OUTROS_1","COMP_INV_FUNDOS_FSS_1","COMP_INV_FUNDOS_OUTROS_1","COMP_INV_OUTROS_OUTROS_1","COMP_INV_IGFSS_PROG_1","COMP_INV_IGFSS_FUNDOS_1","COMP_INV_IGFSS_OUTROS_1","COMP_INV_IEFP_PROG_1","COMP_INV_IEFP_FUNDOS_1","COMP_INV_IEFP_OUTROS_1","COMP_INV_AUT_PROG_1","COMP_INV_AUT_FUNDOS_1","COMP_INV_AUT_OUTROS_1","COMP_INV_MEDUC_PROG_1","COMP_INV_MEDUC_FUNDOS_1","COMP_INV_MEDUC_OUTROS_1","COMP_INV_MS_PROG_1","COMP_INV_MS_FUNDOS_1","COMP_INV_MS_OUTROS_1","COMP_INV_MECON_PROG_1","COMP_INV_MECON_FUNDOS_1","COMP_INV_MECON_OUTROS_1","COMP_INV_OEP_PROG_1","COMP_INV_OEP_FUNDOS_1","COMP_INV_OEP_OUTROS_1","TOTAL_COMP_PUB_FIN_1","EF_1","RB_1","E_1","I_1","FF_1","EF_2","RB_2","E_2","I_2","FF_2","EF_3","RB_3","E_3","I_3","FF_3","EF_4","RB_4","E_4","I_4","FF_4","EF_5","RB_5","E_5","I_5","FF_5","EF_6","RB_6","E_6","I_6","FF_6"]
[{"$f":"+'I-DADOS GERAIS'!L14","v":20008838749},{"$f":"+'I-DADOS GERAIS'!G14","v":502065591},{"$f":"+'III- FINANCIAMENTO'!$H15","v":0},{"$f":"+'III- FINANCIAMENTO'!$H16","v":0},{"$f":"+'III- FINANCIAMENTO'!$H17","v":175829.52},{"$f":"+'III- FINANCIAMENTO'!$H18","v":81941.98},{"$f":"+'III- FINANCIAMENTO'!$H19","v":10342.200000000001},{"$f":"+'III- FINANCIAMENTO'!$H20","v":0},{"$f":"+'III- FINANCIAMENTO'!$H21","v":0},{"$f":"+'III- FINANCIAMENTO'!$H22","v":0},{"$f":"+'III- FINANCIAMENTO'!$H23","v":0},{"$f":"+'III- FINANCIAMENTO'!$H24","v":0},{"$f":"+'III- FINANCIAMENTO'!$H25","v":0},{"$f":"+'III- FINANCIAMENTO'!$H26","v":0},{"$f":"+'III- FINANCIAMENTO'!$H27","v":0},{"$f":"+'III- FINANCIAMENTO'!$H28","v":0},{"$f":"+'III- FINANCIAMENTO'!$H29","v":0},{"$f":"+'III- FINANCIAMENTO'!$H30","v":0},{"$f":"+'III- FINANCIAMENTO'!$H31","v":0},{"$f":"+'III- FINANCIAMENTO'!$H32","v":0},{"$f":"+'III- FINANCIAMENTO'!$H33","v":0},{"$f":"+'III- FINANCIAMENTO'!$H34","v":0},{"$f":"+'III- FINANCIAMENTO'!$H35","v":0},{"$f":"+'III- FINANCIAMENTO'!$H36","v":0},{"$f":"+'III- FINANCIAMENTO'!$H37","v":13049.64},{"$f":"+'III- FINANCIAMENTO'!$H38","v":0},{"$f":"+'III- FINANCIAMENTO'!$H39","v":0},{"$f":"+'III- FINANCIAMENTO'!$H40","v":0},{"$f":"+'III- FINANCIAMENTO'!$H41","v":0},{"$f":"+'III- FINANCIAMENTO'!$H42","v":0},{"$f":"+'III- FINANCIAMENTO'!$H43","v":0},{"$f":"+'III- FINANCIAMENTO'!$H44","v":0},{"$f":"+'III- FINANCIAMENTO'!$H45","v":0},{"$f":"+'III- FINANCIAMENTO'!$H46","v":0},{"$f":"+'III- FINANCIAMENTO'!$H47","v":0},{"$f":"+'III- FINANCIAMENTO'!$H48","v":0},{"$f":"+'III- FINANCIAMENTO'!$H49","v":0},{"$f":"+'III- FINANCIAMENTO'!$H50","v":0},{"$f":"+'III- FINANCIAMENTO'!$H51","v":0},{"$f":"+'III- FINANCIAMENTO'!$H52","v":0},{"$f":"+'III- FINANCIAMENTO'!$H53","v":0},{"$f":"+'III- FINANCIAMENTO'!$H54","v":0},{"$f":"+'III- FINANCIAMENTO'!$H55","v":0},{"$f":"+'III- FINANCIAMENTO'!$H56","v":0},{"$f":"+'III- FINANCIAMENTO'!$H57","v":0},{"$f":"+'III- FINANCIAMENTO'!$H58","v":0},{"$f":"+'III- FINANCIAMENTO'!$H59","v":0},{"$f":"+'III- FINANCIAMENTO'!$H60","v":0},{"$f":"+'III- FINANCIAMENTO'!$H61","v":0},{"$f":"+'III- FINANCIAMENTO'!$H62","v":0},{"$f":"+'III- FINANCIAMENTO'!$H63","v":0},{"$f":"+'III- FINANCIAMENTO'!$H64","v":0},{"$f":"+'III- FINANCIAMENTO'!$H65","v":0},{"$f":"+'III- FINANCIAMENTO'!$H66","v":0},{"$f":"+'III- FINANCIAMENTO'!$H67","v":0},{"$f":"+'III- FINANCIAMENTO'!$H68","v":0},{"$f":"+'III- FINANCIAMENTO'!$H69","v":0},{"$f":"+'III- FINANCIAMENTO'!$H70","v":0},{"$f":"+'III- FINANCIAMENTO'!#REF!","v":{"$error":"#REF!"}},{"$f":"+'III- FINANCIAMENTO'!$H71","v":0},{"$f":"+'III- FINANCIAMENTO'!$H73","v":0},{"$f":"+'III- FINANCIAMENTO'!$H74","v":0},{"$f":"+'III- FINANCIAMENTO'!$H75","v":0},{"$f":"+'III- FINANCIAMENTO'!$H76","v":0},{"$f":"+'III- FINANCIAMENTO'!$H77","v":0},{"$f":"+'III- FINANCIAMENTO'!$H79","v":0},{"$f":"+'III- FINANCIAMENTO'!$H80","v":0},{"$f":"+'III- FINANCIAMENTO'!$H81","v":0},{"$f":"+'III- FINANCIAMENTO'!$H82","v":0},{"$f":"+'III- FINANCIAMENTO'!$H83","v":0},{"$f":"+'III- FINANCIAMENTO'!$H84","v":0},{"$f":"+'III- FINANCIAMENTO'!$H85","v":0},{"$f":"+'III- FINANCIAMENTO'!$H86","v":0},{"$f":"+'III- FINANCIAMENTO'!$H87","v":0},{"$f":"+'III- FINANCIAMENTO'!$H88","v":0},{"$f":"+'III- FINANCIAMENTO'!$H89","v":0},{"$f":"+'III- FINANCIAMENTO'!$H90","v":0},{"$f":"+'III- FINANCIAMENTO'!$H92","v":0},{"$f":"+'III- FINANCIAMENTO'!$H93","v":0},{"$f":"+'III- FINANCIAMENTO'!$H94","v":0},{"$f":"+'III- FINANCIAMENTO'!$H95","v":0},{"$f":"+'III- FINANCIAMENTO'!$H96","v":0},{"$f":"+'III- FINANCIAMENTO'!$H97","v":0},{"$f":"+'III- FINANCIAMENTO'!$H98","v":0},{"$f":"+'III- FINANCIAMENTO'!$H99","v":0},{"$f":"+'III- FINANCIAMENTO'!$H100","v":0},{"$f":"+'III- FINANCIAMENTO'!$H101","v":0},{"$f":"+'III- FINANCIAMENTO'!$H102","v":0},{"$f":"+'III- FINANCIAMENTO'!$H103","v":0},{"$f":"+'III- FINANCIAMENTO'!$H104","v":0},{"$f":"+'III- FINANCIAMENTO'!$H105","v":0},{"$f":"+'III- FINANCIAMENTO'!$H106","v":0},{"$f":"+'III- FINANCIAMENTO'!$H107","v":0},{"$f":"+'III- FINANCIAMENTO'!$H108","v":0},{"$f":"+'III- FINANCIAMENTO'!$H109","v":5000},{"$f":"+'III- FINANCIAMENTO'!$H110","v":0},{"$f":"+'III- FINANCIAMENTO'!$H111","v":0},{"$f":"+'III- FINANCIAMENTO'!$H112","v":0},{"$f":"+'III- FINANCIAMENTO'!$H113","v":0},{"$f":"+'III- FINANCIAMENTO'!$H114","v":0},{"$f":"+'III- FINANCIAMENTO'!$H115","v":0},{"$f":"+'III- FINANCIAMENTO'!$H116","v":0},{"$f":"+'III- FINANCIAMENTO'!$H117","v":0},{"$f":"+'III- FINANCIAMENTO'!$H118","v":0},{"$f":"+'III- FINANCIAMENTO'!$H119","v":0},{"$f":"+'III- FINANCIAMENTO'!$H120","v":0},{"$f":"+'III- FINANCIAMENTO'!$H121","v":0},{"$f":"+'III- FINANCIAMENTO'!$H122","v":0},{"$f":"+'III- FINANCIAMENTO'!$H123","v":0},{"$f":"+'III- FINANCIAMENTO'!$H124","v":0},{"$f":"+'III- FINANCIAMENTO'!$H125","v":0},{"$f":"+'III- FINANCIAMENTO'!$H126","v":0},{"$f":"+'III- FINANCIAMENTO'!$H127","v":0},{"$f":"+'III- FINANCIAMENTO'!$H128","v":0},{"$f":"+'III- FINANCIAMENTO'!$H129","v":0},{"$f":"+'III- FINANCIAMENTO'!$H130","v":286163.34000000003},{"$f":"+'III- FINANCIAMENTO'!$H139","v":0},{"$f":"+'III- FINANCIAMENTO'!$H140","v":0},{"$f":"+'III- FINANCIAMENTO'!$H142","v":0},{"$f":"+'III- FINANCIAMENTO'!$H143","v":0},{"$f":"+'III- FINANCIAMENTO'!$H145","v":0},{"$f":"+'III- FINANCIAMENTO'!$H146","v":0},{"$f":"+'III- FINANCIAMENTO'!$H147","v":0},{"$f":"+'III- FINANCIAMENTO'!$H148","v":0},{"$f":"+'III- FINANCIAMENTO'!$H149","v":0},{"$f":"+'III- FINANCIAMENTO'!$H150","v":0},{"$f":"+'III- FINANCIAMENTO'!$H151","v":0},{"$f":"+'III- FINANCIAMENTO'!$H152","v":0},{"$f":"+'III- FINANCIAMENTO'!$H153","v":0},{"$f":"+'III- FINANCIAMENTO'!$H154","v":0},{"$f":"+'III- FINANCIAMENTO'!$H155","v":0},{"$f":"+'III- FINANCIAMENTO'!$H156","v":0},{"$f":"+'III- FINANCIAMENTO'!$H157","v":0},{"$f":"+'III- FINANCIAMENTO'!$H158","v":0},{"$f":"+'III- FINANCIAMENTO'!$H159","v":0},{"$f":"+'III- FINANCIAMENTO'!$H160","v":0},{"$f":"+'III- FINANCIAMENTO'!$H161","v":0},{"$f":"+'III- FINANCIAMENTO'!$H162","v":0},{"$f":"+'III- FINANCIAMENTO'!$H163","v":0},{"$f":"+'III- FINANCIAMENTO'!$H164","v":0},{"$f":"+'III- FINANCIAMENTO'!$H165","v":0},{"$f":"+'III- FINANCIAMENTO'!$H166","v":0},{"$f":"+'III- FINANCIAMENTO'!$H167","v":0},{"$f":"+'III- FINANCIAMENTO'!$I139","v":0},{"$f":"+'III- FINANCIAMENTO'!$I140","v":0},{"$f":"+'III- FINANCIAMENTO'!$I142","v":0},{"$f":"+'III- FINANCIAMENTO'!$I143","v":0},{"$f":"+'III- FINANCIAMENTO'!$I145","v":0},{"$f":"+'III- FINANCIAMENTO'!$I146","v":0},{"$f":"+'III- FINANCIAMENTO'!$I147","v":0},{"$f":"+'III- FINANCIAMENTO'!$I148","v":0},{"$f":"+'III- FINANCIAMENTO'!$I149","v":0},{"$f":"+'III- FINANCIAMENTO'!$I150","v":0},{"$f":"+'III- FINANCIAMENTO'!$I151","v":0},{"$f":"+'III- FINANCIAMENTO'!$I152","v":0},{"$f":"+'III- FINANCIAMENTO'!$I153","v":0},{"$f":"+'III- FINANCIAMENTO'!$I154","v":0},{"$f":"+'III- FINANCIAMENTO'!$I155","v":0},{"$f":"+'III- FINANCIAMENTO'!$I156","v":0},{"$f":"+'III- FINANCIAMENTO'!$I157","v":0},{"$f":"+'III- FINANCIAMENTO'!$I158","v":0},{"$f":"+'III- FINANCIAMENTO'!$I159","v":0},{"$f":"+'III- FINANCIAMENTO'!$I160","v":0},{"$f":"+'III- FINANCIAMENTO'!$I161","v":0},{"$f":"+'III- FINANCIAMENTO'!$I162","v":0},{"$f":"+'III- FINANCIAMENTO'!$I163","v":0},{"$f":"+'III- FINANCIAMENTO'!$I164","v":0},{"$f":"+'III- FINANCIAMENTO'!$I165","v":0},{"$f":"+'III- FINANCIAMENTO'!$I166","v":0},{"$f":"+'III- FINANCIAMENTO'!$I167","v":0},{"$f":"+'III- FINANCIAMENTO'!$C175","v":0},{"$f":"+'III- FINANCIAMENTO'!$F175","v":0},{"$f":"+'III- FINANCIAMENTO'!$H175","v":0},{"$f":"+'III- FINANCIAMENTO'!$I175","v":0},{"$f":"+'III- FINANCIAMENTO'!$J175","v":0},{"$f":"+'III- FINANCIAMENTO'!$C176","v":0},{"$f":"+'III- FINANCIAMENTO'!$F176","v":0},{"$f":"+'III- FINANCIAMENTO'!$H176","v":0},{"$f":"+'III- FINANCIAMENTO'!$I176","v":0},{"$f":"+'III- FINANCIAMENTO'!$J176","v":0},{"$f":"+'III- FINANCIAMENTO'!$C177","v":0},{"$f":"+'III- FINANCIAMENTO'!$F177","v":0},{"$f":"+'III- FINANCIAMENTO'!$H177","v":0},{"$f":"+'III- FINANCIAMENTO'!$I177","v":0},{"$f":"+'III- FINANCIAMENTO'!$J177","v":0},{"$f":"+'III- FINANCIAMENTO'!$C178","v":0},{"$f":"+'III- FINANCIAMENTO'!$F178","v":0},{"$f":"+'III- FINANCIAMENTO'!$H178","v":0},{"$f":"+'III- FINANCIAMENTO'!$I178","v":0},{"$f":"+'III- FINANCIAMENTO'!$J178","v":0},{"$f":"+'III- FINANCIAMENTO'!$C179","v":0},{"$f":"+'III- FINANCIAMENTO'!$F179","v":0},{"$f":"+'III- FINANCIAMENTO'!$H179","v":0},{"$f":"+'III- FINANCIAMENTO'!$I179","v":0},{"$f":"+'III- FINANCIAMENTO'!$J179","v":0},{"$f":"+'III- FINANCIAMENTO'!$C180","v":0},{"$f":"+'III- FINANCIAMENTO'!$F180","v":0},{"$f":"+'III- FINANCIAMENTO'!$H180","v":0},{"$f":"+'III- FINANCIAMENTO'!$I180","v":0},{"$f":"+'III- FINANCIAMENTO'!$J180","v":0}]

{"sheet":"dados IV","index":10,"n_rows":2,"n_cols":32,"rows_kept":2,"cut":false,"hidden":true,"merged":[]}
["NISS","NIF",{"$f":"+'IV-INVESTIMENTO'!$C8","v":"Ativos Intangíveis"},{"$f":"+'IV-INVESTIMENTO'!$C9","v":"Bens domínio público"},{"$f":"+'IV-INVESTIMENTO'!$C10","v":"Goodwill"},{"$f":"+'IV-INVESTIMENTO'!$C11","v":"Projetos de desenvolvimento"},{"$f":"+'IV-INVESTIMENTO'!$C12","v":"Programas de Computador"},{"$f":"+'IV-INVESTIMENTO'!$C13","v":"Propriedade Industrial "},{"$f":"+'IV-INVESTIMENTO'!$C14","v":"Outros Ativos intangíveis"},{"$f":"+'IV-INVESTIMENTO'!$C15","v":"Ativos Fixos Tangíveis"},{"$f":"+'IV-INVESTIMENTO'!$C16","v":"Bens domínio público"},{"$f":"+'IV-INVESTIMENTO'!$C17","v":"Bens do Património Histórico e Cultural"},{"$f":"+'IV-INVESTIMENTO'!$C18","v":"Terrenos e Recursos Naturais"},{"$f":"+'IV-INVESTIMENTO'!$C19","v":"Edifícios e Outras Construções"},{"$f":"+'IV-INVESTIMENTO'!$C20","v":"Equipamento Básico"},{"$f":"+'IV-INVESTIMENTO'!$C21","v":"Equipamento de Transporte"},{"$f":"+'IV-INVESTIMENTO'!$C22","v":"Equipamento Administrativo"},{"$f":"+'IV-INVESTIMENTO'!$C23","v":"Equipamentos Biológicos"},{"$f":"+'IV-INVESTIMENTO'!$C24","v":"Outros ativos fixos tangíveis"},{"$f":"+'IV-INVESTIMENTO'!$C25","v":"Propriedades de Investimento"},{"$f":"+'IV-INVESTIMENTO'!$C26","v":"Investimentos Financeiros"},{"$f":"+'IV-INVESTIMENTO'!$C27","v":"Outros ativos Financeiros (não correntes detidos para venda)"},{"$f":"+'IV-INVESTIMENTO'!C28","v":"TOTAL INVESTIMENTO - MLP"},{"$f":"+'IV-INVESTIMENTO'!H8","v":"Novas aquisições (compras e prestações serviços)"},{"$f":"+'IV-INVESTIMENTO'!H9","v":"Adiantamentos"},{"$f":"+'IV-INVESTIMENTO'!H10","v":"Trabalhos própria Entidade"},{"$f":"+'IV-INVESTIMENTO'!H11","v":"Transferência para Imobilizado pela conclusão obra (-)"},{"$f":"+'IV-INVESTIMENTO'!H12","v":"TOTAL INVESTIMENTO EM CURSO"},{"$f":"+'IV-INVESTIMENTO'!H17","v":"Outros ativos Financeiros"},{"$f":"+'IV-INVESTIMENTO'!H18","v":"Outros passivos Financeiros"},{"$f":"+'IV-INVESTIMENTO'!H19","v":"TOTAL INVESTIMENTO - CP"},{"$f":"+'IV-INVESTIMENTO'!H28","v":"TOTAL NOVO INVESTIMENTO:"}]
[{"$f":"+'I-DADOS GERAIS'!L14","v":20008838749},{"$f":"+'I-DADOS GERAIS'!G14","v":502065591},{"$f":"+'IV-INVESTIMENTO'!$F8","v":0},{"$f":"+'IV-INVESTIMENTO'!$F9","v":0},{"$f":"+'IV-INVESTIMENTO'!$F10","v":0},{"$f":"+'IV-INVESTIMENTO'!$F11","v":0},{"$f":"+'IV-INVESTIMENTO'!$F12","v":0},{"$f":"+'IV-INVESTIMENTO'!$F13","v":0},{"$f":"+'IV-INVESTIMENTO'!$F14","v":0},{"$f":"+'IV-INVESTIMENTO'!$F15","v":35000},{"$f":"+'IV-INVESTIMENTO'!$F16","v":0},{"$f":"+'IV-INVESTIMENTO'!$F17","v":0},{"$f":"+'IV-INVESTIMENTO'!$F18","v":0},{"$f":"+'IV-INVESTIMENTO'!$F19","v":0},{"$f":"+'IV-INVESTIMENTO'!$F20","v":0},{"$f":"+'IV-INVESTIMENTO'!$F21","v":35000},{"$f":"+'IV-INVESTIMENTO'!$F22","v":0},{"$f":"+'IV-INVESTIMENTO'!$F23","v":0},{"$f":"+'IV-INVESTIMENTO'!$F24","v":0},{"$f":"+'IV-INVESTIMENTO'!$F25","v":0},{"$f":"+'IV-INVESTIMENTO'!$F26","v":0},{"$f":"+'IV-INVESTIMENTO'!$F27","v":0},{"$f":"+'IV-INVESTIMENTO'!F28","v":35000},{"$f":"+'IV-INVESTIMENTO'!I8","v":0},{"$f":"+'IV-INVESTIMENTO'!I9","v":0},{"$f":"+'IV-INVESTIMENTO'!I10","v":0},{"$f":"+'IV-INVESTIMENTO'!I11","v":0},{"$f":"+'IV-INVESTIMENTO'!I12","v":0},{"$f":"+'IV-INVESTIMENTO'!I17","v":0},{"$f":"+'IV-INVESTIMENTO'!I18","v":0},{"$f":"+'IV-INVESTIMENTO'!I19","v":0},{"$f":"+'IV-INVESTIMENTO'!I28","v":35000}]